Workbook

Sheet Notes

Sheet Codes (hidden)
A1: Item | B1: Number
A2: Minneapolis Hard Red Spring Wheat Futures | B2: 2
A3: KCBT Hard Red Winter Wheat Futures | B3: 3
A4: CBOT Soft Red Winter Wheat Futures | B4: 4
A5: CBOT Nearby Corn Futures | B5: 5
A6: CBOT Nearby Soybean Futures | B6: 6
A7: HRW Wheat Index | B7: 7
A8: SRW Wheat Index | B8: 8
A9: HRS Wheat Index | B9: 9
A10: National Soybean Index | B10: 10
A11: National Corn Index | B11: 11
A12: Durum Wheat Index | B12: 12
A13: Minneapolis Wheat (HRS, 13%, Rail) | B13: 13
A14: Minneapolis Wheat (HRS, 13%, Truck) | B14: 14
A15: Minneapolis Wheat (HRS, 14%, Rail) | B15: 15
A16: Minneapolis Wheat (HRS, 14%, Truck) | B16: 16
A17: Minneapolis Wheat (HRS, 15%, Rail) | B17: 17
A18: Minneapolis Wheat (HRS, 15%, Truck) | B18: 18
A19: Portland Wheat (HRS, 14%, Del.) | B19: 19
A20: Montana Wheat (HRS, Billings, 14%) | B20: 20
A21: Montana Wheat (HRS, Golden Triangle, 14%) | B21: 21
A22: Montana Wheat (HRS, Great Falls, 14%) | B22: 22
A23: Montana Wheat (HRS, 14%, North Central) | B23: 23
A24: Montana Wheat (HRS, 14%, North East) | B24: 24
A25: S. Dakota Wheat (HRS, 14%, North Central) | B25: 25
A26: S. Dakota Wheat (HRS, 14% North East) | B26: =B25+1 -> 26
A27: S. Dakota Wheat (HRS, 14%, East Central) | B27: 27
A28: St. Louis Wheat (SRW) | B28: 28
A29: W. Southwest Illinois Wheat (SRW) | B29: 29
A30: New Orleans Wheat (SRW) | B30: 30
A31: Toledo Wheat (SRW) | B31: 31
A32: KC Wheat (HRW, Ords.) | B32: 32
A33: Western Kansas Wheat (HRW) | B33: 33
A34: Denver Wheat (HRW) | B34: 34
A35: Houston Wheat (HRW) | B35: 35
A36: Central Illinois Corn | B36: 36
A37: Central Illinois Soybeans | B37: 37
A38: N.C. Iowa Soybeans | B38: 38

Sheet Data (hidden)
G6: $CRWI | H6: $CSWI | I6: $CRSI | J6: $CNSI | K6: $CNCI | L6: $CDWI | Y6: NC | Z6: NE | AA6: EC | AH6: NC
B7: =COLUMN() -> 2 | C7: =COLUMN() -> 3 | D7: =COLUMN() -> 4 | E7: =COLUMN() -> 5 | F7: =COLUMN() -> 6 | G7: =COLUMN() -> 7 | H7: =COLUMN() -> 8 | I7: =COLUMN() -> 9 | J7: =COLUMN() -> 10 | K7: =COLUMN() -> 11 | L7: =COLUMN() -> 12 | M7: =COLUMN() -> 13 | N7: =COLUMN() -> 14 | O7: =COLUMN() -> 15 | P7: =COLUMN() -> 16 | Q7: =COLUMN() -> 17 | R7: =COLUMN() -> 18 | S7: =COLUMN() -> 19 | T7: =COLUMN() -> 20 | U7: =COLUMN() -> 21 | V7: =COLUMN() -> 22 | W7: =COLUMN() -> 23 | X7: =COLUMN() -> 24 | Y7: =COLUMN() -> 25 | Z7: =COLUMN() -> 26 | AA7: =COLUMN() -> 27 | AB7: =COLUMN() -> 28 | AC7: =COLUMN() -> 29 | AD7: =COLUMN() -> 30 | AE7: =COLUMN() -> 31 | AF7: =COLUMN() -> 32 | AG7: =COLUMN() -> 33 | AH7: =COLUMN() -> 34 | AI7: =COLUMN() -> 35 | AJ7: =COLUMN() -> 36 | AK7: =COLUMN() -> 37 | AL7: =COLUMN() -> 38
A8: Code | B8: MW | C8: KW | D8: W | E8: C | F8: S | G8: HRWI | H8: SRWI | I8: HRSI | J8: NSI | K8: NCI | L8: DWI | M8: Mpls13R | N8: Mpls13T | O8: Mpls14R | P8: Mpls14T | Q8: Mpls15R | R8: Mpls15T | S8: Port14 | T8: Mont1 | U8: Mont2 | V8: Mont3 | W8: Mont4 | X8: Mont5 | Y8: SD2 | Z8: SD3 | AA8: SD4 | AB8: STL | AC8: SWIL | AD8: NOLA | AE8: TOL | AF8: KC | AG8: WKS | AH8: DEN | AI8: HOUS | AJ8: CILC | AK8: CILS | AL8: NCIA
B9: Minneapolis | C9: KCBT | D9: CBOT | E9: CBOT | F9: CBOT | G9: HRW | H9: SRW | I9: HRS | J9: Soybean | K9: Corn | L9: Durum | M9: HRS | N9: HRS | O9: HRS | P9: HRS | Q9: HRS | R9: HRS | S9: HRS | T9: HRS | U9: HRS | V9: HRS | W9: HRS | X9: HRS | Y9: HRS | Z9: HRS | AA9: HRS | AB9: SRW | AC9: SRW | AD9: SRW | AE9: SRW | AF9: HRW | AG9: HRW | AH9: HRW | AI9: HRW | AJ9: Corn | AK9: Soybeans | AL9: Soybeans
A10: Date | B10: Wheat | C10: Wheat | D10: Wheat | E10: Corn | F10: Soybeans | G10: Index | H10: Index | I10: Index | J10: Index | K10: Index | L10: Index | M10: 13% Rail | N10: 13% Truck | O10: 14% Rail | P10: 14% Truck | Q10: 15% Rail | R10: 15% Truck | S10: 14% Port. | T10: 14% Billings | U10: 14% GT | V10: 14% GF | W10: 14% NC | X10: 14% NE | Y10: 14% Siss. | Z10: 14% Bristol | AA10: 14% Aber. | AB10: St. Louis | AC10: S.W. IL | AD10: NOLA | AE10: Toledo | AF10: KC | AG10: W. KS | AH10: Denver | AI10: Houston | AJ10: Cent.IL | AK10: Cent. IL | AL10: N.C. Iowa
A11: 2014-01-01 | B11: 604 | C11: 615.5 | D11: 555.75 | E11: 434 | F11: 1282.75 | G11: 598 | H11: 534.08 | I11: 616.51 | J11: 1247.71 | K11: 415.46 | L11: 676.96 | M11: 874 | N11: 644 | O11: 916.5 | P11: 679 | Q11: 924 | R11: 694 | S11: 787 | T11: 641.5 | U11: 621 | V11: 633 | W11: 635 | X11: 613.5 | Y11: 624 | Z11: 614 | AA11: 604 | AB11: 580 | AC11: 583.5 | AD11: 653.25 | AE11: 547.25 | AF11: 505 | AG11: 601 | AH11: 616 | AI11: 738 | AJ11: 419.5 | AK11: 1278.5 | AL11: 1244
A12: 2014-02-01 | B12: 670.75 | C12: 677 | D12: 599 | E12: 463.5 | F12: 1414.25 | G12: 655.98 | H12: 580.3 | I12: 665.64 | J12: 1370.77 | K12: 435.26 | L12: 667.5 | M12: 918.5 | N12: 701 | O12: 926.25 | P12: 736.25 | Q12: 968 | R12: 751 | S12: 851.25 | T12: 678.5 | U12: 681.5 | V12: 680.5 | W12: 691 | X12: 660.5 | Y12: 686 | Z12: 676 | AA12: 656 | AB12: 625.5 | AC12: 591 | AD12: 711.5 | AE12: 597.75 | AF12: 556.5 | AG12: 661.5 | AH12: 668 | AI12: 808.5 | AJ12: 444 | AK12: 1395.5 | AL12: 1367.5
A13: 2014-03-01 | B13: 742.75 | C13: 764 | D13: 697.25 | E13: 502 | F13: 1464 | G13: 727.6 | H13: 674.57 | I13: 708.62 | J13: 1420.54 | K13: 468.35 | L13: 676.04 | M13: 880 | N13: 753 | O13: 903.75 | P13: 787.75 | Q13: 923 | R13: 803 | S13: 906.75 | T13: 690.5 | U13: 678.5 | V13: 699.5 | W13: 693.5 | X13: 670.5 | Y13: 710 | Z13: 700 | AA13: 695 | AB13: 721.5 | AC13: 705.5 | AD13: 789.75 | AE13: 690.25 | AF13: 633 | AG13: 746.5 | AH13: 719 | AI13: 894 | AJ13: 482.5 | AK13: 1462 | AL13: 1416
A14: 2014-04-01 | B14: 757 | C14: 809.75 | D14: 713 | E14: 519 | F14: 1530.75 | G14: 771.13 | H14: 692.13 | I14: 725.08 | J14: 1484.44 | K14: 484.04 | L14: 670 | M14: 874 | N14: 774 | O14: 878.75 | P14: 808.75 | Q14: 939 | R14: 824 | S14: 905.75 | T14: 726.5 | U14: 694.5 | V14: 739.5 | W14: 739.5 | X14: 696.5 | Y14: 749 | Z14: 706 | AA14: 701 | AB14: 732 | AC14: 709.5 | AD14: 784 | AE14: 708.5 | AF14: 708.25 | AG14: 793 | AH14: 777 | AI14: 940 | AJ14: 496.5 | AK14: 1521.5 | AL14: 1481
A15: 2014-05-01 | B15: 706.5 | C15: 723 | D15: 627.25 | E15: 465.75 | F15: 1493.25 | G15: 683.87 | H15: 600.47 | I15: 665 | J15: 1472.06 | K15: 439.6 | L15: 690.77 | M15: 804 | N15: 712 | O15: 839 | P15: 746.5 | Q15: 882 | R15: 762 | S15: 837.5 | T15: 668.5 | U15: 663.5 | V15: 683 | W15: 674 | X15: 653.5 | Y15: 682 | Z15: 660 | AA15: 647 | AB15: 629.5 | AC15: 619 | AD15: 668.25 | AE15: 618.75 | AF15: 627.5 | AG15: 703.5 | AH15: 705.5 | AI15: 840.5 | AJ15: 452 | AK15: 1507.5 | AL15: 1466.5
A16: 2014-06-01 | B16: 667.25 | C16: 710.5 | D16: 564.75 | E16: 425.25 | F16: 1400.5 | G16: 671.22 | H16: 548.56 | I16: 648.48 | J16: 1361.96 | K16: 401.6 | L16: 852.65 | M16: 852 | N16: 687 | O16: 962 | P16: 727 | Q16: 1024.5 | R16: 727 | S16: 852 | T16: 649.5 | U16: 664.5 | V16: 686 | W16: 653.5 | X16: 676 | Y16: 652 | Z16: 642 | AA16: 632 | AB16: 594 | AC16: 530.5 | AD16: 633.75 | AE16: 567.125 | AF16: 590 | AG16: 676.5 | AH16: 690 | AI16: 823 | AJ16: 413 | AK16: 1393 | AL16: 1362.5
A17: 2014-07-01 | B17: 616 | C17: 625.75 | D17: 530.25 | E17: 367 | F17: 1224.5 | G17: 585.34 | H17: 499.8 | I17: 594.31 | J17: 1205.27 | K17: 337.13 | L17: 844.13 | M17: 771 | N17: 651 | O17: 816 | P17: 676 | Q17: 1026 | R17: 686 | S17: 799 | T17: 579.5 | U17: 599.5 | V17: 608.5 | W17: 571.5 | X17: 563.5 | Y17: 591 | Z17: 576 | AA17: 556 | AB17: 499.5 | AC17: 457.5 | AD17: 581.75 | AE17: 530.25 | AF17: 515.25 | AG17: 592.5 | AH17: 585 | AI17: 705.5 | AJ17: 353.5 | AK17: 1254.5 | AL17: 1202
A18: 2014-08-01 | B18: 615 | C18: 626.25 | D18: 550.25 | E18: 364.75 | F18: 1089.5 | G18: 587.04 | H18: 515.18 | I18: 595.4 | J18: 1179.7 | K18: 339.36 | L18: 835 | M18: 765 | N18: 615 | O18: 902.25 | P18: 664.75 | Q18: 1142.5 | R18: 690 | S18: 815.75 | T18: 602.5 | U18: 625.5 | V18: 619.5 | W18: 590.5 | X18: 583.5 | Y18: 585 | Z18: 570 | AA18: 555 | AB18: 502 | AC18: 463 | AD18: 596.75 | AE18: 558 | AF18: 530.75 | AG18: 595.5 | AH18: 568.5 | AI18: 716.25 | AJ18: 362 | AK18: 1237 | AL18: 1236.5
A19: 2014-09-01 | B19: 533.5 | C19: 558 | D19: 477.75 | E19: 320.75 | F19: 913.25 | G19: 509.85 | H19: 427.97 | I19: 525.36 | J19: 856.56 | K19: 283.65 | L19: 1092.38 | M19: 673 | N19: 464 | O19: 753.5 | P19: 563.5 | Q19: 1096 | R19: 588 | S19: 808.5 | T19: 545.5 | U19: 565.5 | V19: 590.5 | W19: 561.5 | X19: 536.5 | Y19: 489 | Z19: 484 | AA19: 469 | AB19: 326 | AC19: 299 | AD19: 547.25 | AE19: 477.25 | AF19: 432.5 | AG19: 518 | AH19: 503 | AI19: 628.5 | AJ19: 282 | AK19: 886 | AL19: 853
A20: 2014-10-01 | B20: 574.25 | C20: 593.75 | D20: 532.5 | E20: 376.75 | F20: 1046.5 | G20: 551.57 | H20: 493.07 | I20: 580.94 | J20: 985.73 | K20: 335.63 | L20: 1156.67 | M20: 751.5 | N20: 504 | O20: 821.75 | P20: 604.25 | Q20: 1099 | R20: 629 | S20: 919.25 | T20: 652 | U20: 652.5 | V20: 651.5 | W20: 685 | X20: 615.5 | Y20: 539 | Z20: 524 | AA20: 519 | AB20: 449.5 | AC20: 447 | AD20: 633 | AE20: 537 | AF20: 458.25 | AG20: 554 | AH20: 551.5 | AI20: 703.75 | AJ20: 339.5 | AK20: 1022 | AL20: 991.5
A21: 2014-11-01 | B21: 598.5 | C21: 621 | D21: 562 | E21: 388.75 | F21: 1047 | G21: 582.22 | H21: 528.77 | I21: 620.45 | J21: 997.98 | K21: 350.19 | L21: 1127.25 | M21: 763 | N21: 573 | O21: 835.25 | P21: 622.75 | Q21: 1003 | R21: 648 | S21: 963.75 | T21: 700 | U21: 692.5 | V21: 687 | W21: 693 | X21: 658.5 | Y21: 583 | Z21: 583 | AA21: 583 | AB21: 552 | AC21: 515.5 | AD21: 667.5 | AE21: 567.5 | AF21: 507.5 | AG21: 580.75 | AH21: 586.5 | AI21: 727.25 | AJ21: 355.5 | AK21: 1039 | AL21: 995.5
A22: 2014-12-01 | B22: 622 | C22: 626.5 | D22: 589.75 | E22: 397 | F22: 1019.25 | G22: 582.51 | H22: 557.4 | I22: 608.41 | J22: 968.03 | K22: 363.52 | L22: 1036.11 | M22: 699.5 | N22: 592 | O22: 752 | P22: 642 | Q22: 984.5 | R22: 667 | S22: 855 | T22: 687 | U22: 671 | V22: 648 | W22: 688.5 | X22: 626.5 | Y22: 592 | Z22: 597 | AA22: 597 | AB22: 594 | AC22: 547.5 | AD22: 680 | AE22: 595.75 | AF22: 513 | AG22: 586.25 | AH22: 594.5 | AI22: 720.5 | AJ22: 372 | AK22: 1010 | AL22: 970.5
A23: 2015-01-01 | B23: 556.75 | C23: 540.25 | D23: 502.75 | E23: 370 | F23: 961 | G23: 499.45 | H23: 473.24 | I23: 553.79 | J23: 912.84 | K23: 343.8 | L23: 897.37 | M23: 664.5 | N23: 522 | O23: 706.75 | P23: 571.75 | Q23: 869.5 | R23: 597 | S23: 821.75 | T23: 621 | U23: 614.5 | V23: 609 | W23: 587 | X23: 598.5 | Y23: 527 | Z23: 520 | AA23: 520 | AB23: 507 | AC23: 467 | AD23: 583.25 | AE23: 512.25 | AF23: 455 | AG23: 505 | AH23: 510 | AI23: 637.75 | AJ23: 350.5 | AK23: 948.5 | AL23: 911
A24: 2015-02-01 | B24: 556 | C24: 534.5 | D24: 517.5 | E24: 393.25 | F24: 1030.75 | G24: 499.1 | H24: 487.91 | I24: 569.04 | J24: 984.41 | K24: 365.26 | L24: 854.2 | M24: 671 | N24: 532 | O24: 746.5 | P24: 581.5 | Q24: 974 | R24: 606 | S24: 846 | T24: 661 | U24: 632 | V24: 638.5 | W24: 627 | X24: 626.5 | Y24: 542 | Z24: 534 | AA24: 534 | AB24: 517.5 | AC24: 484.5 | AD24: 607.5 | AE24: 527 | AF24: 479.5 | AG24: 504.5 | AH24: 512.5 | AI24: 632 | AJ24: 367.5 | AK24: 1021 | AL24: 983
A25: 2015-03-01 | B25: 576 | C25: 559.25 | D25: 511.75 | E25: 376.25 | F25: 973.25 | G25: 523.54 | H25: 484.95 | I25: 593.99 | J25: 928.97 | K25: 354.86 | L25: 823 | M25: 661 | N25: 551 | O25: 771 | P25: 601 | Q25: 1001 | R25: 626 | S25: 886 | T25: 678.5 | U25: 650 | V25: 657 | W25: 647.5 | X25: 628.5 | Y25: 556 | Z25: 566 | AA25: 566 | AB25: 511 | AC25: 474 | AD25: 596.75 | AE25: 517.75 | AF25: 524 | AG25: 524 | AH25: 541.5 | AI25: 639.25 | AJ25: 357.5 | AK25: 962 | AL25: 928
A26: 2015-04-01 | B26: 523.25 | C26: 490.25 | D26: 467 | E26: 366.25 | F26: 978.5 | G26: 448.86 | H26: 441.86 | I26: 503 | J26: 936.33 | K26: 344.64 | L26: 785.69 | M26: 638 | N26: 513 | O26: 738.25 | P26: 563 | Q26: 888 | R26: 588 | S26: 738.25 | T26: 585.5 | U26: 567 | V26: 570 | W26: 562 | X26: 554.5 | Y26: 508 | Z26: 508 | AA26: 508 | AB26: 468 | AC26: 425.5 | AD26: 511.5 | AE26: 470.5 | AF26: 484.5 | AG26: 459.5 | AH26: 471.5 | AI26: 567.75 | AJ26: 350 | AK26: 970.5 | AL26: 952
A27: 2015-05-01 | B27: 530.75 | C27: 498.75 | D27: 477 | E27: 351.5 | F27: 934 | G27: 461.44 | H27: 452.49 | I27: 519.21 | J27: 900.89 | K27: 333.07 | L27: 788 | M27: 626 | N27: 506 | O27: 710.75 | P27: 555.75 | Q27: 931 | R27: 581 | S27: 728.25 | T27: 565.5 | U27: 539 | V27: 545.5 | W27: 546 | X27: 531.5 | Y27: 501 | Z27: 511 | AA27: 511 | AB27: 478.5 | AC27: 444 | AD27: 544.5 | AE27: 478 | AF27: 508.75 | AG27: 472.5 | AH27: 466.5 | AI27: 553.75 | AJ27: 339.5 | AK27: 930.5 | AL27: 899.5
A28: 2015-06-01 | B28: 622.25 | C28: 593.25 | D28: 614.75 | E28: 431.5 | F28: 1056.25 | G28: 563.4 | H28: 579.78 | I28: 604.53 | J28: 1012.01 | K28: 389.29 | L28: 746.95 | M28: 724.5 | N28: 602 | O28: 794.75 | P28: 652.25 | Q28: 962 | R28: 677 | S28: 772.25 | T28: 629 | U28: 629 | V28: 637.5 | W28: 633.5 | X28: 603 | Y28: 607 | Z28: 602 | AA28: 602 | AB28: 587.5 | AC28: 547.5 | AD28: 655.25 | AE28: 615.75 | AF28: 612.25 | AG28: 562.5 | AH28: 560.5 | AI28: 606.75 | AJ28: 397.5 | AK28: 1046.5 | AL28: 1011.5
A29: 2015-07-01 | B29: 523.5 | C29: 492.25 | D29: 499.25 | E29: 381.25 | F29: 980.75 | G29: 446.78 | H29: 443.41 | I29: 471.97 | J29: 938.06 | K29: 342.78 | L29: 785.11 | M29: 574 | N29: 488 | O29: 633.5 | P29: 538.5 | Q29: 824 | R29: 564 | S29: 613.5 | T29: 478.5 | U29: 482 | V29: 492.5 | W29: 485 | X29: 450.5 | Y29: 484 | Z29: 474 | AA29: 474 | AB29: 459 | AC29: 413 | AD29: 532.5 | AE29: 517.75 | AF29: 489.75 | AG29: 448 | AH29: 447 | AI29: 485.5 | AJ29: 352 | AK29: 988.5 | AL29: 946.5
A30: 2015-08-01 | B30: 496.75 | C30: 463.75 | D30: 482.5 | E30: 375.25 | F30: 897.5 | G30: 423.97 | H30: 425.64 | I30: 457.4 | J30: 872.28 | K30: 340.32 | L30: 614.19 | M30: 589 | N30: 474 | O30: 609.5 | P30: 524.5 | Q30: 747 | R30: 550 | S30: 622.5 | T30: 471.5 | U30: 484 | V30: 494.5 | W30: 486.5 | X30: 460.5 | Y30: 470 | Z30: 450 | AA30: 450 | AB30: 423.5 | AC30: 367.5 | AD30: 507 | AE30: 503.75 | AF30: 447.75 | AG30: 423.5 | AH30: 429 | AI30: 483.75 | AJ30: 347 | AK30: 887.5 | AL30: 900
A31: 2015-09-03 | B31: 527 | C31: 501.75 | D31: 512.75 | E31: 387.75 | F31: 892 | G31: 445.1 | H31: 453.26 | I31: 481.85 | J31: 837.57 | K31: 353.26 | L31: 619 | M31: 612 | N31: 487 | O31: 642 | P31: 537 | Q31: 695.5 | R31: 562 | S31: 655 | T31: 505.5 | U31: 513.5 | V31: 515 | W31: 508 | X31: 482.5 | Y31: 482 | Z31: 477 | AA31: 467 | AB31: 449.5 | AC31: 416 | AD31: 558.25 | AE31: 528.75 | AF31: 466.75 | AG31: 441 | AH31: 448.5 | AI31: 521.75 | AJ31: 368 | AK31: 867.5 | AL31: 829.5
A32: 2015-10-01 | B32: 525.5 | C32: 493.75 | D32: 522 | E32: 382.25 | F32: 883.75 | G32: 439.23 | H32: 471.69 | I32: 496.6 | J32: 830.99 | K32: 354.64 | L32: 633.19 | M32: 633 | N32: 486 | O32: 645.5 | P32: 535.5 | Q32: 713 | R32: 560 | S32: 658 | T32: 519.5 | U32: 531.5 | V32: 537 | W32: 529.5 | X32: 502 | Y32: 506 | Z32: 486 | AA32: 481 | AB32: 464.5 | AC32: 440 | AD32: 580 | AE32: 538 | AF32: 448.75 | AG32: 434.5 | AH32: 440.5 | AI32: 513.75 | AJ32: 369.5 | AK32: 870 | AL32: 821
A33: 2015-11-01 | B33: 523.25 | C33: 460 | D33: 457 | E33: 372.25 | F33: 881 | G33: 408.1 | H33: 422.53 | I33: 497.49 | J33: 836.37 | K33: 346.05 | L33: 647 | M33: 635.5 | N33: 478 | O33: 652.75 | P33: 527.75 | Q33: 713 | R33: 553 | S33: 649 | T33: 506 | U33: 510 | V33: 517.5 | W33: 511 | X33: 481.5 | Y33: 508 | Z33: 488 | AA33: 483 | AB33: 413.5 | AC33: 390.5 | AD33: 513.5 | AE33: 492.5 | AF33: 427 | AG33: 397.5 | AH33: 408.5 | AI33: 480.5 | AJ33: 361.5 | AK33: 878.5 | AL33: 827.5
A34: 2015-12-01 | B34: 493.25 | C34: 468.5 | D34: 470 | E34: 358.75 | F34: 871.25 | G34: 408.12 | H34: 425.38 | I34: 467.09 | J34: 818.77 | K34: 333.64 | L34: 624.38 | M34: 578 | N34: 463 | O34: 605.75 | P34: 513.25 | Q34: 663 | R34: 538 | S34: 622 | T34: 477.5 | U34: 479 | V34: 488.5 | W34: 481 | X34: 442 | Y34: 483 | Z34: 460 | AA34: 455 | AB34: 420 | AC34: 387 | AD34: 510.5 | AE34: 485 | AF34: 443.5 | AG34: 403.5 | AH34: 414 | AI34: 522 | AJ34: 350 | AK34: 863 | AL34: 808.5
A35: 2016-01-01 | B35: 500 | C35: 472 | D35: 479.25 | E35: 372 | F35: 882.25 | G35: 414.16 | H35: 437.3 | I35: 477.26 | J35: 835.42 | K35: 348.49 | L35: 591.67 | M35: 570 | N35: 470 | O35: 595 | P35: 520 | Q35: 632.5 | R35: 545 | S35: 615 | T35: 483 | U35: 498.5 | V35: 498.5 | W35: 493 | X35: 458.5 | Y35: 480 | Z35: 460 | AA35: 455 | AB35: 449.5 | AC35: 400.5 | AD35: 531.75 | AE35: 495.75 | AF35: 452 | AG35: 408 | AH35: 422 | AI35: 529.5 | AJ35: 367 | AK35: 876.5 | AL35: 825.5
A36: 2016-02-01 | B36: 492 | C36: 445 | D36: 445 | E36: 357 | F36: 853 | G36: 390.41 | H36: 406.72 | I36: 454.33 | J36: 806.2 | K36: 329.3 | L36: 552.86 | M36: 566.5 | N36: 474 | O36: 577 | P36: 502 | Q36: 616 | R36: 509 | S36: 604.5 | T36: 457 | U36: 476.5 | V36: 479.5 | W36: 470 | X36: 436.5 | Y36: 461 | Z36: 432 | AA36: 427 | AB36: 459 | AC36: 394.5 | AD36: 496.5 | AE36: 445.625 | AF36: 430 | AG36: 384 | AH36: 399 | AI36: 502.5 | AJ36: 346.5 | AK36: 844.5 | AL36: 798
A37: 2016-03-01 | B37: 529.5 | C37: 476.25 | D37: 473.5 | E37: 351.5 | F37: 910.75 | G37: 410.96 | H37: 432.66 | I37: 478.93 | J37: 852.83 | K37: 323.96 | L37: 552.5 | M37: 592 | N37: 520 | O37: 599.5 | P37: 544.5 | Q37: 680 | R37: 554 | S37: 624.5 | T37: 481 | U37: 504.5 | V37: 508 | W37: 494.5 | X37: 468.5 | Y37: 490 | Z37: 457 | AA37: 452 | AB37: 481.5 | AC37: 424.5 | AD37: 525.5 | AE37: 465.5 | AF37: 448.75 | AG37: 405.5 | AH37: 416 | AI37: 521.25 | AJ37: 341.5 | AK37: 891.5 | AL37: 847.5
A38: 2016-04-01 | B38: 540 | C38: 465.25 | D38: 478 | E38: 391.75 | F38: 1021 | G38: 403.08 | H38: 439.27 | I38: 492.09 | J38: 956.87 | K38: 356.72 | L38: 563.57 | M38: 619.5 | N38: 529 | O38: 627 | P38: 554 | Q38: 689.5 | R38: 564 | S38: 636.5 | T38: 496.5 | U38: 514 | V38: 519 | W38: 506.5 | X38: 474.5 | Y38: 512 | Z38: 466 | AA38: 482 | AB38: 489 | AC38: 433.5 | AD38: 529.5 | AE38: 477 | AF38: 448.25 | AG38: 395.5 | AH38: 405 | AI38: 486 | AJ38: 375 | AK38: 997 | AL38: 947
A39: 2016-05-01 | B39: 520.25 | C39: 447.25 | D39: 464.5 | E39: 404.75 | F39: 1078.5 | G39: 378.91 | H39: 424.77 | I39: 465.87 | J39: 1010.75 | K39: 369.36 | L39: 563.57 | M39: 595 | N39: 505 | O39: 590.25 | P39: 530.25 | Q39: 637.5 | R39: 540 | S39: 625.25 | T39: 479.5 | U39: 495.5 | V39: 495.5 | W39: 498 | X39: 457 | Y39: 465 | Z39: 440 | AA39: 435 | AB39: 461 | AC39: 428 | AD39: 504.5 | AE39: 453.5 | AF39: 427.25 | AG39: 369.5 | AH39: 376 | AI39: 477.25 | AJ39: 387 | AK39: 1044.5 | AL39: 998.5
A40: 2016-06-01 | B40: 495.25 | C40: 404.25 | D40: 431.25 | E40: 371.25 | F40: 1175 | G40: 331.93 | H40: 411.52 | I40: 446.77 | J40: 1112.1 | K40: 326.31 | L40: 587.14 | M40: 552 | N40: 478 | O40: 598.25 | P40: 503.25 | Q40: 627 | R40: 513 | S40: 601.75 | T40: 464.5 | U40: 465 | V40: 475.5 | W40: 469.5 | X40: 424.5 | Y40: 448 | Z40: 423 | AA40: 423 | AB40: 442.5 | AC40: 421 | AD40: 471.25 | AE40: 432.375 | AF40: 379.25 | AG40: 308.5 | AH40: 324 | AI40: 420 | AJ40: 344.5 | AK40: 1157.5 | AL40: 1089.5
A41: 2016-07-01 | B41: 489 | C41: 409.75 | D41: 407.75 | E41: 342.75 | F41: 1032.5 | G41: 319.01 | H41: 372.59 | I41: 436.55 | J41: 971.35 | K41: 305.6 | L41: 516.67 | M41: 548 | N41: 463 | O41: 560.75 | P41: 488.25 | Q41: 628 | R41: 498 | S41: 573.25 | T41: 448.5 | U41: 447 | V41: 452.5 | W41: 445.5 | X41: 409 | Y41: 438 | Z41: 428 | AA41: 418 | AB41: 393 | AC41: 382 | AD41: 418.75 | AE41: 404.25 | AF41: 352.25 | AG41: 292.5 | AH41: 302.5 | AI41: 407.25 | AJ41: 322 | AK41: 1016.5 | AL41: 954
A42: 2016-08-01 | B42: 485.75 | C42: 371.25 | D42: 361 | E42: 315.5 | F42: 960 | G42: 283.43 | H42: 331.65 | I42: 430.01 | J42: 909.11 | K42: 273.02 | L42: 500 | M42: 521 | N42: 462 | O42: 554 | P42: 486.5 | Q42: 609 | R42: 496 | S42: 586.5 | T42: 446.5 | U42: 440 | V42: 443.5 | W42: 443 | X42: 396.5 | Y42: 432 | Z42: 417 | AA42: 417 | AB42: 348 | AC42: 344.5 | AD42: 396 | AE42: 358.625 | AF42: 313.25 | AG42: 258 | AH42: 263.5 | AI42: 373.75 | AJ42: 288 | AK42: 959 | AL42: 903
A43: 2016-09-01 | B43: 514.5 | C43: 415.5 | D43: 402 | E43: 336.75 | F43: 954 | G43: 305.24 | H43: 351.9 | I43: 459.19 | J43: 890.92 | K43: 295.27 | L43: 520.83 | M43: 570 | N43: 494 | O43: 619.5 | P43: 519.5 | Q43: 647 | R43: 530 | S43: 624.5 | T43: 474.5 | U43: 475.5 | V43: 476 | W43: 475.5 | X43: 440.5 | Y43: 450 | Z43: 450 | AA43: 450 | AB43: 387.5 | AC43: 346.5 | AD43: 432 | AE43: 381.5 | AF43: 335.5 | AG43: 281 | AH43: 288.5 | AI43: 415.5 | AJ43: 309 | AK43: 923.5 | AL43: 880
A44: 2016-10-01 | B44: 526.75 | C44: 414.75 | D44: 416.25 | E44: 354.75 | F44: 1002.25 | G44: 309.79 | H44: 370.27 | I44: 477.81 | J44: 927.72 | K44: 311.25 | L44: 618.33 | M44: 637 | N44: 507 | O44: 631.75 | P44: 531.75 | Q44: 659.5 | R44: 542 | S44: 629.25 | T44: 497.5 | U44: 496 | V44: 494.5 | W44: 499.5 | X44: 461.5 | Y44: 462 | Z44: 462 | AA44: 462 | AB44: 396 | AC44: 383 | AD44: 468.75 | AE44: 403.75 | AF44: 334.75 | AG44: 282.5 | AH44: 295 | AI44: 414.75 | AJ44: 335.5 | AK44: 971 | AL44: 925
A45: 2016-11-01 | B45: 539.5 | C45: 391.25 | D45: 380.5 | E45: 348.5 | F45: 1032.25 | G45: 297.34 | H45: 346 | I45: 494.34 | J45: 960 | K45: 301.51 | L45: 621.53 | M45: 647 | N45: 514 | O45: 662 | P45: 539.5 | Q45: 705 | R45: 550 | S45: 644.5 | T45: 505 | U45: 512 | V45: 518.5 | W45: 510.5 | X45: 474.5 | Y45: 495 | Z45: 480 | AA45: 480 | AB45: 381 | AC45: 356.5 | AD45: 441.25 | AE45: 368 | AF45: 326.25 | AG45: 270.5 | AH45: 286 | AI45: 390.25 | AJ45: 322 | AK45: 1003.5 | AL45: 953.5
A46: 2016-12-01 | B46: 538 | C46: 418.5 | D46: 408 | E46: 352 | F46: 996.5 | G46: 319.48 | H46: 364.92 | I46: 502.83 | J46: 931.37 | K46: 315.35 | L46: 606.86 | M46: 638 | N46: 518 | O46: 670.5 | P46: 543 | Q46: 703 | R46: 553 | S46: 653 | T46: 528.5 | U46: 535.5 | V46: 526.5 | W46: 526 | X46: 499 | Y46: 513 | Z46: 488 | AA46: 488 | AB46: 398 | AC46: 378 | AD46: 450 | AE46: 392 | AF46: 351.5 | AG46: 295.5 | AH46: 311.5 | AI46: 398.5 | AJ46: 337 | AK46: 977 | AL46: 924
A47: 2017-01-01 | B47: 548.5 | C47: 429.5 | D47: 420.75 | E47: 359.75 | F47: 1024.5 | G47: 339.04 | H47: 384.08 | I47: 509.07 | J47: 948.8 | K47: 324.27 | L47: 582.12 | M47: 618 | N47: 532 | O47: 645 | P47: 557.5 | Q47: 700 | R47: 568 | S47: 673 | T47: 513 | U47: 539 | V47: 545.5 | W47: 509 | X47: 495 | Y47: 508 | Z47: 488 | AA47: 483 | AB47: 416 | AC47: 397 | AD47: 477.25 | AE47: 407.25 | AF47: 368.5 | AG47: 317.5 | AH47: 325 | AI47: 399.5 | AJ47: 343 | AK47: 995 | AL47: 937
A48: 2017-02-01 | B48: 539.75 | C48: 451.25 | D48: 424.75 | E48: 373.75 | F48: 1025 | G48: 362.21 | H48: 396.02 | I48: 509.13 | J48: 952.89 | K48: 330.74 | L48: 573.9 | M48: 580 | N48: 535 | O48: 645.25 | P48: 560.25 | Q48: 685 | R48: 570 | S48: 670.25 | T48: 511 | U48: 531.5 | V48: 528.5 | W48: 512 | X48: 497 | Y48: 500 | Z48: 490 | AA48: 485 | AB48: 426.5 | AC48: 404 | AD48: 481.25 | AE48: 418.75 | AF48: 407.25 | AG48: 346 | AH48: 348.5 | AI48: 426.25 | AJ48: 350 | AK48: 995 | AL48: 942.5
A49: 2017-03-01 | B49: 534.25 | C49: 420.5 | D49: 426.5 | E49: 364.25 | F49: 946 | G49: 330.55 | H49: 385.09 | I49: 493.83 | J49: 870.58 | K49: 326.53 | L49: 530.69 | M49: 614 | N49: 529 | O49: 611.75 | P49: 544.25 | Q49: 659 | R49: 554 | S49: 651.75 | T49: 506.5 | U49: 532 | V49: 535 | W49: 513.5 | X49: 482.5 | Y49: 484 | Z49: 479 | AA49: 474 | AB49: 418 | AC49: 401 | AD49: 475.5 | AE49: 410 | AF49: 375.5 | AG49: 311 | AH49: 316 | AI49: 450.5 | AJ49: 339 | AK49: 910.5 | AL49: 862
A50: 2017-04-01 | B50: 540.75 | C50: 424.75 | D50: 418.5 | E50: 366.5 | F50: 945.25 | G50: 341.7 | H50: 384 | I50: 509.51 | J50: 878.47 | K50: 325 | L50: 546.74 | M50: 660 | N50: 545 | O50: 649.75 | P50: 559.75 | Q50: 700 | R50: 570 | S50: 655.75 | T50: 520.5 | U50: 551 | V50: 549.5 | W50: 534.5 | X50: 497.5 | Y50: 510 | Z50: 500 | AA50: 495 | AB50: 427 | AC50: 397 | AD50: 468 | AE50: 412.875 | AF50: 391.75 | AG50: 326 | AH50: 335 | AI50: 459.75 | AJ50: 338 | AK50: 915 | AL50: 873
A51: 2017-05-01 | B51: 572 | C51: 431.75 | D51: 429.25 | E51: 372 | F51: 916 | G51: 354.8 | H51: 396.7 | I51: 532.78 | J51: 850.16 | K51: 335.34 | L51: 545.63 | M51: 649.5 | N51: 567 | O51: 662 | P51: 582 | Q51: 727 | R51: 592 | S51: 684.5 | T51: 544.5 | U51: 571.5 | V51: 572 | W51: 554 | X51: 533.5 | Y51: 522 | Z51: 522 | AA51: 522 | AB51: 417.5 | AC51: 413.5 | AD51: 475.75 | AE51: 417.75 | AF51: 396.75 | AG51: 336.5 | AH51: 334.5 | AI51: 479.25 | AJ51: 349 | AK51: 888 | AL51: 844
A52: 2017-06-01 | B52: 767.75 | C52: 511.25 | D52: 511 | E52: 381 | F52: 942.25 | G52: 455.01 | H52: 495.05 | I52: 730.17 | J52: 880.67 | K52: 334.76 | L52: 678.04 | M52: 844.5 | N52: 762 | O52: 881.75 | P52: 786.75 | Q52: 954.5 | R52: 797 | S52: 880.25 | T52: 749.5 | U52: 768.5 | V52: 770 | W52: 756 | X52: 730 | Y52: 727 | Z52: 727 | AA52: 727 | AB52: 530.5 | AC52: 510 | AD52: 563.5 | AE52: 503.5 | AF52: 491.25 | AG52: 448.5 | AH52: 416 | AI52: 568.75 | AJ52: 351.5 | AK52: 918.5 | AL52: 875.5
A53: 2017-07-01 | B53: 731.25 | C53: 474.75 | D53: 474.5 | E53: 384.75 | F53: 994.5 | G53: 409.97 | H53: 445.12 | I53: 691.3 | J53: 934.81 | K53: 327.91 | L53: 817.92 | M53: 786 | N53: 711 | O53: 808.75 | P53: 736.25 | Q53: 871 | R53: 746 | S53: 828.75 | T53: 707 | U53: 730 | V53: 729.5 | W53: 715.5 | X53: 693.5 | Y53: 686 | Z53: 691 | AA53: 696 | AB53: 477 | AC53: 454 | AD53: 511 | AE53: 463.5 | AF53: 424.75 | AG53: 395 | AH53: 370 | AI53: 512.25 | AJ53: 340.5 | AK53: 970 | AL53: 928
A54: 2017-08-01 | B54: 618.5 | C54: 408.75 | D54: 410.25 | E54: 357.75 | F54: 936.25 | G54: 346.45 | H54: 386.46 | I54: 586.4 | J54: 882.7 | K54: 307.86 | L54: 652.14 | M54: 701 | N54: 616 | O54: 725.5 | P54: 640.5 | Q54: 755 | R54: 650 | S54: 724.5 | T54: 598.5 | U54: 624.5 | V54: 629 | W54: 606.5 | X54: 589 | Y54: 586 | Z54: 591 | AA54: 596 | AB54: 414 | AC54: 399.5 | AD54: 462.5 | AE54: 410.25 | AF54: 356.25 | AG54: 335 | AH54: 319 | AI54: 446.25 | AJ54: 320 | AK54: 914 | AL54: 881
A55: 2017-09-01 | B55: 623.75 | C55: 442.75 | D55: 448.25 | E55: 355.25 | F55: 968.25 | G55: 366.13 | H55: 403.07 | I55: 577.24 | J55: 890.41 | K55: 309.89 | L55: 650 | M55: 689 | N55: 604 | O55: 713.75 | P55: 628.75 | Q55: 761.5 | R55: 639 | S55: 743.75 | T55: 613.5 | U55: 614.5 | V55: 622 | W55: 619.5 | X55: 589.5 | Y55: 564 | Z55: 559 | AA55: 559 | AB55: 418 | AC55: 410 | AD55: 493.25 | AE55: 435.75 | AF55: 374.75 | AG55: 350.5 | AH55: 338 | AI55: 490.25 | AJ55: 319 | AK55: 926.5 | AL55: 884.5
A56: 2017-10-01 | B56: 612.75 | C56: 416.5 | D56: 418.5 | E56: 345.75 | F56: 973.75 | G56: 348.89 | H56: 383.55 | I56: 578.07 | J56: 895.49 | K56: 303.35 | L56: 641.09 | M56: 685.5 | N56: 598 | O56: 742.75 | P56: 622.75 | Q56: 800.5 | R56: 633 | S56: 740.25 | T56: 600.5 | U56: 621 | V56: 625.5 | W56: 609.5 | X56: 578 | Y56: 563 | Z56: 573 | AA56: 573 | AB56: 413 | AC56: 390 | AD56: 466 | AE56: 410.5 | AF56: 348.5 | AG56: 332 | AH56: 317.5 | AI56: 464 | AJ56: 313 | AK56: 931.5 | AL56: 893
A57: 2017-11-01 | B57: 601.25 | C57: 414.5 | D57: 409.25 | E57: 355.75 | F57: 985.75 | G57: 364.03 | H57: 389.33 | I57: 588.76 | J57: 912.67 | K57: 309.83 | L57: 629.72 | M57: 677.5 | N57: 602 | O57: 751.75 | P57: 626.75 | Q57: 807 | R57: 637 | S57: 731.75 | T57: 612 | U57: 625 | V57: 628.5 | W57: 620.5 | X57: 588 | Y57: 587 | Z57: 566 | AA57: 566 | AB57: 430 | AC57: 395 | AD57: 468.75 | AE57: 406.75 | AF57: 382 | AG57: 348.5 | AH57: 350 | AI57: 482 | AJ57: 314 | AK57: 947 | AL57: 905.5
A58: 2017-12-01 | B58: 614.75 | C58: 427.25 | D58: 427 | E58: 350.75 | F58: 951.75 | G58: 376.48 | H58: 394.52 | I58: 591.31 | J58: 885.77 | K58: 315.41 | L58: 626.39 | M58: 676 | N58: 600 | O58: 739.75 | P58: 624.75 | Q58: 802.5 | R58: 635 | S58: 734.75 | T58: 609 | U58: 621.5 | V58: 631.5 | W58: 617 | X58: 591.5 | Y58: 595 | Z58: 580 | AA58: 580 | AB58: 432 | AC58: 412 | AD58: 475.5 | AE58: 415.5 | AF58: 410.25 | AG58: 359.5 | AH58: 363 | AI58: 512.25 | AJ58: 323 | AK58: 919 | AL58: 878.5
A59: 2018-01-01 | B59: 607.25 | C59: 467.25 | D59: 451.75 | E59: 361.5 | F59: 995.75 | G59: 426.13 | H59: 422.7 | I59: 590.13 | J59: 927.37 | K59: 330.26 | L59: 608.95 | M59: 689.5 | N59: 597 | O59: 719.75 | P59: 622.25 | Q59: 774.5 | R59: 632 | S59: 727.25 | T59: 603.5 | U59: 619.5 | V59: 623.5 | W59: 610.5 | X59: 589.5 | Y59: 592 | Z59: 577 | AA59: 577 | AB59: 458.5 | AC59: 456.5 | AD59: 504.75 | AE59: 446.75 | AF59: 457.25 | AG59: 414.5 | AH59: 404.5 | AI59: 550.75 | AJ59: 342 | AK59: 961 | AL59: 920
A60: 2018-02-01 | B60: 606 | C60: 508.25 | D60: 484.5 | E60: 382 | F60: 1045 | G60: 469.45 | H60: 458.46 | I60: 598.82 | J60: 976.22 | K60: 345.38 | L60: 596.5 | M60: 722 | N60: 612 | O60: 756.75 | P60: 636.75 | Q60: 789.5 | R60: 647 | S60: 736 | T60: 613 | U60: 618.5 | V60: 626 | W60: 611.5 | X60: 592 | Y60: 602 | Z60: 587 | AA60: 587 | AB60: 496.5 | AC60: 480 | AD60: 554.5 | AE60: 484.5 | AF60: 508.25 | AG60: 461.5 | AH60: 445.5 | AI60: 596.5 | AJ60: 355.5 | AK60: 1010.5 | AL60: 966
A61: 2018-03-01 | B61: 578.5 | C61: 467.25 | D61: 451 | E61: 387.75 | F61: 1044.75 | G61: 425.78 | H61: 420.91 | I61: 562.36 | J61: 967.16 | K61: 350.75 | L61: 597.25 | M61: 681 | N61: 584 | O61: 728.5 | P61: 608.5 | Q61: 763 | R61: 618 | S61: 703.5 | T61: 580.5 | U61: 580.5 | V61: 593 | W61: 576.5 | X61: 558 | Y61: 579 | Z61: 554 | AA61: 554 | AB61: 452 | AC61: 453.5 | AD61: 518.5 | AE61: 453.5 | AF61: 457.25 | AG61: 414.5 | AH61: 394.5 | AI61: 558.75 | AJ61: 352.5 | AK61: 991.5 | AL61: 959
A62: 2018-04-01 | B62: 617.75 | C62: 518.5 | D62: 512.5 | E62: 400.75 | F62: 1037.75 | G62: 484.26 | H62: 479.28 | I62: 606.62 | J62: 971.65 | K62: 363.15 | L62: 573.89 | M62: 743 | N62: 616 | O62: 763 | P62: 640.5 | Q62: 816 | R62: 650 | S62: 769.75 | T62: 613 | U62: 636 | V62: 642 | W62: 622 | X62: 600.5 | Y62: 618 | Z62: 593 | AA62: 593 | AB62: 454 | AC62: 488 | AD62: 580 | AE62: 513 | AF62: 518.5 | AG62: 478.5 | AH62: 446.5 | AI62: 625 | AJ62: 365.5 | AK62: 1001 | AL62: 963
A63: 2018-05-01 | B63: 612 | C63: 542.5 | D63: 526.25 | E63: 394 | F63: 1018.5 | G63: 509.42 | H63: 498.8 | I63: 600.32 | J63: 953.96 | K63: 361.53 | L63: 576.54 | M63: 729.5 | N63: 622 | O63: 739.5 | P63: 647 | Q63: 772 | R63: 657 | S63: 764.5 | T63: 616.5 | U63: 625 | V63: 637.5 | W63: 621.5 | X63: 597 | Y63: 612 | Z63: 587 | AA63: 587 | AB63: 539.5 | AC63: 514 | AD63: 580.75 | AE63: 532.75 | AF63: 536 | AG63: 503 | AH63: 470.5 | AI63: 637.5 | AJ63: 366.5 | AK63: 982 | AL63: 943.5
A64: 2018-06-01 | B64: 521.5 | C64: 470.75 | D64: 497.5 | E64: 371.25 | F64: 858.5 | G64: 471.52 | H64: 476.84 | I64: 513.39 | J64: 799.74 | K64: 324.29 | L64: 547.14 | M64: 647 | N64: 552 | O64: 676.5 | P64: 576.75 | Q64: 704.5 | R64: 587 | S64: 661.5 | T64: 539 | U64: 526 | V64: 534.5 | W64: 531.5 | X64: 502 | Y64: 522 | Z64: 497 | AA64: 497 | AB64: 517 | AC64: 497.5 | AD64: 558 | AE64: 501.25 | AF64: 515.75 | AG64: 453.5 | AH64: 426 | AI64: 575.75 | AJ64: 326 | AK64: 828 | AL64: 793.5
A65: 2018-07-01 | B65: 606.25 | C65: 556.5 | D65: 553.75 | E65: 386.5 | F65: 903.75 | G65: 538.86 | H65: 526.07 | I65: 565.49 | J65: 840.69 | K65: 341.81 | L65: 494.46 | M65: 647 | N65: 566 | O65: 708.75 | P65: 616.25 | Q65: 746 | R65: 641 | S65: 703.75 | T65: 575 | U65: 573 | V65: 582 | W65: 583.5 | X65: 546.5 | Y65: 571 | Z65: 561 | AA65: 561 | AB65: 557.5 | AC65: 543.5 | AD65: 608.75 | AE65: 560.75 | AF65: 586.5 | AG65: 529.5 | AH65: 517 | AI65: 631.5 | AJ65: 339.5 | AK65: 872 | AL65: 836.5
A66: 2018-08-01 | B66: 583.75 | C66: 523 | D66: 518.5 | E66: 365 | F66: 833 | G66: 507.98 | H66: 492.97 | I66: 535.52 | J66: 748.12 | K66: 319.39 | L66: 491.43 | M66: 671.5 | N66: 559 | O66: 678.75 | P66: 573.75 | Q66: 694 | R66: 589 | S66: 676.25 | T66: 544.5 | U66: 552.5 | V66: 553 | W66: 550 | X66: 513 | Y66: 539 | Z66: 524 | AA66: 524 | AB66: 505.5 | AC66: 499 | AD66: 576 | AE66: 530.5 | AF66: 553 | AG66: 498 | AH66: 490.5 | AI66: 608.125 | AJ66: 312.5 | AK66: 781.5 | AL66: 741.5
A67: 2018-09-01 | B67: 572.5 | C67: 511.25 | D67: 509 | E67: 356.25 | F67: 845.5 | G67: 471.94 | H67: 465.98 | I67: 511.51 | J67: 743.59 | K67: 312.67 | L67: 464.66 | M67: 653 | N67: 542 | O67: 660 | P67: 557.5 | Q67: 663 | R67: 572 | S67: 657.5 | T67: 529.5 | U67: 527 | V67: 536 | W67: 527.5 | X67: 497 | Y67: 513 | Z67: 498 | AA67: 498 | AB67: 474 | AC67: 526 | AD67: 549 | AE67: 499 | AF67: 511.25 | AG67: 458.5 | AH67: 456 | AI67: 571.25 | AJ67: 307.5 | AK67: 774 | AL67: 739
A68: 2018-10-01 | B68: 569.25 | C68: 493.25 | D68: 500.5 | E68: 363.25 | F68: 839 | G68: 460.57 | H68: 468.85 | I68: 519.41 | J68: 744.47 | K68: 324.98 | L68: 458.33 | M68: 681.5 | N68: 564 | O68: 694.25 | P68: 574.25 | Q68: 699 | R68: 579 | S68: 661.75 | T68: 531.5 | U68: 545 | V68: 547.5 | W68: 532.5 | X68: 504 | Y68: 524 | Z68: 504 | AA68: 499 | AB68: 493 | AC68: 513 | AD68: 566 | AE68: 492.5 | AF68: 503.25 | AG68: 443 | AH68: 463 | AI68: 563.25 | AJ68: 329 | AK68: 775.5 | AL68: 739.5
A69: 2018-11-01 | B69: 583.25 | C69: 486.5 | D69: 515.75 | E69: 377.75 | F69: 894.75 | G69: 462.34 | H69: 486.02 | I69: 543.24 | J69: 807.42 | K69: 338.47 | L69: 457.59 | M69: 676 | N69: 586 | O69: 715.75 | P69: 595.75 | Q69: 718.5 | R69: 601 | S69: 693.75 | T69: 541 | U69: 563.5 | V69: 570 | W69: 551 | X69: 528 | Y69: 541 | Z69: 531 | AA69: 531 | AB69: 534 | AC69: 503.5 | AD69: 592.25 | AE69: 515.75 | AF69: 501.5 | AG69: 445 | AH69: 476 | AI69: 556.5 | AJ69: 342 | AK69: 849 | AL69: 795
A70: 2018-12-01 | B70: 549 | C70: 488.75 | D70: 503.25 | E70: 375 | F70: 882.5 | G70: 457.59 | H70: 477.57 | I70: 505.77 | J70: 800.99 | K70: 341.83 | L70: 456.36 | M70: 649 | N70: 559 | O70: 641.5 | P70: 569 | Q70: 701.5 | R70: 574 | S70: 649 | T70: 506.5 | U70: 526.5 | V70: 527.5 | W70: 525 | X70: 494 | Y70: 509 | Z70: 494 | AA70: 494 | AB70: 536 | AC70: 503.5 | AD70: 580.75 | AE70: 498.25 | AF70: 503.75 | AG70: 445 | AH70: 476.5 | AI70: 556.25 | AJ70: 346 | AK70: 834.5 | AL70: 794
A71: 2019-01-01 | B71: 570 | C71: 499 | D71: 516.5 | E71: 376.5 | F71: 915.25 | G71: 476.03 | H71: 494.16 | I71: 531.82 | J71: 825.38 | K71: 346.92 | L71: 458.67 | M71: 697.5 | N71: 575 | O71: 700 | P71: 585 | Q71: 690 | R71: 590 | S71: 665 | T71: 536 | U71: 544 | V71: 551.5 | W71: 540 | X71: 507 | Y71: 535 | Z71: 515 | AA71: 515 | AB71: 546.5 | AC71: 515 | AD71: 600 | AE71: 511.5 | AF71: 506.5 | AG71: 457.5 | AH71: 495 | AI71: 566.5 | AJ71: 350.5 | AK71: 858 | AL71: 820.5
A72: 2019-02-01 | B72: 567 | C72: 441 | D72: 452.5 | E72: 362 | F72: 897.5 | G72: 423.56 | H72: 434.76 | I72: 525.84 | J72: 816.39 | K72: 337.53 | L72: 472.59 | M72: 716.25 | N72: 579.25 | O72: 719.25 | P72: 579.25 | Q72: 729.25 | R72: 579.25 | S72: 669.25 | T72: 534.5 | U72: 536 | V72: 536.5 | W72: 533 | X72: 499 | Y72: 534 | Z72: 509 | AA72: 504 | AB72: 483 | AC72: 456 | AD72: 552.5 | AE72: 447.5 | AF72: 448.5 | AG72: 402.5 | AH72: 438.5 | AI72: 566 | AJ72: 336 | AK72: 852 | AL72: 806.5
A73: 2019-03-01 | B73: 554.75 | C73: 430 | D73: 457.75 | E73: 356.5 | F73: 884.25 | G73: 416.01 | H73: 435.34 | I73: 521.14 | J73: 797.51 | K73: 330.25 | L73: 466.3 | M73: 676.75 | N73: 579.75 | O73: 679.75 | P73: 579.75 | Q73: 709.75 | R73: 579.75 | S73: 677.25 | T73: 529.5 | U73: 532.5 | V73: 536.5 | W73: 533 | X73: 500 | Y73: 530 | Z73: 505 | AA73: 500 | AB73: 487.5 | AC73: 458 | AD73: 549.75 | AE73: 450.25 | AF73: 440 | AG73: 388.5 | AH73: 432 | AI73: 551 | AJ73: 331 | AK73: 826.5 | AL73: 784.5
A74: 2019-04-01 | B74: 490.25 | C74: 386.25 | D74: 418.5 | E74: 353.25 | F74: 841.25 | G74: 376.89 | H74: 402.21 | I74: 464.8 | J74: 764.94 | K74: 335.35 | L74: 458.64 | M74: 596.5 | N74: 527 | O74: 596.5 | P74: 527 | Q74: 639.5 | R74: 527 | S74: 600.25 | T74: 478.5 | U74: 480.5 | V74: 484 | W74: 479.5 | X74: 434 | Y74: 472 | Z74: 457 | AA74: 452 | AB74: 457 | AC74: 424 | AD74: 509.5 | AE74: 411 | AF74: 398.75 | AG74: 351.5 | AH74: 377.5 | AI74: 484 | AJ74: 334.5 | AK74: 796 | AL74: 757.5
A75: 2019-05-01 | B75: 552 | C75: 473 | D75: 503 | E75: 427 | F75: 877.75 | G75: 454.81 | H75: 482.63 | I75: 506.67 | J75: 796.04 | K75: 400.33 | L75: 464.17 | M75: 632 | N75: 577 | O75: 642 | P75: 577 | Q75: 652 | R75: 577 | S75: 644.5 | T75: 514.5 | U75: 513 | V75: 520.5 | W75: 516.5 | X75: 477 | Y75: 517 | Z75: 502 | AA75: 497 | AB75: 538.5 | AC75: 513 | AD75: 595.5 | AE75: 496.5 | AF75: 481.5 | AG75: 430.5 | AH75: 440.5 | AI75: 570.5 | AJ75: 404.5 | AK75: 829.5 | AL75: 805
A76: 2019-06-01 | B76: 554.25 | C76: 451.5 | D76: 528 | E76: 420.25 | F76: 899.75 | G76: 433.33 | H76: 515.17 | I76: 504.58 | J76: 826 | K76: 405.79 | L76: 473.26 | M76: 654.25 | N76: 574.25 | O76: 664.25 | P76: 574.25 | Q76: 697.75 | R76: 574.25 | S76: 634.25 | T76: 490 | U76: 505 | V76: 510.5 | W76: 506.5 | X76: 470.5 | Y76: 519 | Z76: 494 | AA76: 489 | AB76: 553 | AC76: 528 | AD76: 597.75 | AE76: 550.75 | AF76: 465 | AG76: 419.5 | AH76: 417 | AI76: 549 | AJ76: 416 | AK76: 866.5 | AL76: 818
A77: 2019-07-01 | B77: 519.5 | C77: 422.75 | D77: 487.25 | E77: 400.25 | F77: 864 | G77: 400.55 | H77: 470.48 | I77: 472.95 | J77: 796.52 | K77: 391.79 | L77: 469.17 | M77: 604.5 | N77: 524.5 | O77: 612 | P77: 524.5 | Q77: 622 | R77: 524.5 | S77: 594.5 | T77: 455 | U77: 471.5 | V77: 475 | W77: 465.5 | X77: 424 | Y77: 485 | Z77: 475 | AA77: 470 | AB77: 472 | AC77: 462 | AD77: 534.75 | AE77: 509.75 | AF77: 430.25 | AG77: 376.5 | AH77: 395.5 | AI77: 516.75 | AJ77: 398.5 | AK77: 842 | AL77: 787.5
A78: 2019-08-01 | B78: 476.5 | C78: 378.25 | D78: 451.25 | E78: 358 | F78: 857 | G78: 362.34 | H78: 440.26 | I78: 433.38 | J78: 786.33 | K78: 352.61 | L78: 466.59 | M78: 566.25 | N78: 476.75 | O78: 574.25 | P78: 476.75 | Q78: 601.75 | R78: 476.75 | S78: 551.5 | T78: 422 | U78: 432 | V78: 446.5 | W78: 431 | X78: 391 | Y78: 442 | Z78: 422 | AA78: 417 | AB78: 453 | AC78: 448 | AD78: 513.75 | AE78: 478.375 | AF78: 385.75 | AG78: 342.5 | AH78: 361 | AI78: 472.25 | AJ78: 354.5 | AK78: 828 | AL78: 786
A79: 2019-09-01 | B79: 544.5 | C79: 415 | D79: 495.75 | E79: 388 | F79: 906 | G79: 388.66 | H79: 480.18 | I79: 501.81 | J79: 824.86 | K79: 371.55 | L79: 529.46 | M79: 545 | N79: 554.5 | O79: 657 | P79: 554.5 | Q79: 692 | R79: 554.5 | S79: 649.5 | T79: 497.5 | U79: 504 | V79: 509 | W79: 485.5 | X79: 470.5 | Y79: 510 | Z79: 485 | AA79: 480 | AB79: 480 | AC79: 484 | AD79: 563.25 | AE79: 512.75 | AF79: 414 | AG79: 362.5 | AH79: 395 | AI79: 532.5 | AJ79: 376.5 | AK79: 865 | AL79: 822.5
A80: 2019-10-01 | B80: 524 | C80: 419.75 | D80: 508.75 | E80: 390 | F80: 916.75 | G80: 395.81 | H80: 495.88 | I80: 503.78 | J80: 852.13 | K80: 373.67 | L80: 619.48 | M80: 684 | N80: 539 | O80: 696.5 | P80: 539 | Q80: 724 | R80: 539 | S80: 654 | T80: 510.5 | U80: 523.5 | V80: 539 | W80: 531 | X80: 477.5 | Y80: 479 | Z80: 479 | AA80: 474 | AB80: 503 | AC80: 519.5 | AD80: 579.75 | AE80: 524.25 | AF80: 419.75 | AG80: 367.5 | AH80: 407.5 | AI80: 547.25 | AJ80: 381 | AK80: 897.5 | AL80: 843.5
A81: 2019-11-01 | B81: 494.5 | C81: 438.75 | D81: 547.5 | E81: 371.25 | F81: 876.75 | G81: 414.47 | H81: 538.67 | I81: 493.59 | J81: 815.28 | K81: 358.77 | L81: 611.74 | M81: 567.5 | N81: 519.5 | O81: 680 | P81: 519.5 | Q81: 697 | R81: 519.5 | S81: 654.5 | T81: 516 | U81: 521 | V81: 532 | W81: 520 | X81: 488 | Y81: 470 | Z81: 465 | AA81: 460 | AB81: 587 | AC81: 548.5 | AD81: 645 | AE81: 560.625 | AF81: 441.25 | AG81: 387.5 | AH81: 426.5 | AI81: 566.25 | AJ81: 366.5 | AK81: 858.25 | AL81: 802.25
A82: 2019-12-01 | B82: 561 | C82: 486 | D82: 558.75 | E82: 387.75 | F82: 955.5 | G82: 455.23 | H82: 551.42 | I82: 540.34 | J82: 893.06 | K82: 371.12 | L82: 604.47 | M82: 666 | N82: 606 | O82: 706 | P82: 606 | Q82: 726 | R82: 606 | S82: 713.5 | T82: 567.5 | U82: 561 | V82: 573.5 | W82: 566.5 | X82: 531 | Y82: 556 | Z82: 526 | AA82: 521 | AB82: 623 | AC82: 570.5 | AD82: 663.75 | AE82: 571.25 | AF82: 483.5 | AG82: 432.5 | AH82: 466 | AI82: 613.5 | AJ82: 380 | AK82: 937 | AL82: 886.5
A83: 2020-01-01 | B83: 533.75 | C83: 465.5 | D83: 553.75 | E83: 381.25 | F83: 872.5 | G83: 439.15 | H83: 550.45 | I83: 512.56 | J83: 818.73 | K83: 367.91 | L83: 612.26 | M83: 643.75 | N83: 568.75 | O83: 683.75 | P83: 568.75 | Q83: 676.25 | R83: 568.75 | S83: 686.25 | T83: 537.5 | U83: 524 | V83: 543.5 | W83: 538 | X83: 496.5 | Y83: 519 | Z83: 499 | AA83: 494 | AB83: 618 | AC83: 567.5 | AD83: 663.75 | AE83: 566.25 | AF83: 465.5 | AG83: 415 | AH83: 447 | AI83: 585.5 | AJ83: 376 | AK83: 854.5 | AL83: 810.5
A84: 2020-02-01 | B84: 511.25 | C84: 445.5 | D84: 529 | E84: 366.5 | F84: 883.5 | G84: 422.69 | H84: 519.68 | I84: 502.23 | J84: 838.31 | K84: 355.02 | L84: 623.75 | M84: 622.5 | N84: 552.5 | O84: 662.5 | P84: 552.5 | Q84: 670 | R84: 552.5 | S84: 668.75 | T84: 515 | U84: 509.5 | V84: 539 | W84: 524 | X84: 490 | Y84: 513 | Z84: 488 | AA84: 483 | AB84: 564 | AC84: 540 | AD84: 629 | AE84: 539.5 | AF84: 450.5 | AG84: 402 | AH84: 431 | AI84: 565.5 | AJ84: 365 | AK84: 875 | AL84: 831
A85: 2020-03-01 | B85: 539.25 | C85: 493 | D85: 568.75 | E85: 340.75 | F85: 886 | G85: 468.8 | H85: 549.63 | I85: 522.82 | J85: 840.4 | K85: 314.76 | L85: 589.5 | M85: 661.75 | N85: 564.25 | O85: 664.25 | P85: 564.25 | Q85: 698.25 | R85: 564.25 | S85: 694.25 | T85: 535.5 | U85: 542 | V85: 567 | W85: 551 | X85: 509 | Y85: 529 | Z85: 504 | AA85: 499 | AB85: 588 | AC85: 569.5 | AD85: 656.25 | AE85: 558.75 | AF85: 498 | AG85: 446.5 | AH85: 478 | AI85: 604.5 | AJ85: 324.5 | AK85: 874 | AL85: 834.5
A86: 2020-04-01 | B86: 500.5 | C86: 482.25 | D86: 529.75 | E86: 311.5 | F86: 850.25 | G86: 458.68 | H86: 504.66 | I86: 488.51 | J86: 807.63 | K86: 286.87 | L86: 587 | M86: 610.5 | N86: 530.5 | O86: 615.5 | P86: 530.5 | Q86: 655.5 | R86: 530.5 | S86: 645.5 | T86: 489 | U86: 515.5 | V86: 521.5 | W86: 502.5 | X86: 465 | Y86: 486 | Z86: 466 | AA86: 461 | AB86: 549 | AC86: 524 | AD86: 592.25 | AE86: 522.25 | AF86: 494.75 | AG86: 441.5 | AH86: 465 | AI86: 583 | AJ86: 295 | AK86: 841.5 | AL86: 803.5
A87: 2020-05-01 | B87: 525 | C87: 470.5 | D87: 520.75 | E87: 325.75 | F87: 840.75 | G87: 443.86 | H87: 500.07 | I87: 494.25 | J87: 795.1 | K87: 301.08 | L87: 598.57 | M87: 660 | N87: 545 | O87: 665 | P87: 545 | Q87: 685 | R87: 545 | S87: 657.5 | T87: 507.5 | U87: 524.5 | V87: 531.5 | W87: 514.5 | X87: 487.5 | Y87: 495 | Z87: 483 | AA87: 478 | AB87: 534 | AC87: 524 | AD87: 583.25 | AE87: 515.75 | AF87: 483 | AG87: 424.5 | AH87: 448.5 | AI87: 575.5 | AJ87: 309 | AK87: 827 | AL87: 792
A88: 2020-06-01 | B88: 509.25 | C88: 435.5 | D88: 490 | E88: 338.5 | F88: 884.25 | G88: 417.36 | H88: 473.17 | I88: 491.68 | J88: 835.74 | K88: 319.18 | L88: 605.56 | M88: 625 | N88: 535.25 | O88: 630.25 | P88: 535.25 | Q88: 677.75 | R88: 535.25 | S88: 634.25 | T88: 501 | U88: 507.5 | V88: 510.5 | W88: 502 | X88: 467 | Y88: 495 | Z88: 467 | AA88: 462 | AB88: 500 | AC88: 495 | AD88: 536 | AE88: 495.75 | AF88: 448 | AG88: 406.5 | AH88: 423 | AI88: 528 | AJ88: 328.5 | AK88: 866.5 | AL88: 830.5
A89: 2020-07-01 | B89: 514 | C89: 442.5 | D89: 531.25 | E89: 316 | F89: 897.5 | G89: 422.98 | H89: 509.99 | I89: 476.06 | J89: 845.29 | K89: 294.52 | L89: 591.21 | M89: 594 | N89: 519 | O89: 604 | P89: 519 | Q89: 649 | R89: 519 | S89: 614 | T89: 485.5 | U89: 487 | V89: 489 | W89: 492.5 | X89: 446.5 | Y89: 479 | Z89: 464 | AA89: 459 | AB89: 548.5 | AC89: 535.875 | AD89: 592.25 | AE89: 542 | AF89: 462.5 | AG89: 411 | AH89: 438 | AI89: 535 | AJ89: 303.5 | AK89: 876 | AL89: 839
A90: 2020-08-01 | B90: 518.5 | C90: 470.5 | D90: 544.25 | E90: 348.5 | F90: 951.25 | G90: 447.86 | H90: 522.5 | I90: 494.25 | J90: 900.59 | K90: 326.44 | L90: 545.54 | M90: 659.5 | N90: 528.5 | O90: 679.5 | P90: 528.5 | Q90: 689.5 | R90: 528.5 | S90: 618.5 | T90: 491 | U90: 486.25 | V90: 491 | W90: 500 | X90: 459.9 | Y90: 450.25 | Z90: 450.25 | AA90: 447.75 | AB90: 558.92 | AC90: 548.92 | AD90: 596.25 | AE90: 546.25 | AF90: 487.88 | AG90: 433.25 | AH90: 456.85 | AI90: 563 | AJ90: 338.75 | AK90: 938 | AL90: 896.4
A91: 2020-09-01 | B91: 540.25 | C91: 509.75 | D91: 578 | E91: 379 | F91: 1023.5 | G91: 483.5 | H91: 552.71 | I91: 507.81 | J91: 968.49 | K91: 352.38 | L91: 534.11 | M91: 652 | N91: 550.25 | O91: 672.75 | P91: 550.25 | Q91: 735.25 | R91: 550.25 | S91: 662.75 | T91: 484 | U91: 475.33 | V91: 470.75 | W91: 486 | X91: 451.1 | Y91: 479.85 | Z91: 491 | AA91: 482.75 | AB91: 586 | AC91: 587 | AD91: 625.5 | AE91: 568 | AF91: 519.75 | AG91: 467.75 | AH91: 495.08 | AI91: 602.25 | AJ91: 360 | AK91: 992.5 | AL91: 948.2
A92: 2020-10-01 | B92: 552.25 | C92: 541.25 | D92: 598.5 | E92: 398.5 | F92: 1056.5 | G92: 515.22 | H92: 568.78 | I92: 523.22 | J92: 1005.99 | K92: 378.43 | L92: 561.25 | M92: 662.25 | N92: 562.25 | O92: 669.75 | P92: 562.25 | Q92: 712.25 | R92: 562.25 | S92: 687.25 | T92: 510.67 | U92: 507.75 | V92: 523 | W92: 518 | X92: 487.6 | Y92: 495.85 | Z92: 506.38 | AA92: 524.75 | AB92: 608.5 | AC92: 581.1 | AD92: 663.5 | AE92: 576 | AF92: 551.25 | AG92: 499.25 | AH92: 522.92 | AI92: 633.75 | AJ92: 385 | AK92: 1044.5 | AL92: 997.43
A93: 2020-11-01 | B93: 534.5 | C93: 545.75 | D93: 580.25 | E93: 419.75 | F93: 1141.5 | G93: 519.88 | H93: 559.73 | I93: 523.89 | J93: 1120.32 | K93: 406.18 | L93: 575.36 | M93: 685 | N93: 549.5 | O93: 693 | P93: 549.5 | Q93: 713 | R93: 549.5 | S93: 668 | T93: 515.67 | U93: 504.5 | V93: 520.75 | W93: 517.33 | X93: 487.6 | Y93: 488 | Z93: 504.5 | AA93: 512 | AB93: 607.75 | AC93: 578.3 | AD93: 660.25 | AE93: 560.13 | AF93: 570.75 | AG93: 507 | AH93: 525.42 | AI93: 638.25 | AJ93: 408.25 | AK93: 1158 | AL93: 1135.25
A94: 2020-12-01 | B94: 599.25 | C94: 603.5 | D94: 640.5 | E94: 484 | F94: 1315.25 | G94: 577.52 | H94: 625.01 | I94: 577.22 | J94: 1269.88 | K94: 470.32 | L94: 617.38 | M94: 724.25 | N94: 609.25 | O94: 729.25 | P94: 609.25 | Q94: 744.25 | R94: 609.25 | S94: 714.25 | T94: 557 | U94: 581 | V94: 576.75 | W94: 563.5 | X94: 542.78 | Y94: 539.25 | Z94: 553.25 | AA94: 564.25 | AB94: 673 | AC94: 618.05 | AD94: 728 | AE94: 629 | AF94: 628.5 | AG94: 565.5 | AH94: 594.33 | AI94: 696 | AJ94: 479 | AK94: 1305.5 | AL94: 1261.38
A95: 2021-01-01 | B95: 633.5 | C95: 638 | D95: 663 | E95: 547 | F95: 1370 | G95: 612.5 | H95: 643.68 | I95: 605.12 | J95: 1326.01 | K95: 529.15 | L95: 631.61 | M95: 743.5 | N95: 643.5 | O95: 743.5 | P95: 643.5 | Q95: 778.5 | R95: 643.5 | S95: 736 | T95: 599 | U95: 600 | V95: 611.5 | W95: 601.67 | X95: 565.9 | Y95: 573.5 | Z95: 586.88 | AA95: 598.5 | AB95: 700.5 | AC95: 632.33 | AD95: 760.5 | AE95: 653 | AF95: 663 | AG95: 602.5 | AH95: 629.67 | AI95: 731 | AJ95: 535 | AK95: 1358.5 | AL95: 1317.8
A96: 2021-02-01 | B96: 631 | C96: 624.75 | D96: 655 | E96: 555.5 | F96: 1404.25 | G96: 601.66 | H96: 639.55 | I96: 606.24 | J96: 1365.41 | K96: 535.29 | L96: 654.14 | M96: 753.75 | N96: 641 | O96: 758.75 | P96: 641 | Q96: 783.75 | R96: 641 | S96: 743.5 | T96: 596.5 | U96: 609 | V96: 609.25 | W96: 606.33 | X96: 588.3 | Y96: 578.75 | Z96: 598.75 | AA96: 607.75 | AB96: 692.75 | AC96: 638.17 | AD96: 760 | AE96: 650.25 | AF96: 653.75 | AG96: 598 | AH96: 622.25 | AI96: 725 | AJ96: 544 | AK96: 1394.5 | AL96: 1358.35
A97: 2021-03-01 | B97: 610.75 | C97: 575.75 | D97: 618 | E97: 564.25 | F97: 1436.75 | G97: 550.86 | H97: 599.07 | I97: 580.41 | J97: 1404.96 | K97: 553.96 | L97: 664.66 | M97: 710.75 | N97: 620.75 | O97: 730.75 | P97: 620.75 | Q97: 738.25 | R97: 620.75 | S97: 720.75 | T97: 576.67 | U97: 590 | V97: 592 | W97: 589 | X97: 569.3 | Y97: 550.75 | Z97: 564.75 | AA97: 575.75 | AB97: 645.5 | AC97: 611.08 | AD97: 718 | AE97: 608 | AF97: 605.75 | AG97: 543.25 | AH97: 568.92 | AI97: 676 | AJ97: 558.75 | AK97: 1428.25 | AL97: 1403.55
A98: 2021-04-01 | B98: 763.25 | C98: 698.25 | D98: 742.5 | E98: 740 | F98: 1571 | G98: 681.43 | H98: 722.05 | I98: 735.29 | J98: 1541.21 | K98: 691.08 | L98: 696.72 | M98: 812.5 | N98: 778.75 | O98: 832.5 | P98: 778.75 | Q98: 901.25 | R98: 778.75 | S98: 883.25 | T98: 731.33 | U98: 740.33 | V98: 740.33 | W98: 742 | X98: 710.2 | Y98: 713.25 | Z98: 723.13 | AA98: 728.25 | AB98: 762.25 | AC98: 730.08 | AD98: 836.13 | AE98: 737.25 | AF98: 728.25 | AG98: 673.5 | AH98: 692.25 | AI98: 799.25 | AJ98: 684.5 | AK98: 1551.5 | AL98: 1550.83
A99: 2021-05-01 | B99: 727.5 | C99: 613.25 | D99: 663.5 | E99: 656.75 | F99: 1530.5 | G99: 595.52 | H99: 648.51 | I99: 696.09 | J99: 1511.49 | K99: 671.72 | L99: 740 | M99: 832.5 | N99: 752.5 | O99: 852.5 | P99: 752.5 | Q99: 860 | R99: 752.5 | S99: 835 | T99: 691.5 | U99: 697.5 | V99: 699.5 | W99: 706.5 | X99: 659.25 | Y99: 677.5 | Z99: 687.13 | AA99: 697.5 | AB99: 677 | AC99: 660.83 | AD99: 731 | AE99: 666 | AF99: 640.75 | AG99: 594.5 | AH99: 607.42 | AI99: 715 | AJ99: 666.5 | AK99: 1544 | AL99: 1514.9
A100: 2021-06-01 | B100: 868.75 | C100: 650.25 | D100: 671.5 | E100: 720 | F100: 1450 | G100: 637.7 | H100: 646.09 | I100: 822.67 | J100: 1425.35 | K100: 687.61 | L100: 787.67 | M100: 959 | N100: 874.75 | O100: 979.75 | P100: 874.75 | Q100: 1007.25 | R100: 874.75 | S100: 972.08 | T100: 819.67 | U100: 815.33 | V100: 825.25 | W100: 822.83 | X100: 786.83 | Y100: 828.75 | Z100: 822.13 | AA100: 829.75 | AB100: 678 | AC100: 657.33 | AD100: 702.5 | AE100: 689.5 | AF100: 673.75 | AG100: 633 | AH100: 655.25 | AI100: 752 | AJ100: 696.5 | AK100: 1445.5 | AL100: 1435.3
A101: 2021-07-01 | B101: 904.75 | C101: 673.25 | D101: 703.75 | E101: 547 | F101: 1414.75 | G101: 657.34 | H101: 660.89 | I101: 889.99 | J101: 1379.21 | K101: 620.74 | L101: 1178.06 | M101: 1044.75 | N101: 929.75 | O101: 1054.75 | P101: 929.75 | Q101: 1057.25 | R101: 929.75 | S101: 1023.08 | T101: 872.08 | U101: 885.42 | V101: 898.5 | W101: 880.75 | X101: 863.64 | Y101: 869.75 | Z101: 880.13 | AA101: 904.75 | AB101: 685.25 | AC101: 679.42 | AD101: 728.25 | AE101: 704.25 | AF101: 701.75 | AG101: 641.25 | AH101: 668.25 | AI101: =AH101+1 -> 669.25 | AJ101: 625 | AK101: 1400.25 | AL101: 1384.25
A102: 2021-08-01 | B102: 903.75 | C102: 705.25 | D102: 706.75 | E102: 534 | F102: 1424.25 | G102: 692.74 | H102: 662.99 | I102: 894.17 | J102: 1267.7 | K102: 569.27 | L102: 1532.07 | M102: 1028.5 | N102: 918.5 | O102: 1023.5 | P102: 918.5 | Q102: 1036 | R102: 918.5 | S102: 1036.88 | T102: 872.92 | U102: 892.92 | V102: 907.83 | W102: 885.92 | X102: 867.39 | Y102: 858.75 | Z102: 875 | AA102: 903.75 | AB102: 668.75 | AC102: 668.25 | AD102: 636.5 | AE102: 699.25 | AF102: 731.25 | AG102: 671 | AH102: 703.38 | AI102: =AH102+1 -> 704.38 | AJ102: 561.25 | AK102: 1293.5 | AL102: 1255.1
A103: 2021-09-01 | B103: 912.5 | C103: 731.75 | D103: 725.5 | E103: 536.75 | F103: 1256 | G103: 714.03 | H103: 667.94 | I103: 901.29 | J103: 1206.89 | K103: 518.81 | L103: 1352.94 | M103: 1050 | N103: 927.5 | O103: 1050 | P103: 927.5 | Q103: 1070 | R103: 927.5 | S103: 1048.21 | T103: 903.93 | U103: 896.17 | V103: 899.38 | W103: 907.1 | X103: 863.5 | Y103: 867.5 | Z103: 882.13 | AA103: 912.5 | AB103: 631.5 | AC103: 692.3 | AD103: 801.5 | AE103: 703 | AF103: 757.75 | AG103: 693.5 | AH103: 723.42 | AI103: 724.42 | AJ103: 507 | AK103: 1216 | AL103: 1200.9
A104: 2021-10-01 | B104: 1052.25 | C104: 785.75 | D104: 772.75 | E104: 568.25 | F104: 1235.75 | G104: 766.99 | H104: 726.85 | I104: 1016.49 | J104: 1196.11 | K104: 551.46 | L104: 1528.24 | M104: 1192.25 | N104: 1048 | O104: 1192.25 | P104: 1048 | Q104: 1197.25 | R104: 1048 | S104: 1169.13 | T104: 1027.08 | U104: 1016.58 | V104: 1020.13 | W104: 1023.83 | X104: 971.53 | Y104: 987.25 | Z104: 1006.13 | AA104: 1052.25 | AB104: 718.75 | AC104: 747.55 | AD104: 852.75 | AE104: 752.75 | AF104: 811.75 | AG104: 747.5 | AH104: 780.75 | AI104: 781.75 | AJ104: 538 | AK104: 1201 | AL104: 1188.83
A105: 2021-11-01 | B105: 1020 | C105: 819 | D105: 773.75 | E105: 567 | F105: 1217.25 | G105: 804.83 | H105: 742.39 | I105: 981.53 | J105: 1181.21 | K105: 555.95 | L105: 1549.35 | M105: 1182.5 | N105: 1025 | O105: 1182.5 | P105: 1025 | Q105: 1180 | R105: 1025 | S105: 1121.43 | T105: 981.33 | U105: 972.67 | V105: 976.25 | W105: 977.33 | X105: 937.56 | Y105: 955 | Z105: 965.75 | AA105: 980 | AB105: 719 | AC105: 772 | AD105: 878.75 | AE105: 753.75 | AF105: 850 | AG105: 785.44 | AH105: 813.54 | AI105: 814.54 | AJ105: 555 | AK105: 1198 | AL105: 1168.95
A106: 2021-12-01 | B106: 982 | C106: 801.5 | D106: 770.75 | E106: 593.25 | F106: 1328.75 | G106: 785.62 | H106: 732.33 | I106: 952.11 | J106: 1294.41 | K106: 583.73 | L106: 1533.83 | M106: 1139.5 | N106: 1012 | O106: 1139.5 | P106: 1012 | Q106: 1182 | R106: 1012 | S106: 1092 | T106: 951.33 | U106: 942.33 | V106: 954.5 | W106: 949.33 | X106: 926.22 | Y106: 932 | Z106: 939.63 | AA106: 952 | AB106: 715 | AC106: 750.25 | AD106: 873.25 | AE106: 753.25 | AF106: 818.75 | AG106: 763.25 | AH106: 800.17 | AI106: 801.17 | AJ106: 577.25 | AK106: 1307.25 | AL106: 1279.93
A107: 2022-01-01 | B107: 906.5 | C107: 781.25 | D107: 761.25 | E107: 626 | F107: 1490.5 | G107: 774.06 | H107: 726.85 | I107: 888.35 | J107: 1143.53 | K107: 615.74 | L107: 1489.4 | M107: 1081.5 | N107: 941.5 | O107: 1081.5 | P107: 941.5 | Q107: 1081.5 | R107: 941.5 | S107: 1016.5 | T107: 870.5 | U107: 887.5 | V107: 892.75 | W107: 887.5 | X107: 870.72 | Y107: 856.5 | Z107: 870.38 | AA107: 876.5 | AB107: 778.75 | AC107: 750.5 | AD107: 881.25 | AE107: 768.75 | AF107: 802.75 | AG107: 751 | AH107: 775.92 | AI107: 776.92 | AJ107: 610 | AK107: 1467 | AL107: 1423.5
A108: 2022-02-01 | B108: 989 | C108: 954.25 | D108: 928 | E108: 697.5 | F108: 1644.25 | G108: 936.05 | H108: 892.79 | I108: 969.02 | J108: 1586.99 | K108: 676.85 | L108: 1250.63 | M108: 1104 | N108: 1034 | O108: 1141.5 | P108: 1034 | Q108: 1157 | R108: 1034 | S108: 1105.43 | T108: 972.33 | U108: 966.67 | V108: 985.75 | W108: 979 | X108: 943.11 | Y108: 944 | Z108: 954.13 | AA108: 964 | AB108: 931.5 | AC108: 892 | AD108: 1045.5 | AE108: 916 | AF108: 972.63 | AG108: 917 | AH108: 931.85 | AI108: 932.85 | AJ108: 687 | AK108: 1630.75 | AL108: 1562.3
A109: 2022-03-01 | B109: 1079.5 | C109: 1130.5 | D109: 1006 | E109: 748.75 | F109: 1618.25 | G109: 970.52 | H109: 935.97 | I109: 1038.29 | J109: 1555.11 | K109: 719.98 | L109: 1272.88 | M109: 1186.75 | N109: 1106.75 | O109: 1226.75 | P109: 1106.75 | Q109: 1206.75 | R109: 1106.75 | S109: 1163.88 | T109: 1051.17 | U109: 1040.58 | V109: 1032.44 | W109: 1048 | X109: 995.86 | Y109: 991.5 | Z109: 1011.04 | AA109: 1046.75 | AB109: 989 | AC109: 942 | AD109: 1108.5 | AE109: 963.5 | AF109: 1024.75 | AG109: 952.25 | AH109: 973.08 | AI109: 974.08 | AJ109: 727.25 | AK109: 1594.25 | AL109: 1521.43
A110: 2022-04-01 | B110: 1161.25 | C110: 1094.25 | D110: 1043.75 | E110: 818.25 | F110: 1708.25 | G110: 1049.26 | H110: 998.04 | I110: 1124.64 | J110: 1645.18 | K110: 800.16 | L110: 1279.41 | M110: 1346 | N110: 1196 | O110: 1356 | P110: 1196 | Q110: 1371 | R110: 1196 | S110: 1255.29 | T110: 1125.08 | U110: 1127.08 | V110: 1109.81 | W110: 1128.42 | X110: 1075.11 | Y110: 1123 | Z110: 1116.13 | AA110: 1136 | AB110: 1084.75 | AC110: 1000.75 | AD110: 1138.75 | AE110: 1008.75 | AF110: 1110.75 | AG110: 1035.754 | AH110: 1067.17 | AI110: 1068.17 | AJ110: 795.25 | AK110: 1690.25 | AL110: 1620.75
A111: 2022-05-01 | B111: 1247.5 | C111: 1165.5 | D111: 1087.5 | E111: 753.5 | F111: 1683.25 | G111: 1116.32 | H111: 1008.32 | I111: 1202.28 | J111: 1651.09 | K111: 751.09 | L111: 1303.09 | M111: 1387.5 | N111: 1272.5 | O111: 1397.5 | P111: 1272.5 | Q111: 1383.5 | R111: 1272.5 | S111: 1324.64 | T111: 1191.83 | U111: 1203.83 | V111: 1188.75 | W111: 1189.5 | X111: 1143.83 | Y111: 1199.5 | Z111: 1192.63 | AA111: 1217.5 | AB111: 1080 | AC111: 1016 | AD111: 1137.5 | AE111: 1060 | AF111: 1170.5 | AG111: 1099.25 | AH111: 1121.5 | AI111: 1122.5 | AJ111: 759 | AK111: 1709.25 | AL111: 1627.15
A112: 2022-06-01 | B112: 987.75 | C112: 948.75 | D112: 868.75 | E112: 743.75 | F112: 1675 | G112: 902.71 | H112: 808.91 | I112: 946.05 | J112: 1586.37 | K112: 717.34 | L112: 1133.06 | M112: 1130 | N112: 1022.75 | O112: 1170 | P112: 1022.75 | Q112: 1155 | R112: 1022.75 | S112: 1067.75 | T112: 941.58 | U112: 938.92 | V112: 939.75 | W112: 933.92 | X112: 890.33 | Y112: 936.55 | Z112: 932.63 | AA112: 957.75 | AB112: 854.88 | AC112: 808.25 | AD112: 886.75 | AE112: 843.75 | AF112: 1008.75 | AG112: 896.75 | AH112: 920.92 | AI112: 921.92 | AJ112: 790 | AK112: 1714 | AL112: 1568.65
A113: 2022-07-01 | B113: 906 | C113: 874.5 | D113: 807.75 | E113: 616.25 | F113: 1637 | G113: 824.8 | H113: 749.18 | I113: 855.13 | J113: 1538.44 | K113: 699.57 | L113: 983.59 | M113: 1036 | N113: 926 | O113: 1061 | P113: 926 | Q113: 1063.5 | R113: 926 | S113: 988.5 | T113: 878 | U113: 875 | V113: 876 | W113: 870 | X113: 816 | Y113: 848 | Z113: 846.13 | AA113: 866 | AB113: 829.25 | AC113: 747.75 | AD113: 862.75 | AE113: 782.75 | AF113: 939.5 | AG113: 819.5 | AH113: 862 | AI113: 863 | AJ113: 669 | AK113: 1564 | AL113: 1498.25
A114: 2022-08-01 | B114: 915.5 | C114: 924.25 | D114: 809 | E114: 673.75 | F114: 1507.5 | G114: 871.34 | H114: 761.05 | I114: 874.43 | J114: 1456.76 | K114: 710.54 | L114: 865.63 | M114: 1054.5 | N114: 944.5 | O114: 1074.5 | P114: 944.5 | Q114: 1094.5 | R114: 944.5 | S114: 1004.1 | T114: 867.83 | U114: 875.5 | V114: 885.75 | W114: 881.17 | X114: 826.72 | Y114: 847.5 | Z114: 852.75 | AA114: 869.5 | AB114: 814.5 | AC114: 774 | AD114: 897.5 | AE114: 897.5 | AF114: 992.5 | AG114: 860 | AH114: 907.79 | AI114: 908.79 | AJ114: 689 | AK114: 1514 | AL114: 1442.2
A115: 2022-09-01 | B115: 982 | C115: 991.5 | D115: 921.5 | E115: 677.5 | F115: 1364.75 | G115: 949.68 | H115: 860.83 | I115: 929.76 | J115: 1318.21 | K115: 678.55 | L115: 830.43 | M115: 1072 | N115: 1007 | O115: 1122 | P115: 1007 | Q115: 1149.5 | R115: 1007 | S115: 1067 | T115: 927.67 | U115: 936 | V115: 944.5 | W115: 940.67 | X115: 892 | Y115: 904 | Z115: 912.75 | AA115: 922 | AB115: 839 | AC115: 858 | AD115: 1001.5 | AE115: 885 | AF115: 1067.5 | AG115: 944 | AH115: 984.83 | AI115: 985.83 | AJ115: 654 | AK115: 1325 | AL115: 1315.04
A116: 2022-10-01 | B116: 981.25 | C116: 924 | D116: 882.25 | E116: 691.5 | F116: 1407 | G116: 939.04 | H116: 824 | I116: 930.2 | J116: 1372.59 | K116: 696.75 | L116: 915.94 | M116: 1121.25 | N116: 1006.25 | O116: 1181.25 | P116: 1006.25 | Q116: 1183.75 | R116: 1006.25 | S116: 1066.25 | T116: 919.92 | U116: 941.92 | V116: 946.25 | W116: 943.25 | X116: 901.25 | Y116: 903.25 | Z116: 913.88 | AA116: 921.25 | AB116: 797.25 | AC116: 832.75 | AD116: 971.25 | AE116: 849.75 | AF116: 1043.75 | AG116: 935 | AH116: 970.75 | AI116: 971.75 | AJ116: 670 | AK116: 1366 | AL116: 1359.05
A117: 2022-11-01 | B117: 956.75 | C117: 913.25 | D117: 771.5 | E117: 662 | F117: 1469.5 | G117: 867.76 | H117: 736.13 | I117: 905.23 | J117: 1448.66 | K117: 678.48 | L117: 968.91 | M117: 1153 | N117: 958 | O117: 1188 | P117: 973 | Q117: 1190 | R117: 983 | S117: 1038.21 | T117: 915 | U117: 905.33 | V117: 909.25 | W117: 908.67 | X117: 871.72 | Y117: 881 | Z117: 891.25 | AA117: 908 | AB117: 751.5 | AC117: 722 | AD117: 874 | AE117: 734 | AF117: 954.75 | AG117: 864.75 | AH117: 904.45 | AI117: 905.45 | AJ117: 649 | AK117: 1454 | AL117: 1442
A118: 2022-12-01 | B118: 938.75 | C118: 888 | D118: 792 | E118: 678.5 | F118: 1519.25 | G118: 857.37 | H118: 747.52 | I118: 913.93 | J118: 1495.65 | K118: 690.42 | L118: 932.2 | M118: 1073.75 | N118: 958.75 | O118: 1113.75 | P118: 968.75 | Q118: 1218.75 | R118: 968.75 | S118: 1011.92 | T118: 914.08 | U118: 927.75 | V118: 908.75 | W118: 924.75 | X118: 884.08 | Y118: 886.75 | Z118: 892.75 | AA118: 903.75 | AB118: 777 | AC118: 767 | AD118: 894.5 | AE118: 749.5 | AF118: 943 | AG118: 843 | AH118: 891 | AI118: 892 | AJ118: 661 | AK118: 1501.75 | AL118: 1477.98
A119: 2023-01-01 | B119: 922.25 | C119: 878.75 | D119: 761.25 | E119: 679.75 | F119: 1538 | G119: 848.53 | H119: 720.41 | I119: 902.73 | J119: 1506.25 | K119: 687.96 | L119: 903.97 | M119: 1022.25 | N119: 937.25 | O119: 1089.75 | P119: 947.25 | Q119: 1132.25 | R119: 947.25 | S119: 1002.25 | T119: 880 | U119: 911.25 | V119: 914.5 | W119: 908.25 | X119: 872.25 | Y119: 856.25 | Z119: 857.05 | AA119: 853.25 | AB119: 771.25 | AC119: 750 | AD119: 871.25 | AE119: 731.25 | AF119: 938.75 | AG119: 822.5 | AH119: 881.75 | AI119: 882.75 | AJ119: 669 | AK119: 1519 | AL119: 1482.1
A120: 2023-02-01 | B120: 870.75 | C120: 815.75 | D120: 691.5 | E120: 629.5 | F120: 1490.5 | G120: 782.76 | H120: 658.18 | I120: 836.07 | J120: 1446.3 | K120: 636.34 | L120: 864.44 | M120: 897.75 | N120: 884.75 | O120: 947.75 | P120: 894.75 | Q120: 990.25 | R120: 997.75 | S120: 957.4 | T120: 829.75 | U120: 836.08 | V120: 853.25 | W120: 849.42 | X120: 807.31 | Y120: 809.75 | Z120: 814.92 | AA120: 831.75 | AB120: 693.5 | AC120: 670.75 | AD120: 788.5 | AE120: 656.5 | AF120: 866.75 | AG120: 770.25 | AH120: 803.6 | AI120: 804.6 | AJ120: 615 | AK120: 1474 | AL120: 1416.5
A121: 2023-03-01 | B121: 895.75 | C121: 877.75 | D121: 692.25 | E121: 660.5 | F121: 1505.5 | G121: 847 | H121: 646.04 | I121: 867.36 | J121: 1464.18 | K121: 670.43 | L121: 847.57 | M121: 1000.75 | N121: 910.75 | O121: 1085.75 | P121: 920.75 | Q121: 1150.75 | R121: 920.75 | S121: 980.75 | T121: 864.08 | U121: 871.08 | V121: 877 | W121: 876.75 | X121: 838.53 | Y121: 850.25 | Z121: 843.95 | AA121: 846 | AB121: 689.75 | AC121: 663 | AD121: 772.25 | AE121: 661 | AF121: 927.75 | AG121: 835.25 | AH121: 854.4 | AI121: 855.4 | AJ121: 657 | AK121: 1502 | AL121: 1448.6
A122: 2023-04-01 | B122: 788 | C122: 807.25 | D122: 619.75 | E122: 636 | F122: 1444.25 | G122: 754.69 | H122: 585.67 | I122: 771.71 | J122: 1402.21 | K122: 620.99 | L122: 812.57 | M122: 926.25 | N122: 803 | O122: 983.75 | P122: 813 | Q122: 933.75 | R122: 813 | S122: 885.29 | T122: 754.75 | U122: 774.75 | V122: 777.5 | W122: 780.08 | X122: 734.31 | Y122: 746.75 | Z122: 757 | AA122: 783.75 | AB122: 618.25 | AC122: 596.08 | AD122: 709.75 | AE122: 596.75 | AF122: 841.25 | AG122: 741.5 | AH122: 752.45 | AI122: 753.45 | AJ122: 606 | AK122: 1424.75 | AL122: 1400.95
A123: 2023-05-01 | B123: 780 | C123: 649.5 | D123: 594.25 | E123: 594 | F123: 1299.75 | G123: 756.9 | H123: 551.98 | I123: 747.97 | J123: 1273.91 | K123: 628.08 | L123: 789.12 | M123: 900 | N123: 790 | O123: 957.5 | P123: 800 | Q123: 1020 | R123: 800 | S123: 860.83 | T123: 730 | U123: 751.67 | V123: 748.75 | W123: 749.67 | X123: 711.67 | Y123: 718 | Z123: 727 | AA123: 760 | AB123: 592.75 | AC123: 556.58 | AD123: 634.25 | AE123: 564.25 | AF123: 855.5 | AG123: 758 | AH123: 760.38 | AI123: 761.38 | AJ123: 612 | AK123: 1307 | AL123: 1248.65
A124: 2023-06-01 | B124: 802 | C124: 801.25 | D124: 636.25 | E124: 554.5 | F124: 1557.25 | G124: 753.32 | H124: 597.48 | I124: 775.02 | J124: 1444.22 | K124: 531.25 | L124: 782.65 | M124: 972 | N124: 827 | O124: 1004.5 | P124: 837 | Q124: 1027 | R124: 837 | S124: 883 | T124: 755 | U124: 767 | V124: 760.75 | W124: 761.33 | X124: 728.11 | Y124: 754 | Z124: 758.38 | AA124: 797 | AB124: 632.92 | AC124: 596.25 | AD124: 675.25 | AE124: 616.13 | AF124: 860 | AG124: 752.81 | AH124: 766.25 | AI124: 767.25 | AJ124: 531 | AK124: 1508 | AL124: 1450.28
A125: 2023-07-01 | B125: 855.75 | C125: 812.75 | D125: 665.75 | E125: 504 | F125: 1445.75 | G125: 752.15 | H125: 601.33 | I125: 796.48 | J125: 1351.71 | K125: 544.47 | L125: 1032.5 | M125: 950.75 | N125: 835.75 | O125: 975.75 | P125: 845.75 | Q125: 985.75 | R125: 845.75 | S125: 908.25 | T125: 775.75 | U125: 803.42 | V125: 790.75 | W125: 790.75 | X125: 749.08 | Y125: 771.75 | Z125: 784.63 | AA125: 815.75 | AB125: 607.25 | AC125: 584.08 | AD125: 698.25 | AE125: 624.25 | AF125: 852.75 | AG125: 755.25 | AH125: 854 | AI125: 855 | AJ125: 540 | AK125: 1401 | AL125: 1387.9
A126: 2023-08-01 | B126: 735 | C126: 726.5 | D126: 573 | E126: 461 | F126: 1360 | G126: 657 | H126: 510.32 | I126: 688.08 | J126: 1345.86 | K126: 481.56 | L126: 986.91 | M126: 836.5 | N126: 700 | O126: 861.75 | P126: 710 | Q126: 931.75 | R126: 710 | S126: 806.5 | T126: 646.67 | U126: 673.5 | V126: 681.75 | W126: 678.17 | X126: 645.64 | Y126: 688 | Z126: 698.5 | AA126: 695 | AB126: 517.5 | AC126: 503 | AD126: 614.5 | AE126: 529 | AF126: 760.25 | AG126: 652.06 | AH126: 663.05 | AI126: 664.05 | AJ126: 480 | AK126: 1382 | AL126: 1345.35
A127: 2023-09-01 | B127: 709.25 | C127: 663.75 | D127: 541.5 | E127: 476.75 | F127: 1275 | G127: 595.2 | H127: 460.65 | I127: 641.31 | J127: 1209.24 | K127: 449.16 | L127: 981 | M127: 804.25 | N127: 619.25 | O127: 844.25 | P127: 639.25 | Q127: 959.25 | R127: 649.25 | S127: 804.86 | T127: 634.25 | U127: 628.58 | V127: 645.25 | W127: 625.92 | X127: 612.5 | Y127: 602.25 | Z127: 620.63 | AA127: 644.25 | AB127: 458 | AC127: 466.5 | AD127: 628.75 | AE127: 479 | AF127: 696.75 | AG127: 588.75 | AH127: 597.15 | AI127: 598.15 | AJ127: 443 | AK127: 1235 | AL127: 1212.9
A128: 2023-10-01 | B128: 709.25 | C128: 629.25 | D128: 556.25 | E128: 478.75 | F128: 1287 | G128: 564.88 | H128: 492.76 | I128: 665.47 | J128: 1237.56 | K128: 453.25 | L128: 913.67 | M128: 854.25 | N128: 709.25 | O128: 894.25 | P128: 729.25 | Q128: 909.25 | R128: 739.25 | S128: 792.67 | T128: 640.25 | U128: 664.58 | V128: 677 | W128: 664.58 | X128: 628.13 | Y128: 623.25 | Z128: 636.25 | AA128: 644.25 | AB128: 573.75 | AC128: 516.25 | AD128: 641.25 | AE128: 486.25 | AF128: 662.25 | AG128: 554.25 | AH128: 564.05 | AI128: 565.05 | AJ128: 449 | AK128: 1244 | AL128: 1244.15
A129: 2023-11-01 | B129: 702.5 | C129: 643.25 | D129: 570.25 | E129: 461.75 | F129: 1342.75 | G129: 582.12 | H129: 520.18 | I129: 689.99 | J129: 1283.85 | K129: 443.09 | L129: 922.97 | M129: 849.5 | N129: 729.5 | O129: 912 | P129: 749.5 | Q129: 1037 | R129: 759.5 | S129: 804.67 | T129: 675.5 | U129: 705.83 | V129: 710.5 | W129: 692.83 | X129: 662.75 | Y129: 653.3 | Z129: 660 | AA129: 637.5 | AB129: 588.13 | AC129: 530.25 | AD129: 657.75 | AE129: 500.25 | AF129: 678 | AG129: 564.31 | AH129: 576 | AI129: 577 | AJ129: 438 | AK129: 1302 | AL129: 1291.85
A130: 2023-12-01 | B130: 723.5 | C130: 642 | D130: 628 | E130: 471.25 | F130: 1293.5 | G130: 584.53 | H130: 562.8 | I130: 693.13 | J130: 1241.77 | K130: 442.45 | L130: 893.59 | M130: 813.5 | N130: 723.5 | O130: 921 | P130: 743.5 | Q130: 1043.5 | R130: 753.5 | S130: 809.33 | T130: 689.17 | U130: 707.5 | V130: 718.75 | W130: 707.5 | X130: 676.13 | Y130: 647.5 | Z130: 663 | AA130: 683.5 | AB130: 633 | AC130: 577.75 | AD130: 699.25 | AE130: 563 | AF130: 677 | AG130: 564.5 | AH130: 587.6 | AI130: 588.6 | AJ130: 443 | AK130: 1268 | AL130: 1244.4
A131: 2024-01-01 | B131: 692.25 | C131: 610.5 | D131: 595.25 | E131: 448.25 | F131: 1222.25 | G131: 568.07 | H131: 539.54 | I131: 668.81 | J131: 1169.04 | K131: 426.76 | L131: 844.5 | M131: 800 | N131: 707.25 | O131: 907.25 | P131: 727.25 | Q131: 962.25 | R131: 737.25 | S131: 778.25 | T131: 665.25 | U131: 682.58 | V131: 701.5 | W131: 679.58 | X131: 649.38 | Y131: 621.25 | Z131: 639.25 | AA131: 652.25 | AB131: 607.58 | AC131: 567.75 | AD131: 672.75 | AE131: 532.75 | AF131: 662 | AG131: 550.75 | AH131: 573 | AI131: 574 | AJ131: 425 | AK131: 1198 | AL131: 1168.75
A132: 2024-02-01 | B132: 664.5 | C132: 602.75 | D132: 577.5 | E132: 415.75 | F132: 1128.25 | G132: 540.97 | H132: 526.43 | I132: 642.33 | J132: 1080.15 | K132: 399.71 | L132: 791.57 | M132: 734 | N132: 674 | O132: 834 | P132: 694 | Q132: 899 | R132: 704 | S132: 747.21 | T132: 632.83 | U132: 663.83 | V132: 677.25 | W132: 655.5 | X132: 632.13 | Y132: 598 | Z132: 607.25 | AA132: 625 | AB132: 600.5 | AC132: 542.58 | AD132: 662.5 | AE132: 529.38 | AF132: 631.25 | AG132: 523 | AH132: 507.45 | AI132: 508.45 | AJ132: 394 | AK132: 1108 | AL132: 1079.05
A133: 2024-03-01 | B133: 645 | C133: 626.5 | D133: 561.5 | E133: 442.25 | F133: 1192 | G133: 538.19 | H133: 505.79 | I133: 624.06 | J133: 1134.22 | K133: 418.22 | L133: 758.48 | M133: 687 | N133: 660 | O133: 787.5 | P133: 680 | Q133: 905 | R133: 690 | S133: 735 | T133: 615 | U133: 646 | V133: 653.75 | W133: 645.33 | X133: 611.25 | Y133: 584 | Z133: 593.88 | AA133: 611 | AB133: 560.25 | AC133: 524.08 | AD133: 595.75 | AE133: 512.75 | AF133: 624.25 | AG133: 531 | AH133: 536.25 | AI133: 537.25 | AJ133: 414 | AK133: 1161 | AL133: 1137.4
A134: 2024-04-01 | B134: 710.25 | C134: 622.75 | D134: 585 | E134: 439.5 | F134: 1145.5 | G134: 581.34 | H134: 538.17 | I134: 680.04 | J134: 1098.21 | K134: 424.06 | L134: 769.57 | M134: 774 | N134: 719.25 | O134: 874.25 | P134: 739.25 | Q134: 949.25 | R134: 749.25 | S134: 794.92 | T134: 654.25 | U134: 692.25 | V134: 706.75 | W134: 693.92 | X134: 664.25 | Y134: 633.25 | Z134: 646.88 | AA134: 670.25 | AB134: 574.13 | AC134: 561.58 | AD134: 628.25 | AE134: 540 | AF134: 669.25 | AG134: 580.25 | AH134: 575.25 | AI134: 576.25 | AJ134: 416 | AK134: 1131 | AL134: 1105.95
A135: 2024-05-01 | B135: 739.75 | C135: 708.75 | D135: 678.5 | E135: 446.25 | F135: 1205 | G135: 655.81 | H135: 621.68 | I135: 700.14 | J135: 1143.34 | K135: 425.79 | L135: 767.43 | M135: 809.75 | N135: 749.75 | O135: 879.75 | P135: 769.75 | Q135: 939.75 | R135: 779.75 | S135: 812.25 | T135: 696.42 | U135: 704.75 | V135: 702.75 | W135: 709.08 | X135: 670.38 | Y135: 663.75 | Z135: 678 | AA135: 705.75 | AB135: 670.17 | AC135: 638.5 | AD135: 701.25 | AE135: 638.5 | AF135: 742.75 | AG135: 656.25 | AH135: 649.75 | AI135: 650.75 | AJ135: 417.75 | AK135: 1178.5 | AL135: 1146.4
A136: 2024-06-01 | B136: 613 | C136: 587.5 | D136: 553.5 | E136: 397.25 | F136: 1150.5 | G136: 536.27 | H136: 506.07 | I136: 564.63 | J136: 1093.23 | K136: 390.31 | L136: 705.15 | M136: 783 | N136: 623 | O136: 793 | P136: 643 | Q136: 848 | R136: 653 | S136: 682.17 | T136: 556.33 | U136: 558.67 | V136: 558.75 | W136: 559.67 | X136: 501.13 | Y136: 522 | Z136: 543.5 | AA136: 579 | AB136: 555 | AC136: 521.83 | AD136: 591 | AE136: 531 | AF136: 622.5 | AG136: 533.25 | AH136: 533.06 | AI136: 534.06 | AJ136: 377 | AK136: 1134 | AL136: 1098.6
A137: 2024-07-01 | B137: 581.5 | C137: 549 | D137: 527.25 | E137: 382.75 | F137: 1028.5 | G137: 499.6 | H137: 468.01 | I137: 531.76 | J137: 1000.07 | K137: 374.59 | L137: 619 | M137: 741.5 | N137: 566.5 | O137: 756.5 | P137: 586.5 | Q137: 891.5 | R137: 596.5 | S137: 649.5 | T137: 518.17 | U137: 514.83 | V137: 524.75 | W137: 521.17 | X137: 465.88 | Y137: 490.5 | Z137: 510.75 | AA137: 541.5 | AB137: 508.92 | AC137: 477.25 | AD137: 557.25 | AE137: 492.25 | AF137: 579 | AG137: 497.75 | AH137: 497.75 | AI137: 498.75 | AJ137: 366 | AK137: 1030 | AL137: 1025.4
A138: 2024-08-01 | B138: 573.75 | C138: 552.5 | D138: 532.75 | E138: 378 | F138: 982 | G138: 504.43 | H138: 473.09 | I138: 535.35 | J138: 948.62 | K138: 368.5 | L138: 624.69 | M138: 680.5 | N138: 530.5 | O138: 785.5 | P138: 590.5 | Q138: 1000.5 | R138: 630.5 | S138: 648.21 | T138: 511.58 | U138: 521.25 | V138: 532.81 | W138: 523.92 | X138: 485.5 | Y138: 472.75 | Z138: 498.88 | AA138: 508.75 | AB138: 465.25 | AC138: 481.08 | AD138: 567.75 | AE138: 510.25 | AF138: 552.5 | AG138: 503.31 | AH138: 503.31 | AI138: 504.31 | AJ138: 355 | AK138: 966 | AL138: 961.4
A139: 2024-09-01 | B139: 621.75 | C139: 583.75 | D139: 584 | E139: 424.75 | F139: 1057 | G139: 524.74 | H139: 508.65 | I139: 572.3 | J139: 993.91 | K139: 392.62 | L139: 631.43 | M139: 676.75 | N139: 571.75 | O139: 891.75 | P139: 631.75 | Q139: 1071.75 | R139: 671.75 | S139: 688.42 | T139: 552.42 | U139: 574.42 | V139: 578.25 | W139: 565.08 | X139: 529.88 | Y139: 549.75 | Z139: 547.88 | AA139: 531.75 | AB139: 481.5 | AC139: 506.5 | AD139: 646.5 | AE139: 529 | AF139: 582 | AG139: 522.5 | AH139: 528.75 | AI139: 529.75 | AJ139: 385 | AK139: 1010 | AL139: 998.9
A140: 2024-10-01 | B140: 604.25 | C140: 569.25 | D140: 570.5 | E140: 410.75 | F140: 982.5 | G140: 511.74 | H140: 505.45 | I140: 564.48 | J140: 929.29 | K140: 382.26 | L140: 644.67 | M140: 784.25 | N140: 554.25 | O140: 854.25 | P140: 614.25 | Q140: 904.25 | R140: 654.25 | S140: 677.58 | T140: 554.92 | U140: 579.25 | V140: 585.25 | W140: 579.58 | X140: 532.38 | Y140: 538.25 | Z140: 539.75 | AA140: 516.75 | AB140: 505.5 | AC140: 530.5 | AD140: 628 | AE140: 545.5 | AF140: 568 | AG140: 506.75 | AH140: 518 | AI140: 519 | AJ140: 373 | AK140: 949 | AL140: 931.5
A141: 2024-11-01 | B141: 564.5 | C141: 526.25 | D141: 537.75 | E141: 415.75 | F141: 988.75 | G141: 479.04 | H141: 482.12 | I141: 558.98 | J141: 937.46 | K141: 400.69 | L141: 638.87 | M141: 744 | N141: 551.25 | O141: 811.25 | P141: 611.25 | Q141: 866.25 | R141: 651.25 | S141: 660.96 | T141: 523.83 | U141: 565.08 | V141: 583.31 | W141: 583.67 | X141: 541.25 | Y141: 513.5 | Z141: 523.16 | AA141: 533.75 | AB141: 550.63 | AC141: 525.75 | AD141: 607.75 | AE141: 513.5 | AF141: 544.5 | AG141: 464.94 | AH141: 492.9 | AI141: 493.9 | AJ141: 394 | AK141: 961 | AL141: 934.1
A142: 2024-12-01 | B142: 595.75 | C142: 559.25 | D142: 551.5 | E142: 458.5 | F142: 998.25 | G142: 497.76 | H142: 492.7 | I142: 576.37 | J142: 949.59 | K142: 431.79 | L142: 645.43 | M142: 775.75 | N142: =B142-40 -> 555.75 | O142: 795.75 | P142: =B142+20 -> 615.75 | Q142: 875.75 | R142: =B142+60 -> 655.75 | S142: 669.92 | T142: 563.08 | U142: 600.75 | V142: 607 | W142: 602.08 | X142: 552.89 | Y142: 549.75 | Z142: 549.38 | AA142: 538.25 | AB142: 562.17 | AC142: 529.5 | AD142: 631.5 | AE142: 510.75 | AF142: 559.25 | AG142: 483 | AH142: 507.25 | AI142: 508.25 | AJ142: 432 | AK142: 980 | AL142: 942.65
A143: 2025-01-01 | B143: 615.5 | C143: 579.25 | D143: 559.5 | E143: 482 | F143: 1042 | G143: 518.89 | H143: 504.04 | I143: 594.71 | J143: 977.61 | K143: 449.65 | L143: 660.71 | M143: 760.5 | N143: 565.5 | O143: 828 | P143: 625.5 | Q143: 915.5 | R143: 665.5 | S143: 670.5 | T143: 607.83 | U143: 616.17 | V143: 613.75 | W143: 608.5 | X143: 564.79 | Y143: 564.5 | Z143: 567.88 | AA143: 558 | AB143: 584.83 | AC143: 544.25 | AD143: 652 | AE143: 522 | AF143: 599.25 | AG143: 505.5 | AH143: 527.25 | AI143: 528.25 | AJ143: 452 | AK143: 1006.5 | AL143: 973.2
A144: 2025-02-01 | B144: 582.25 | C144: 558.25 | D144: 537 | E144: 453.5 | F144: 1011.5 | G144: 496.71 | H144: 491.45 | I144: 557.11 | J144: 952.28 | K144: 427.08 | L144: 678 | M144: 687.75 | N144: 547.75 | O144: 777.75 | P144: 607.75 | Q144: 877.75 | R144: 647.75 | S144: 661.65 | T144: 555.25 | U144: 552.25 | V144: 557.75 | W144: 553.58 | X144: 512.75 | Y144: 516.25 | Z144: 529.88 | AA144: 527.75 | AB144: 548.83 | AC144: 529.25 | AD144: 619.5 | AE144: 501.38 | AF144: 578 | AG144: 485.56 | AH144: 511.67 | AI144: 512.67 | AJ144: 431 | AK144: 986.125 | AL144: 951.08
A145: 2025-03-01 | B145: 592 | C145: 557 | D145: 537 | E145: 457.25 | F145: 1014.75 | G145: 486.81 | H145: 478.76 | I145: 560.061 | J145: 953.81 | K145: 426.34 | L145: 673.14 | M145: 702 | N145: 542 | O145: 792 | P145: 602 | Q145: 912 | R145: 642 | S145: 657.83 | T145: 550 | U145: 563.67 | V145: 559.75 | W145: 553.33 | X145: 514.86 | Y145: 520 | Z145: 531.88 | AA145: 522 | AB145: 529 | AC145: 510.5 | AD145: 597 | AE145: 492 | AF145: 562 | AG145: 472 | AH145: 500.33 | AI145: 501.33 | AJ145: 430 | AK145: 989 | AL145: 955.25
A146: 2025-04-01 | B146: 614 | C146: 514.25 | D146: 513 | E146: 467.25 | F146: 1034.75 | G146: 453.44 | H146: 464.37 | I146: 566.47 | J146: 985.95 | K146: 446.33 | L146: 684 | M146: 697 | N146: 537 | O146: 842 | P146: 612 | Q146: 952 | R146: 652 | S146: 668.5 | T146: 534.33 | U146: 567.33 | V146: 573.5 | W146: 558.33 | X146: 530.86 | Y146: 531 | Z146: 537.13 | AA146: 527 | AB146: 516.75 | AC146: 490.75 | AD146: 580.5 | AE146: 470.5 | AF146: 524.25 | AG146: 445.69 | AH146: 462.83 | AI146: 463.83 | AJ146: 448.875 | AK146: 1018.75 | AL146: 988.23
A147: 2025-05-01 | B147: 625.5 | C147: 533.25 | D147: 534 | E147: 444 | F147: 1041.75 | G147: 468.26 | H147: 480.22 | I147: 603.18 | J147: 992.18 | K147: 419.89 | L147: 700 | M147: 733 | N147: 565.5 | O147: 850.5 | P147: 640.5 | Q147: 985.5 | R147: 680.5 | S147: 694.67 | T147: 569.5 | U147: 623.83 | V147: 621.75 | W147: 611.83 | X147: 567.21 | Y147: 579.5 | Z147: 578.5 | AA147: 555.5 | AB147: 534 | AC147: 494 | AD147: 601.5 | AE147: 496.5 | AF147: 543.25 | AG147: 460.75 | AH147: 474.5 | AI147: 475.5 | AJ147: 425.5 | AK147: 1026.75 | AL147: 991.85
A148: 2025-06-01 | B148: 603 | C148: 506 | D148: 528.75 | E148: 420.5 | F148: 1024.25 | G148: 452.35 | H148: 484.48 | I148: 576.65 | J148: 969.55 | K148: 399.38 | L148: 680 | M148: 745.75 | N148: 545.75 | O148: 778.25 | P148: 620.75 | Q148: 920.75 | R148: 660.75 | S148: 683.63 | T148: 588 | U148: 604.67 | V148: 603.5 | W148: 595 | X148: 543.57 | Y148: 539.75 | Z148: 553.75 | AA148: 533 | AB148: 517.75 | AC148: 504.75 | AD148: 571.25 | AE148: 498.5 | AF148: 521 | AG148: 445.81 | AH148: 466.75 | AI148: 467.75 | AJ148: 402 | AK148: 998 | AL148: 9768.43
A149: 2025-07-01
A150: 2025-08-01
A151: 2025-09-01
A152: 2025-10-01
A153: 2025-11-01
A154: 2025-12-01

Sheet Basis
I1: Use the Drop-Down Menus in Cells L3 and L7 to select items.
C2: Use the Drop-Down Menu in Cell F4 to select item.
I3: Cash | J3: Minneapolis Wheat (HRS, 14%, Truck)
I5: minus
B7: =VLOOKUP(J3,Codes!A2:B38,2,FALSE) -> 16 | D7: =VLOOKUP(J7,Codes!A2:B38,2,FALSE) -> 2 | F7: =J3 -> Minneapolis Wheat (HRS, 14%, Truck) | I7: Futures | J7: Minneapolis Hard Red Spring Wheat Futures
B8: =J3 -> Minneapolis Wheat (HRS, 14%, Truck) | D8: =J7 -> Minneapolis Hard Red Spring Wheat Futures | F8: minus
F9: =J7 -> Minneapolis Hard Red Spring Wheat Futures | O9: 2022-24
A10: Month | F10: Spread or Basis | I10: Month | J10: 2022 | K10: 2023 | L10: 2024 | M10: 2025 | O10: Average
A11: =Data!A107 -> 2022-01-01 | B11: =IF(VLOOKUP(A11,Data!$A$11:$AL$154,Basis!$B$7,FALSE)=0,0,VLOOKUP(A11,Data!$A$11:$AL$154,Basis!$B$7,FALSE)) -> 941.5 | D11: =IF(VLOOKUP(A11,Data!$A$11:$AL$154,Basis!$D$7,FALSE)=0,0,VLOOKUP(A11,Data!$A$11:$AL$154,Basis!$D$7,FALSE)) -> 906.5 | F11: =IF(B11<>0, B11-D11,"") -> 35 | I11: Jan. | J11: =IF(B11>0,F11,NA()) -> 35 | K11: =IF(B23>0,F23,NA()) -> 25 | L11: =IF(B35>0,F35,NA()) -> 35 | M11: =IF(B47>0,F47,NA()) -> 10 | O11: =AVERAGE(J11:L11) -> 31.66666667
A12: =Data!A108 -> 2022-02-01 | B12: =IF(VLOOKUP(A12,Data!$A$11:$AL$154,Basis!$B$7,FALSE)=0,0,VLOOKUP(A12,Data!$A$11:$AL$154,Basis!$B$7,FALSE)) -> 1034 | D12: =IF(VLOOKUP(A12,Data!$A$11:$AL$154,Basis!$D$7,FALSE)=0,0,VLOOKUP(A12,Data!$A$11:$AL$154,Basis!$D$7,FALSE)) -> 989 | F12: =IF(B12<>0, B12-D12,"") -> 45 | I12: Feb. | J12: =IF(B12>0,F12,NA()) -> 45 | K12: =IF(B24>0,F24,NA()) -> 24 | L12: =IF(B36>0,F36,NA()) -> 29.5 | M12: =IF(B48>0,F48,NA()) -> 25.5 | O12: =AVERAGE(J12:L12) -> 32.83333333
A13: =Data!A109 -> 2022-03-01 | B13: =IF(VLOOKUP(A13,Data!$A$11:$AL$154,Basis!$B$7,FALSE)=0,0,VLOOKUP(A13,Data!$A$11:$AL$154,Basis!$B$7,FALSE)) -> 1106.75 | D13: =IF(VLOOKUP(A13,Data!$A$11:$AL$154,Basis!$D$7,FALSE)=0,0,VLOOKUP(A13,Data!$A$11:$AL$154,Basis!$D$7,FALSE)) -> 1079.5 | F13: 27.25 | I13: Mar. | J13: 27.25 | K13: 25 | L13: 35 | M13: 10 | O13: 29.08333333
A14: =Data!A110 -> 2022-04-01 | B14: =IF(VLOOKUP(A14,Data!$A$11:$AL$154,Basis!$B$7,FALSE)=0,0,VLOOKUP(A14,Data!$A$11:$AL$154,Basis!$B$7,FALSE)) -> 1196 | D14: =IF(VLOOKUP(A14,Data!$A$11:$AL$154,Basis!$D$7,FALSE)=0,0,VLOOKUP(A14,Data!$A$11:$AL$154,Basis!$D$7,FALSE)) -> 1161.25 | F14: 34.75 | I14: Apr. | J14: 34.75 | K14: 25 | L14: 29 | M14: -2 | O14: 29.58333333
A15: =Data!A111 -> 2022-05-01 | B15: =IF(VLOOKUP(A15,Data!$A$11:$AL$154,Basis!$B$7,FALSE)=0,0,VLOOKUP(A15,Data!$A$11:$AL$154,Basis!$B$7,FALSE)) -> 1272.5 | D15: =IF(VLOOKUP(A15,Data!$A$11:$AL$154,Basis!$D$7,FALSE)=0,0,VLOOKUP(A15,Data!$A$11:$AL$154,Basis!$D$7,FALSE)) -> 1247.5 | F15: 25 | I15: May | J15: 25 | K15: 20 | L15: 30 | M15: 15 | O15: 25
A16: =Data!A112 -> 2022-06-01 | B16: =IF(VLOOKUP(A16,Data!$A$11:$AL$154,Basis!$B$7,FALSE)=0,0,VLOOKUP(A16,Data!$A$11:$AL$154,Basis!$B$7,FALSE)) -> 1022.75 | D16: =IF(VLOOKUP(A16,Data!$A$11:$AL$154,Basis!$D$7,FALSE)=0,0,VLOOKUP(A16,Data!$A$11:$AL$154,Basis!$D$7,FALSE)) -> 987.75 | F16: 35 | I16: Jne. | J16: 35 | K16: 35 | L16: 30 | M16: 17.75 | O16: 33.33333333
A17: =Data!A113 -> 2022-07-01 | B17: =IF(VLOOKUP(A17,Data!$A$11:$AL$154,Basis!$B$7,FALSE)=0,0,VLOOKUP(A17,Data!$A$11:$AL$154,Basis!$B$7,FALSE)) -> 926 | D17: =IF(VLOOKUP(A17,Data!$A$11:$AL$154,Basis!$D$7,FALSE)=0,0,VLOOKUP(A17,Data!$A$11:$AL$154,Basis!$D$7,FALSE)) -> 906 | F17: 20 | I17: Jly. | J17: 20 | K17: -10 | L17: 5 | O17: 5
A18: =Data!A114 -> 2022-08-01 | B18: =IF(VLOOKUP(A18,Data!$A$11:$AL$154,Basis!$B$7,FALSE)=0,0,VLOOKUP(A18,Data!$A$11:$AL$154,Basis!$B$7,FALSE)) -> 944.5 | D18: =IF(VLOOKUP(A18,Data!$A$11:$AL$154,Basis!$D$7,FALSE)=0,0,VLOOKUP(A18,Data!$A$11:$AL$154,Basis!$D$7,FALSE)) -> 915.5 | F18: 29 | I18: Aug. | J18: 29 | K18: -25 | L18: 16.75 | O18: 6.916666667
A19: =Data!A115 -> 2022-09-01 | B19: =IF(VLOOKUP(A19,Data!$A$11:$AL$154,Basis!$B$7,FALSE)=0,0,VLOOKUP(A19,Data!$A$11:$AL$154,Basis!$B$7,FALSE)) -> 1007 | D19: =IF(VLOOKUP(A19,Data!$A$11:$AL$154,Basis!$D$7,FALSE)=0,0,VLOOKUP(A19,Data!$A$11:$AL$154,Basis!$D$7,FALSE)) -> 982 | F19: 25 | I19: Sep. | J19: 25 | K19: -70 | L19: 10 | O19: -11.66666667
A20: =Data!A116 -> 2022-10-01 | B20: =IF(VLOOKUP(A20,Data!$A$11:$AL$154,Basis!$B$7,FALSE)=0,0,VLOOKUP(A20,Data!$A$11:$AL$154,Basis!$B$7,FALSE)) -> 1006.25 | D20: =IF(VLOOKUP(A20,Data!$A$11:$AL$154,Basis!$D$7,FALSE)=0,0,VLOOKUP(A20,Data!$A$11:$AL$154,Basis!$D$7,FALSE)) -> 981.25 | F20: 25 | I20: Oct. | J20: 25 | K20: 20 | L20: 10 | O20: 18.33333333
A21: =Data!A117 -> 2022-11-01 | B21: =IF(VLOOKUP(A21,Data!$A$11:$AL$154,Basis!$B$7,FALSE)=0,0,VLOOKUP(A21,Data!$A$11:$AL$154,Basis!$B$7,FALSE)) -> 973 | D21: =IF(VLOOKUP(A21,Data!$A$11:$AL$154,Basis!$D$7,FALSE)=0,0,VLOOKUP(A21,Data!$A$11:$AL$154,Basis!$D$7,FALSE)) -> 956.75 | F21: 16.25 | I21: Nov. | J21: 16.25 | K21: 47 | L21: 46.75 | O21: 36.66666667
A22: =Data!A118 -> 2022-12-01 | B22: =IF(VLOOKUP(A22,Data!$A$11:$AL$154,Basis!$B$7,FALSE)=0,0,VLOOKUP(A22,Data!$A$11:$AL$154,Basis!$B$7,FALSE)) -> 968.75 | D22: =IF(VLOOKUP(A22,Data!$A$11:$AL$154,Basis!$D$7,FALSE)=0,0,VLOOKUP(A22,Data!$A$11:$AL$154,Basis!$D$7,FALSE)) -> 938.75 | F22: 30 | I22: Dec. | J22: 30 | K22: 20 | L22: 20 | O22: 23.33333333
A23: =Data!A119 -> 2023-01-01 | B23: =IF(VLOOKUP(A23,Data!$A$11:$AL$154,Basis!$B$7,FALSE)=0,0,VLOOKUP(A23,Data!$A$11:$AL$154,Basis!$B$7,FALSE)) -> 947.25 | D23: =IF(VLOOKUP(A23,Data!$A$11:$AL$154,Basis!$D$7,FALSE)=0,0,VLOOKUP(A23,Data!$A$11:$AL$154,Basis!$D$7,FALSE)) -> 922.25 | F23: 25 | I23: Average | J23: =AVERAGE(J11:J22) -> 28.9375 | K23: =AVERAGE(K11:K22) -> 11.33333333 | L23: 24.75 | O23: =AVERAGE(O11:O22) -> 21.67361111
A24: =Data!A120 -> 2023-02-01 | B24: =IF(VLOOKUP(A24,Data!$A$11:$AL$154,Basis!$B$7,FALSE)=0,0,VLOOKUP(A24,Data!$A$11:$AL$154,Basis!$B$7,FALSE)) -> 894.75 | D24: =IF(VLOOKUP(A24,Data!$A$11:$AL$154,Basis!$D$7,FALSE)=0,0,VLOOKUP(A24,Data!$A$11:$AL$154,Basis!$D$7,FALSE)) -> 870.75 | F24: 24
A25: =Data!A121 -> 2023-03-01 | B25: =IF(VLOOKUP(A25,Data!$A$11:$AL$154,Basis!$B$7,FALSE)=0,0,VLOOKUP(A25,Data!$A$11:$AL$154,Basis!$B$7,FALSE)) -> 920.75 | D25: =IF(VLOOKUP(A25,Data!$A$11:$AL$154,Basis!$D$7,FALSE)=0,0,VLOOKUP(A25,Data!$A$11:$AL$154,Basis!$D$7,FALSE)) -> 895.75 | F25: 25
A26: =Data!A122 -> 2023-04-01 | B26: =IF(VLOOKUP(A26,Data!$A$11:$AL$154,Basis!$B$7,FALSE)=0,0,VLOOKUP(A26,Data!$A$11:$AL$154,Basis!$B$7,FALSE)) -> 813 | D26: =IF(VLOOKUP(A26,Data!$A$11:$AL$154,Basis!$D$7,FALSE)=0,0,VLOOKUP(A26,Data!$A$11:$AL$154,Basis!$D$7,FALSE)) -> 788 | F26: 25
A27: =Data!A123 -> 2023-05-01 | B27: =IF(VLOOKUP(A27,Data!$A$11:$AL$154,Basis!$B$7,FALSE)=0,0,VLOOKUP(A27,Data!$A$11:$AL$154,Basis!$B$7,FALSE)) -> 800 | D27: =IF(VLOOKUP(A27,Data!$A$11:$AL$154,Basis!$D$7,FALSE)=0,0,VLOOKUP(A27,Data!$A$11:$AL$154,Basis!$D$7,FALSE)) -> 780 | F27: 20
A28: =Data!A124 -> 2023-06-01 | B28: =IF(VLOOKUP(A28,Data!$A$11:$AL$154,Basis!$B$7,FALSE)=0,0,VLOOKUP(A28,Data!$A$11:$AL$154,Basis!$B$7,FALSE)) -> 837 | D28: =IF(VLOOKUP(A28,Data!$A$11:$AL$154,Basis!$D$7,FALSE)=0,0,VLOOKUP(A28,Data!$A$11:$AL$154,Basis!$D$7,FALSE)) -> 802 | F28: 35
A29: =Data!A125 -> 2023-07-01 | B29: =IF(VLOOKUP(A29,Data!$A$11:$AL$154,Basis!$B$7,FALSE)=0,0,VLOOKUP(A29,Data!$A$11:$AL$154,Basis!$B$7,FALSE)) -> 845.75 | D29: =IF(VLOOKUP(A29,Data!$A$11:$AL$154,Basis!$D$7,FALSE)=0,0,VLOOKUP(A29,Data!$A$11:$AL$154,Basis!$D$7,FALSE)) -> 855.75 | F29: -10
A30: =Data!A126 -> 2023-08-01 | B30: =IF(VLOOKUP(A30,Data!$A$11:$AL$154,Basis!$B$7,FALSE)=0,0,VLOOKUP(A30,Data!$A$11:$AL$154,Basis!$B$7,FALSE)) -> 710 | D30: =IF(VLOOKUP(A30,Data!$A$11:$AL$154,Basis!$D$7,FALSE)=0,0,VLOOKUP(A30,Data!$A$11:$AL$154,Basis!$D$7,FALSE)) -> 735 | F30: -25
A31: =Data!A127 -> 2023-09-01 | B31: =IF(VLOOKUP(A31,Data!$A$11:$AL$154,Basis!$B$7,FALSE)=0,0,VLOOKUP(A31,Data!$A$11:$AL$154,Basis!$B$7,FALSE)) -> 639.25 | D31: =IF(VLOOKUP(A31,Data!$A$11:$AL$154,Basis!$D$7,FALSE)=0,0,VLOOKUP(A31,Data!$A$11:$AL$154,Basis!$D$7,FALSE)) -> 709.25 | F31: -70
A32: =Data!A128 -> 2023-10-01 | B32: =IF(VLOOKUP(A32,Data!$A$11:$AL$154,Basis!$B$7,FALSE)=0,0,VLOOKUP(A32,Data!$A$11:$AL$154,Basis!$B$7,FALSE)) -> 729.25 | D32: =IF(VLOOKUP(A32,Data!$A$11:$AL$154,Basis!$D$7,FALSE)=0,0,VLOOKUP(A32,Data!$A$11:$AL$154,Basis!$D$7,FALSE)) -> 709.25 | F32: 20
A33: =Data!A129 -> 2023-11-01 | B33: =IF(VLOOKUP(A33,Data!$A$11:$AL$154,Basis!$B$7,FALSE)=0,0,VLOOKUP(A33,Data!$A$11:$AL$154,Basis!$B$7,FALSE)) -> 749.5 | D33: =IF(VLOOKUP(A33,Data!$A$11:$AL$154,Basis!$D$7,FALSE)=0,0,VLOOKUP(A33,Data!$A$11:$AL$154,Basis!$D$7,FALSE)) -> 702.5 | F33: 47
A34: =Data!A130 -> 2023-12-01 | B34: =IF(VLOOKUP(A34,Data!$A$11:$AL$154,Basis!$B$7,FALSE)=0,0,VLOOKUP(A34,Data!$A$11:$AL$154,Basis!$B$7,FALSE)) -> 743.5 | D34: =IF(VLOOKUP(A34,Data!$A$11:$AL$154,Basis!$D$7,FALSE)=0,0,VLOOKUP(A34,Data!$A$11:$AL$154,Basis!$D$7,FALSE)) -> 723.5 | F34: 20
A35: =Data!A131 -> 2024-01-01 | B35: =IF(VLOOKUP(A35,Data!$A$11:$AL$154,Basis!$B$7,FALSE)=0,0,VLOOKUP(A35,Data!$A$11:$AL$154,Basis!$B$7,FALSE)) -> 727.25 | D35: =IF(VLOOKUP(A35,Data!$A$11:$AL$154,Basis!$D$7,FALSE)=0,0,VLOOKUP(A35,Data!$A$11:$AL$154,Basis!$D$7,FALSE)) -> 692.25 | F35: 35
A36: =Data!A132 -> 2024-02-01 | B36: =IF(VLOOKUP(A36,Data!$A$11:$AL$154,Basis!$B$7,FALSE)=0,0,VLOOKUP(A36,Data!$A$11:$AL$154,Basis!$B$7,FALSE)) -> 694 | D36: =IF(VLOOKUP(A36,Data!$A$11:$AL$154,Basis!$D$7,FALSE)=0,0,VLOOKUP(A36,Data!$A$11:$AL$154,Basis!$D$7,FALSE)) -> 664.5 | F36: 29.5
A37: =Data!A133 -> 2024-03-01 | B37: =IF(VLOOKUP(A37,Data!$A$11:$AL$154,Basis!$B$7,FALSE)=0,0,VLOOKUP(A37,Data!$A$11:$AL$154,Basis!$B$7,FALSE)) -> 680 | D37: =IF(VLOOKUP(A37,Data!$A$11:$AL$154,Basis!$D$7,FALSE)=0,0,VLOOKUP(A37,Data!$A$11:$AL$154,Basis!$D$7,FALSE)) -> 645 | F37: 35
A38: =Data!A134 -> 2024-04-01 | B38: =IF(VLOOKUP(A38,Data!$A$11:$AL$154,Basis!$B$7,FALSE)=0,0,VLOOKUP(A38,Data!$A$11:$AL$154,Basis!$B$7,FALSE)) -> 739.25 | D38: =IF(VLOOKUP(A38,Data!$A$11:$AL$154,Basis!$D$7,FALSE)=0,0,VLOOKUP(A38,Data!$A$11:$AL$154,Basis!$D$7,FALSE)) -> 710.25 | F38: 29
A39: =Data!A135 -> 2024-05-01 | B39: =IF(VLOOKUP(A39,Data!$A$11:$AL$154,Basis!$B$7,FALSE)=0,0,VLOOKUP(A39,Data!$A$11:$AL$154,Basis!$B$7,FALSE)) -> 769.75 | D39: =IF(VLOOKUP(A39,Data!$A$11:$AL$154,Basis!$D$7,FALSE)=0,0,VLOOKUP(A39,Data!$A$11:$AL$154,Basis!$D$7,FALSE)) -> 739.75 | F39: 30
A40: =Data!A136 -> 2024-06-01 | B40: =IF(VLOOKUP(A40,Data!$A$11:$AL$154,Basis!$B$7,FALSE)=0,0,VLOOKUP(A40,Data!$A$11:$AL$154,Basis!$B$7,FALSE)) -> 643 | D40: =IF(VLOOKUP(A40,Data!$A$11:$AL$154,Basis!$D$7,FALSE)=0,0,VLOOKUP(A40,Data!$A$11:$AL$154,Basis!$D$7,FALSE)) -> 613 | F40: 30
A41: =Data!A137 -> 2024-07-01 | B41: =IF(VLOOKUP(A41,Data!$A$11:$AL$154,Basis!$B$7,FALSE)=0,0,VLOOKUP(A41,Data!$A$11:$AL$154,Basis!$B$7,FALSE)) -> 586.5 | D41: =IF(VLOOKUP(A41,Data!$A$11:$AL$154,Basis!$D$7,FALSE)=0,0,VLOOKUP(A41,Data!$A$11:$AL$154,Basis!$D$7,FALSE)) -> 581.5 | F41: 5
A42: =Data!A138 -> 2024-08-01 | B42: =IF(VLOOKUP(A42,Data!$A$11:$AL$154,Basis!$B$7,FALSE)=0,0,VLOOKUP(A42,Data!$A$11:$AL$154,Basis!$B$7,FALSE)) -> 590.5 | D42: =IF(VLOOKUP(A42,Data!$A$11:$AL$154,Basis!$D$7,FALSE)=0,0,VLOOKUP(A42,Data!$A$11:$AL$154,Basis!$D$7,FALSE)) -> 573.75 | F42: 16.75
A43: =Data!A139 -> 2024-09-01 | B43: =IF(VLOOKUP(A43,Data!$A$11:$AL$154,Basis!$B$7,FALSE)=0,0,VLOOKUP(A43,Data!$A$11:$AL$154,Basis!$B$7,FALSE)) -> 631.75 | D43: =IF(VLOOKUP(A43,Data!$A$11:$AL$154,Basis!$D$7,FALSE)=0,0,VLOOKUP(A43,Data!$A$11:$AL$154,Basis!$D$7,FALSE)) -> 621.75 | F43: 10
A44: =Data!A140 -> 2024-10-01 | B44: =IF(VLOOKUP(A44,Data!$A$11:$AL$154,Basis!$B$7,FALSE)=0,0,VLOOKUP(A44,Data!$A$11:$AL$154,Basis!$B$7,FALSE)) -> 614.25 | D44: =IF(VLOOKUP(A44,Data!$A$11:$AL$154,Basis!$D$7,FALSE)=0,0,VLOOKUP(A44,Data!$A$11:$AL$154,Basis!$D$7,FALSE)) -> 604.25 | F44: 10
A45: =Data!A141 -> 2024-11-01 | B45: =IF(VLOOKUP(A45,Data!$A$11:$AL$154,Basis!$B$7,FALSE)=0,0,VLOOKUP(A45,Data!$A$11:$AL$154,Basis!$B$7,FALSE)) -> 611.25 | D45: =IF(VLOOKUP(A45,Data!$A$11:$AL$154,Basis!$D$7,FALSE)=0,0,VLOOKUP(A45,Data!$A$11:$AL$154,Basis!$D$7,FALSE)) -> 564.5 | F45: 46.75
A46: =Data!A142 -> 2024-12-01 | B46: =IF(VLOOKUP(A46,Data!$A$11:$AL$154,Basis!$B$7,FALSE)=0,0,VLOOKUP(A46,Data!$A$11:$AL$154,Basis!$B$7,FALSE)) -> 615.75 | D46: =IF(VLOOKUP(A46,Data!$A$11:$AL$154,Basis!$D$7,FALSE)=0,0,VLOOKUP(A46,Data!$A$11:$AL$154,Basis!$D$7,FALSE)) -> 595.75 | F46: 20
A47: =Data!A143 -> 2025-01-01 | B47: =IF(VLOOKUP(A47,Data!$A$11:$AL$154,Basis!$B$7,FALSE)=0,0,VLOOKUP(A47,Data!$A$11:$AL$154,Basis!$B$7,FALSE)) -> 625.5 | D47: =IF(VLOOKUP(A47,Data!$A$11:$AL$154,Basis!$D$7,FALSE)=0,0,VLOOKUP(A47,Data!$A$11:$AL$154,Basis!$D$7,FALSE)) -> 615.5 | F47: 10
A48: =Data!A144 -> 2025-02-01 | B48: =IF(VLOOKUP(A48,Data!$A$11:$AL$154,Basis!$B$7,FALSE)=0,0,VLOOKUP(A48,Data!$A$11:$AL$154,Basis!$B$7,FALSE)) -> 607.75 | D48: =IF(VLOOKUP(A48,Data!$A$11:$AL$154,Basis!$D$7,FALSE)=0,0,VLOOKUP(A48,Data!$A$11:$AL$154,Basis!$D$7,FALSE)) -> 582.25 | F48: 25.5
A49: =Data!A145 -> 2025-03-01 | B49: =IF(VLOOKUP(A49,Data!$A$11:$AL$154,Basis!$B$7,FALSE)=0,0,VLOOKUP(A49,Data!$A$11:$AL$154,Basis!$B$7,FALSE)) -> 602 | D49: =IF(VLOOKUP(A49,Data!$A$11:$AL$154,Basis!$D$7,FALSE)=0,0,VLOOKUP(A49,Data!$A$11:$AL$154,Basis!$D$7,FALSE)) -> 592 | F49: 10
A50: =Data!A146 -> 2025-04-01 | B50: =IF(VLOOKUP(A50,Data!$A$11:$AL$154,Basis!$B$7,FALSE)=0,0,VLOOKUP(A50,Data!$A$11:$AL$154,Basis!$B$7,FALSE)) -> 612 | D50: =IF(VLOOKUP(A50,Data!$A$11:$AL$154,Basis!$D$7,FALSE)=0,0,VLOOKUP(A50,Data!$A$11:$AL$154,Basis!$D$7,FALSE)) -> 614 | F50: -2
A51: =Data!A147 -> 2025-05-01 | B51: =IF(VLOOKUP(A51,Data!$A$11:$AL$154,Basis!$B$7,FALSE)=0,0,VLOOKUP(A51,Data!$A$11:$AL$154,Basis!$B$7,FALSE)) -> 640.5 | D51: =IF(VLOOKUP(A51,Data!$A$11:$AL$154,Basis!$D$7,FALSE)=0,0,VLOOKUP(A51,Data!$A$11:$AL$154,Basis!$D$7,FALSE)) -> 625.5 | F51: 15
A52: =Data!A148 -> 2025-06-01 | B52: =IF(VLOOKUP(A52,Data!$A$11:$AL$154,Basis!$B$7,FALSE)=0,0,VLOOKUP(A52,Data!$A$11:$AL$154,Basis!$B$7,FALSE)) -> 620.75 | D52: =IF(VLOOKUP(A52,Data!$A$11:$AL$154,Basis!$D$7,FALSE)=0,0,VLOOKUP(A52,Data!$A$11:$AL$154,Basis!$D$7,FALSE)) -> 603 | F52: 17.75
A53: =Data!A149 -> 2025-07-01 | B53: =IF(VLOOKUP(A53,Data!$A$11:$AL$154,Basis!$B$7,FALSE)=0,0,VLOOKUP(A53,Data!$A$11:$AL$154,Basis!$B$7,FALSE)) -> 0 | D53: =IF(VLOOKUP(A53,Data!$A$11:$AL$154,Basis!$D$7,FALSE)=0,0,VLOOKUP(A53,Data!$A$11:$AL$154,Basis!$D$7,FALSE)) -> 0
A54: =Data!A150 -> 2025-08-01 | B54: =IF(VLOOKUP(A54,Data!$A$11:$AL$154,Basis!$B$7,FALSE)=0,0,VLOOKUP(A54,Data!$A$11:$AL$154,Basis!$B$7,FALSE)) -> 0 | D54: =IF(VLOOKUP(A54,Data!$A$11:$AL$154,Basis!$D$7,FALSE)=0,0,VLOOKUP(A54,Data!$A$11:$AL$154,Basis!$D$7,FALSE)) -> 0
A55: =Data!A151 -> 2025-09-01 | B55: =IF(VLOOKUP(A55,Data!$A$11:$AL$154,Basis!$B$7,FALSE)=0,0,VLOOKUP(A55,Data!$A$11:$AL$154,Basis!$B$7,FALSE)) -> 0 | D55: =IF(VLOOKUP(A55,Data!$A$11:$AL$154,Basis!$D$7,FALSE)=0,0,VLOOKUP(A55,Data!$A$11:$AL$154,Basis!$D$7,FALSE)) -> 0
A56: =Data!A152 -> 2025-10-01 | B56: =IF(VLOOKUP(A56,Data!$A$11:$AL$154,Basis!$B$7,FALSE)=0,0,VLOOKUP(A56,Data!$A$11:$AL$154,Basis!$B$7,FALSE)) -> 0 | D56: =IF(VLOOKUP(A56,Data!$A$11:$AL$154,Basis!$D$7,FALSE)=0,0,VLOOKUP(A56,Data!$A$11:$AL$154,Basis!$D$7,FALSE)) -> 0
A57: =Data!A153 -> 2025-11-01 | B57: =IF(VLOOKUP(A57,Data!$A$11:$AL$154,Basis!$B$7,FALSE)=0,0,VLOOKUP(A57,Data!$A$11:$AL$154,Basis!$B$7,FALSE)) -> 0 | D57: =IF(VLOOKUP(A57,Data!$A$11:$AL$154,Basis!$D$7,FALSE)=0,0,VLOOKUP(A57,Data!$A$11:$AL$154,Basis!$D$7,FALSE)) -> 0
A58: =Data!A154 -> 2025-12-01 | B58: =IF(VLOOKUP(A58,Data!$A$11:$AL$154,Basis!$B$7,FALSE)=0,0,VLOOKUP(A58,Data!$A$11:$AL$154,Basis!$B$7,FALSE)) -> 0 | D58: =IF(VLOOKUP(A58,Data!$A$11:$AL$154,Basis!$D$7,FALSE)=0,0,VLOOKUP(A58,Data!$A$11:$AL$154,Basis!$D$7,FALSE)) -> 0
A60: Max | B60: =ROUNDUP(MAX(B11:B58),-1)+10 -> 1290 | D60: =ROUNDUP(MAX(D11:D58),-1)+10 -> 1260 | F60: =ROUNDUP(MAX(F11:F58),-1)+10 -> 60
A61: Min | B61: =ROUNDDOWN(MIN(B11:B58),-1)-10 -> -10 | D61: =ROUNDDOWN(MIN(D11:D58),-1)-10 -> -10 | F61: =ROUNDDOWN(MIN(F11:F58),-1)-10 -> -80
A62: Scale | B62: =ROUNDUP(((B60-B61)/10),-1) -> 130 | D62: =ROUNDUP(((D60-D61)/10),-1) -> 130 | F62: =ROUNDUP(((F60-F61)/10),-1) -> 20

Sheet Spreads
I1: Use the Drop-Down Menus in Cells L3 and L7 to select items.
C2: Use the Drop-Down Menu in Cell F4 to select item.
I3: Futures 1 | J3: Minneapolis Hard Red Spring Wheat Futures
I5: minus
B7: =VLOOKUP(J3,Codes!A2:B38,2,FALSE) -> 2 | D7: =VLOOKUP(J7,Codes!A2:B38,2,FALSE) -> 3 | F7: =J3 -> Minneapolis Hard Red Spring Wheat Futures | I7: Futures 2 | J7: KCBT Hard Red Winter Wheat Futures
B8: =J3 -> Minneapolis Hard Red Spring Wheat Futures | D8: =J7 -> KCBT Hard Red Winter Wheat Futures | F8: minus
F9: =J7 -> KCBT Hard Red Winter Wheat Futures
A10: Month | F10: Spread or Basis
A11: =Data!A107 -> 2022-01-01 | B11: =IF(VLOOKUP(A11,Data!$A$11:$AL$154,Spreads!$B$7,FALSE)=0,"",VLOOKUP(A11,Data!$A$11:$AL$154,Spreads!$B$7,FALSE)) -> 906.5 | D11: =IF(VLOOKUP(A11,Data!$A$11:$AL$154,Spreads!$D$7,FALSE)=0,"",VLOOKUP(A11,Data!$A$11:$AL$154,Spreads!$D$7,FALSE)) -> 781.25 | F11: =IF(B11="", "",B11-D11) -> 125.25 | I11: =J3 -> Minneapolis Hard Red Spring Wheat Futures
A12: =Data!A108 -> 2022-02-01 | B12: =IF(VLOOKUP(A12,Data!$A$11:$AL$154,Spreads!$B$7,FALSE)=0,"",VLOOKUP(A12,Data!$A$11:$AL$154,Spreads!$B$7,FALSE)) -> 989 | D12: =IF(VLOOKUP(A12,Data!$A$11:$AL$154,Spreads!$D$7,FALSE)=0,"",VLOOKUP(A12,Data!$A$11:$AL$154,Spreads!$D$7,FALSE)) -> 954.25 | F12: =IF(B12="", "",B12-D12) -> 34.75 | I12: minus
A13: =Data!A109 -> 2022-03-01 | B13: =IF(VLOOKUP(A13,Data!$A$11:$AL$154,Spreads!$B$7,FALSE)=0,"",VLOOKUP(A13,Data!$A$11:$AL$154,Spreads!$B$7,FALSE)) -> 1079.5 | D13: =IF(VLOOKUP(A13,Data!$A$11:$AL$154,Spreads!$D$7,FALSE)=0,"",VLOOKUP(A13,Data!$A$11:$AL$154,Spreads!$D$7,FALSE)) -> 1130.5 | F13: -51 | I13: =J7 -> KCBT Hard Red Winter Wheat Futures
A14: =Data!A110 -> 2022-04-01 | B14: =IF(VLOOKUP(A14,Data!$A$11:$AL$154,Spreads!$B$7,FALSE)=0,"",VLOOKUP(A14,Data!$A$11:$AL$154,Spreads!$B$7,FALSE)) -> 1161.25 | D14: =IF(VLOOKUP(A14,Data!$A$11:$AL$154,Spreads!$D$7,FALSE)=0,"",VLOOKUP(A14,Data!$A$11:$AL$154,Spreads!$D$7,FALSE)) -> 1094.25 | F14: 67 | I14: Futures Spread
A15: =Data!A111 -> 2022-05-01 | B15: =IF(VLOOKUP(A15,Data!$A$11:$AL$154,Spreads!$B$7,FALSE)=0,"",VLOOKUP(A15,Data!$A$11:$AL$154,Spreads!$B$7,FALSE)) -> 1247.5 | D15: =IF(VLOOKUP(A15,Data!$A$11:$AL$154,Spreads!$D$7,FALSE)=0,"",VLOOKUP(A15,Data!$A$11:$AL$154,Spreads!$D$7,FALSE)) -> 1165.5 | F15: 82 | O15: 2022-24
A16: =Data!A112 -> 2022-06-01 | B16: =IF(VLOOKUP(A16,Data!$A$11:$AL$154,Spreads!$B$7,FALSE)=0,"",VLOOKUP(A16,Data!$A$11:$AL$154,Spreads!$B$7,FALSE)) -> 987.75 | D16: =IF(VLOOKUP(A16,Data!$A$11:$AL$154,Spreads!$D$7,FALSE)=0,"",VLOOKUP(A16,Data!$A$11:$AL$154,Spreads!$D$7,FALSE)) -> 948.75 | F16: 39 | I16: Month | J16: 2022 | K16: 2023 | L16: 2024 | M16: 2025 | O16: Average
A17: =Data!A113 -> 2022-07-01 | B17: =IF(VLOOKUP(A17,Data!$A$11:$AL$154,Spreads!$B$7,FALSE)=0,"",VLOOKUP(A17,Data!$A$11:$AL$154,Spreads!$B$7,FALSE)) -> 906 | D17: =IF(VLOOKUP(A17,Data!$A$11:$AL$154,Spreads!$D$7,FALSE)=0,"",VLOOKUP(A17,Data!$A$11:$AL$154,Spreads!$D$7,FALSE)) -> 874.5 | F17: 31.5 | I17: Jan. | J17: =IF(F11="",NA(),F11) -> 125.25 | K17: =IF(F23="",NA(),F23) -> 43.5 | L17: =IF(F35="",NA(),F35) -> 81.75 | M17: =IF(F47="",NA(),F47) -> 36.25 | O17: =AVERAGE(J17:L17) -> 83.5
A18: =Data!A114 -> 2022-08-01 | B18: =IF(VLOOKUP(A18,Data!$A$11:$AL$154,Spreads!$B$7,FALSE)=0,"",VLOOKUP(A18,Data!$A$11:$AL$154,Spreads!$B$7,FALSE)) -> 915.5 | D18: =IF(VLOOKUP(A18,Data!$A$11:$AL$154,Spreads!$D$7,FALSE)=0,"",VLOOKUP(A18,Data!$A$11:$AL$154,Spreads!$D$7,FALSE)) -> 924.25 | F18: -8.75 | I18: Feb. | J18: 34.75 | K18: 55 | L18: 61.75 | M18: 24 | O18: 50.5
A19: =Data!A115 -> 2022-09-01 | B19: =IF(VLOOKUP(A19,Data!$A$11:$AL$154,Spreads!$B$7,FALSE)=0,"",VLOOKUP(A19,Data!$A$11:$AL$154,Spreads!$B$7,FALSE)) -> 982 | D19: =IF(VLOOKUP(A19,Data!$A$11:$AL$154,Spreads!$D$7,FALSE)=0,"",VLOOKUP(A19,Data!$A$11:$AL$154,Spreads!$D$7,FALSE)) -> 991.5 | F19: -9.5 | I19: Mar. | J19: -51 | K19: 18 | L19: 18.5 | M19: 35 | O19: -4.833333333
A20: =Data!A116 -> 2022-10-01 | B20: =IF(VLOOKUP(A20,Data!$A$11:$AL$154,Spreads!$B$7,FALSE)=0,"",VLOOKUP(A20,Data!$A$11:$AL$154,Spreads!$B$7,FALSE)) -> 981.25 | D20: =IF(VLOOKUP(A20,Data!$A$11:$AL$154,Spreads!$D$7,FALSE)=0,"",VLOOKUP(A20,Data!$A$11:$AL$154,Spreads!$D$7,FALSE)) -> 924 | F20: 57.25 | I20: Apr. | J20: 67 | K20: -19.25 | L20: 87.5 | M20: 99.75 | O20: 45.08333333
A21: =Data!A117 -> 2022-11-01 | B21: =IF(VLOOKUP(A21,Data!$A$11:$AL$154,Spreads!$B$7,FALSE)=0,"",VLOOKUP(A21,Data!$A$11:$AL$154,Spreads!$B$7,FALSE)) -> 956.75 | D21: =IF(VLOOKUP(A21,Data!$A$11:$AL$154,Spreads!$D$7,FALSE)=0,"",VLOOKUP(A21,Data!$A$11:$AL$154,Spreads!$D$7,FALSE)) -> 913.25 | F21: 43.5 | I21: May | J21: 82 | K21: 130.5 | L21: 31 | M21: 92.25 | O21: 81.16666667
A22: =Data!A118 -> 2022-12-01 | B22: =IF(VLOOKUP(A22,Data!$A$11:$AL$154,Spreads!$B$7,FALSE)=0,"",VLOOKUP(A22,Data!$A$11:$AL$154,Spreads!$B$7,FALSE)) -> 938.75 | D22: =IF(VLOOKUP(A22,Data!$A$11:$AL$154,Spreads!$D$7,FALSE)=0,"",VLOOKUP(A22,Data!$A$11:$AL$154,Spreads!$D$7,FALSE)) -> 888 | F22: 50.75 | I22: Jne. | J22: 39 | K22: 0.75 | L22: 25.5 | M22: 97 | O22: 21.75
A23: =Data!A119 -> 2023-01-01 | B23: =IF(VLOOKUP(A23,Data!$A$11:$AL$154,Spreads!$B$7,FALSE)=0,"",VLOOKUP(A23,Data!$A$11:$AL$154,Spreads!$B$7,FALSE)) -> 922.25 | D23: =IF(VLOOKUP(A23,Data!$A$11:$AL$154,Spreads!$D$7,FALSE)=0,"",VLOOKUP(A23,Data!$A$11:$AL$154,Spreads!$D$7,FALSE)) -> 878.75 | F23: 43.5 | I23: Jly. | J23: 31.5 | K23: 43 | L23: 32.5 | O23: 35.66666667
A24: =Data!A120 -> 2023-02-01 | B24: =IF(VLOOKUP(A24,Data!$A$11:$AL$154,Spreads!$B$7,FALSE)=0,"",VLOOKUP(A24,Data!$A$11:$AL$154,Spreads!$B$7,FALSE)) -> 870.75 | D24: =IF(VLOOKUP(A24,Data!$A$11:$AL$154,Spreads!$D$7,FALSE)=0,"",VLOOKUP(A24,Data!$A$11:$AL$154,Spreads!$D$7,FALSE)) -> 815.75 | F24: 55 | I24: Aug. | J24: -8.75 | K24: 8.5 | L24: 21.25 | O24: 7
A25: =Data!A121 -> 2023-03-01 | B25: =IF(VLOOKUP(A25,Data!$A$11:$AL$154,Spreads!$B$7,FALSE)=0,"",VLOOKUP(A25,Data!$A$11:$AL$154,Spreads!$B$7,FALSE)) -> 895.75 | D25: =IF(VLOOKUP(A25,Data!$A$11:$AL$154,Spreads!$D$7,FALSE)=0,"",VLOOKUP(A25,Data!$A$11:$AL$154,Spreads!$D$7,FALSE)) -> 877.75 | F25: 18 | I25: Sep. | J25: -9.5 | K25: 45.5 | L25: 38 | O25: 24.66666667
A26: =Data!A122 -> 2023-04-01 | B26: =IF(VLOOKUP(A26,Data!$A$11:$AL$154,Spreads!$B$7,FALSE)=0,"",VLOOKUP(A26,Data!$A$11:$AL$154,Spreads!$B$7,FALSE)) -> 788 | D26: =IF(VLOOKUP(A26,Data!$A$11:$AL$154,Spreads!$D$7,FALSE)=0,"",VLOOKUP(A26,Data!$A$11:$AL$154,Spreads!$D$7,FALSE)) -> 807.25 | F26: -19.25 | I26: Oct. | J26: 57.25 | K26: 80 | L26: 35 | O26: 57.41666667
A27: =Data!A123 -> 2023-05-01 | B27: =IF(VLOOKUP(A27,Data!$A$11:$AL$154,Spreads!$B$7,FALSE)=0,"",VLOOKUP(A27,Data!$A$11:$AL$154,Spreads!$B$7,FALSE)) -> 780 | D27: =IF(VLOOKUP(A27,Data!$A$11:$AL$154,Spreads!$D$7,FALSE)=0,"",VLOOKUP(A27,Data!$A$11:$AL$154,Spreads!$D$7,FALSE)) -> 649.5 | F27: 130.5 | I27: Nov. | J27: 43.5 | K27: 59.25 | L27: 38.25 | O27: 47
A28: =Data!A124 -> 2023-06-01 | B28: =IF(VLOOKUP(A28,Data!$A$11:$AL$154,Spreads!$B$7,FALSE)=0,"",VLOOKUP(A28,Data!$A$11:$AL$154,Spreads!$B$7,FALSE)) -> 802 | D28: =IF(VLOOKUP(A28,Data!$A$11:$AL$154,Spreads!$D$7,FALSE)=0,"",VLOOKUP(A28,Data!$A$11:$AL$154,Spreads!$D$7,FALSE)) -> 801.25 | F28: 0.75 | I28: Dec. | J28: 50.75 | K28: 81.5 | L28: 36.5 | O28: 56.25
A29: =Data!A125 -> 2023-07-01 | B29: =IF(VLOOKUP(A29,Data!$A$11:$AL$154,Spreads!$B$7,FALSE)=0,"",VLOOKUP(A29,Data!$A$11:$AL$154,Spreads!$B$7,FALSE)) -> 855.75 | D29: =IF(VLOOKUP(A29,Data!$A$11:$AL$154,Spreads!$D$7,FALSE)=0,"",VLOOKUP(A29,Data!$A$11:$AL$154,Spreads!$D$7,FALSE)) -> 812.75 | F29: 43 | I29: Average | J29: =AVERAGE(J17:J28) -> 38.47916667 | K29: =AVERAGE(K17:K28) -> 45.52083333 | L29: =AVERAGE(L17:L28) -> 42.29166667 | O29: =AVERAGE(O17:O28) -> 42.09722222
A30: =Data!A126 -> 2023-08-01 | B30: =IF(VLOOKUP(A30,Data!$A$11:$AL$154,Spreads!$B$7,FALSE)=0,"",VLOOKUP(A30,Data!$A$11:$AL$154,Spreads!$B$7,FALSE)) -> 735 | D30: =IF(VLOOKUP(A30,Data!$A$11:$AL$154,Spreads!$D$7,FALSE)=0,"",VLOOKUP(A30,Data!$A$11:$AL$154,Spreads!$D$7,FALSE)) -> 726.5 | F30: 8.5
A31: =Data!A127 -> 2023-09-01 | B31: =IF(VLOOKUP(A31,Data!$A$11:$AL$154,Spreads!$B$7,FALSE)=0,"",VLOOKUP(A31,Data!$A$11:$AL$154,Spreads!$B$7,FALSE)) -> 709.25 | D31: =IF(VLOOKUP(A31,Data!$A$11:$AL$154,Spreads!$D$7,FALSE)=0,"",VLOOKUP(A31,Data!$A$11:$AL$154,Spreads!$D$7,FALSE)) -> 663.75 | F31: 45.5
A32: =Data!A128 -> 2023-10-01 | B32: =IF(VLOOKUP(A32,Data!$A$11:$AL$154,Spreads!$B$7,FALSE)=0,"",VLOOKUP(A32,Data!$A$11:$AL$154,Spreads!$B$7,FALSE)) -> 709.25 | D32: =IF(VLOOKUP(A32,Data!$A$11:$AL$154,Spreads!$D$7,FALSE)=0,"",VLOOKUP(A32,Data!$A$11:$AL$154,Spreads!$D$7,FALSE)) -> 629.25 | F32: 80
A33: =Data!A129 -> 2023-11-01 | B33: =IF(VLOOKUP(A33,Data!$A$11:$AL$154,Spreads!$B$7,FALSE)=0,"",VLOOKUP(A33,Data!$A$11:$AL$154,Spreads!$B$7,FALSE)) -> 702.5 | D33: =IF(VLOOKUP(A33,Data!$A$11:$AL$154,Spreads!$D$7,FALSE)=0,"",VLOOKUP(A33,Data!$A$11:$AL$154,Spreads!$D$7,FALSE)) -> 643.25 | F33: 59.25
A34: =Data!A130 -> 2023-12-01 | B34: =IF(VLOOKUP(A34,Data!$A$11:$AL$154,Spreads!$B$7,FALSE)=0,"",VLOOKUP(A34,Data!$A$11:$AL$154,Spreads!$B$7,FALSE)) -> 723.5 | D34: =IF(VLOOKUP(A34,Data!$A$11:$AL$154,Spreads!$D$7,FALSE)=0,"",VLOOKUP(A34,Data!$A$11:$AL$154,Spreads!$D$7,FALSE)) -> 642 | F34: 81.5
A35: =Data!A131 -> 2024-01-01 | B35: =IF(VLOOKUP(A35,Data!$A$11:$AL$154,Spreads!$B$7,FALSE)=0,"",VLOOKUP(A35,Data!$A$11:$AL$154,Spreads!$B$7,FALSE)) -> 692.25 | D35: =IF(VLOOKUP(A35,Data!$A$11:$AL$154,Spreads!$D$7,FALSE)=0,"",VLOOKUP(A35,Data!$A$11:$AL$154,Spreads!$D$7,FALSE)) -> 610.5 | F35: 81.75
A36: =Data!A132 -> 2024-02-01 | B36: =IF(VLOOKUP(A36,Data!$A$11:$AL$154,Spreads!$B$7,FALSE)=0,"",VLOOKUP(A36,Data!$A$11:$AL$154,Spreads!$B$7,FALSE)) -> 664.5 | D36: =IF(VLOOKUP(A36,Data!$A$11:$AL$154,Spreads!$D$7,FALSE)=0,"",VLOOKUP(A36,Data!$A$11:$AL$154,Spreads!$D$7,FALSE)) -> 602.75 | F36: 61.75
A37: =Data!A133 -> 2024-03-01 | B37: =IF(VLOOKUP(A37,Data!$A$11:$AL$154,Spreads!$B$7,FALSE)=0,"",VLOOKUP(A37,Data!$A$11:$AL$154,Spreads!$B$7,FALSE)) -> 645 | D37: =IF(VLOOKUP(A37,Data!$A$11:$AL$154,Spreads!$D$7,FALSE)=0,"",VLOOKUP(A37,Data!$A$11:$AL$154,Spreads!$D$7,FALSE)) -> 626.5 | F37: 18.5
A38: =Data!A134 -> 2024-04-01 | B38: =IF(VLOOKUP(A38,Data!$A$11:$AL$154,Spreads!$B$7,FALSE)=0,"",VLOOKUP(A38,Data!$A$11:$AL$154,Spreads!$B$7,FALSE)) -> 710.25 | D38: =IF(VLOOKUP(A38,Data!$A$11:$AL$154,Spreads!$D$7,FALSE)=0,"",VLOOKUP(A38,Data!$A$11:$AL$154,Spreads!$D$7,FALSE)) -> 622.75 | F38: 87.5
A39: =Data!A135 -> 2024-05-01 | B39: =IF(VLOOKUP(A39,Data!$A$11:$AL$154,Spreads!$B$7,FALSE)=0,"",VLOOKUP(A39,Data!$A$11:$AL$154,Spreads!$B$7,FALSE)) -> 739.75 | D39: =IF(VLOOKUP(A39,Data!$A$11:$AL$154,Spreads!$D$7,FALSE)=0,"",VLOOKUP(A39,Data!$A$11:$AL$154,Spreads!$D$7,FALSE)) -> 708.75 | F39: 31
A40: =Data!A136 -> 2024-06-01 | B40: =IF(VLOOKUP(A40,Data!$A$11:$AL$154,Spreads!$B$7,FALSE)=0,"",VLOOKUP(A40,Data!$A$11:$AL$154,Spreads!$B$7,FALSE)) -> 613 | D40: =IF(VLOOKUP(A40,Data!$A$11:$AL$154,Spreads!$D$7,FALSE)=0,"",VLOOKUP(A40,Data!$A$11:$AL$154,Spreads!$D$7,FALSE)) -> 587.5 | F40: 25.5
A41: =Data!A137 -> 2024-07-01 | B41: =IF(VLOOKUP(A41,Data!$A$11:$AL$154,Spreads!$B$7,FALSE)=0,"",VLOOKUP(A41,Data!$A$11:$AL$154,Spreads!$B$7,FALSE)) -> 581.5 | D41: =IF(VLOOKUP(A41,Data!$A$11:$AL$154,Spreads!$D$7,FALSE)=0,"",VLOOKUP(A41,Data!$A$11:$AL$154,Spreads!$D$7,FALSE)) -> 549 | F41: 32.5
A42: =Data!A138 -> 2024-08-01 | B42: =IF(VLOOKUP(A42,Data!$A$11:$AL$154,Spreads!$B$7,FALSE)=0,"",VLOOKUP(A42,Data!$A$11:$AL$154,Spreads!$B$7,FALSE)) -> 573.75 | D42: =IF(VLOOKUP(A42,Data!$A$11:$AL$154,Spreads!$D$7,FALSE)=0,"",VLOOKUP(A42,Data!$A$11:$AL$154,Spreads!$D$7,FALSE)) -> 552.5 | F42: 21.25
A43: =Data!A139 -> 2024-09-01 | B43: =IF(VLOOKUP(A43,Data!$A$11:$AL$154,Spreads!$B$7,FALSE)=0,"",VLOOKUP(A43,Data!$A$11:$AL$154,Spreads!$B$7,FALSE)) -> 621.75 | D43: =IF(VLOOKUP(A43,Data!$A$11:$AL$154,Spreads!$D$7,FALSE)=0,"",VLOOKUP(A43,Data!$A$11:$AL$154,Spreads!$D$7,FALSE)) -> 583.75 | F43: 38
A44: =Data!A140 -> 2024-10-01 | B44: =IF(VLOOKUP(A44,Data!$A$11:$AL$154,Spreads!$B$7,FALSE)=0,"",VLOOKUP(A44,Data!$A$11:$AL$154,Spreads!$B$7,FALSE)) -> 604.25 | D44: =IF(VLOOKUP(A44,Data!$A$11:$AL$154,Spreads!$D$7,FALSE)=0,"",VLOOKUP(A44,Data!$A$11:$AL$154,Spreads!$D$7,FALSE)) -> 569.25 | F44: 35
A45: =Data!A141 -> 2024-11-01 | B45: =IF(VLOOKUP(A45,Data!$A$11:$AL$154,Spreads!$B$7,FALSE)=0,"",VLOOKUP(A45,Data!$A$11:$AL$154,Spreads!$B$7,FALSE)) -> 564.5 | D45: =IF(VLOOKUP(A45,Data!$A$11:$AL$154,Spreads!$D$7,FALSE)=0,"",VLOOKUP(A45,Data!$A$11:$AL$154,Spreads!$D$7,FALSE)) -> 526.25 | F45: 38.25
A46: =Data!A142 -> 2024-12-01 | B46: =IF(VLOOKUP(A46,Data!$A$11:$AL$154,Spreads!$B$7,FALSE)=0,"",VLOOKUP(A46,Data!$A$11:$AL$154,Spreads!$B$7,FALSE)) -> 595.75 | D46: =IF(VLOOKUP(A46,Data!$A$11:$AL$154,Spreads!$D$7,FALSE)=0,"",VLOOKUP(A46,Data!$A$11:$AL$154,Spreads!$D$7,FALSE)) -> 559.25 | F46: 36.5
A47: =Data!A143 -> 2025-01-01 | B47: =IF(VLOOKUP(A47,Data!$A$11:$AL$154,Spreads!$B$7,FALSE)=0,"",VLOOKUP(A47,Data!$A$11:$AL$154,Spreads!$B$7,FALSE)) -> 615.5 | D47: =IF(VLOOKUP(A47,Data!$A$11:$AL$154,Spreads!$D$7,FALSE)=0,"",VLOOKUP(A47,Data!$A$11:$AL$154,Spreads!$D$7,FALSE)) -> 579.25 | F47: 36.25
A48: =Data!A144 -> 2025-02-01 | B48: =IF(VLOOKUP(A48,Data!$A$11:$AL$154,Spreads!$B$7,FALSE)=0,"",VLOOKUP(A48,Data!$A$11:$AL$154,Spreads!$B$7,FALSE)) -> 582.25 | D48: =IF(VLOOKUP(A48,Data!$A$11:$AL$154,Spreads!$D$7,FALSE)=0,"",VLOOKUP(A48,Data!$A$11:$AL$154,Spreads!$D$7,FALSE)) -> 558.25 | F48: 24
A49: =Data!A145 -> 2025-03-01 | B49: =IF(VLOOKUP(A49,Data!$A$11:$AL$154,Spreads!$B$7,FALSE)=0,"",VLOOKUP(A49,Data!$A$11:$AL$154,Spreads!$B$7,FALSE)) -> 592 | D49: =IF(VLOOKUP(A49,Data!$A$11:$AL$154,Spreads!$D$7,FALSE)=0,"",VLOOKUP(A49,Data!$A$11:$AL$154,Spreads!$D$7,FALSE)) -> 557 | F49: 35
A50: =Data!A146 -> 2025-04-01 | B50: =IF(VLOOKUP(A50,Data!$A$11:$AL$154,Spreads!$B$7,FALSE)=0,"",VLOOKUP(A50,Data!$A$11:$AL$154,Spreads!$B$7,FALSE)) -> 614 | D50: =IF(VLOOKUP(A50,Data!$A$11:$AL$154,Spreads!$D$7,FALSE)=0,"",VLOOKUP(A50,Data!$A$11:$AL$154,Spreads!$D$7,FALSE)) -> 514.25 | F50: 99.75
A51: =Data!A147 -> 2025-05-01 | B51: =IF(VLOOKUP(A51,Data!$A$11:$AL$154,Spreads!$B$7,FALSE)=0,"",VLOOKUP(A51,Data!$A$11:$AL$154,Spreads!$B$7,FALSE)) -> 625.5 | D51: =IF(VLOOKUP(A51,Data!$A$11:$AL$154,Spreads!$D$7,FALSE)=0,"",VLOOKUP(A51,Data!$A$11:$AL$154,Spreads!$D$7,FALSE)) -> 533.25 | F51: 92.25
A52: =Data!A148 -> 2025-06-01 | B52: =IF(VLOOKUP(A52,Data!$A$11:$AL$154,Spreads!$B$7,FALSE)=0,"",VLOOKUP(A52,Data!$A$11:$AL$154,Spreads!$B$7,FALSE)) -> 603 | D52: =IF(VLOOKUP(A52,Data!$A$11:$AL$154,Spreads!$D$7,FALSE)=0,"",VLOOKUP(A52,Data!$A$11:$AL$154,Spreads!$D$7,FALSE)) -> 506 | F52: 97
A53: =Data!A149 -> 2025-07-01 | B53: =IF(VLOOKUP(A53,Data!$A$11:$AL$154,Spreads!$B$7,FALSE)=0,"",VLOOKUP(A53,Data!$A$11:$AL$154,Spreads!$B$7,FALSE)) ->  | D53: =IF(VLOOKUP(A53,Data!$A$11:$AL$154,Spreads!$D$7,FALSE)=0,"",VLOOKUP(A53,Data!$A$11:$AL$154,Spreads!$D$7,FALSE)) -> 
A54: =Data!A150 -> 2025-08-01 | B54: =IF(VLOOKUP(A54,Data!$A$11:$AL$154,Spreads!$B$7,FALSE)=0,"",VLOOKUP(A54,Data!$A$11:$AL$154,Spreads!$B$7,FALSE)) ->  | D54: =IF(VLOOKUP(A54,Data!$A$11:$AL$154,Spreads!$D$7,FALSE)=0,"",VLOOKUP(A54,Data!$A$11:$AL$154,Spreads!$D$7,FALSE)) -> 
A55: =Data!A151 -> 2025-09-01 | B55: =IF(VLOOKUP(A55,Data!$A$11:$AL$154,Spreads!$B$7,FALSE)=0,"",VLOOKUP(A55,Data!$A$11:$AL$154,Spreads!$B$7,FALSE)) ->  | D55: =IF(VLOOKUP(A55,Data!$A$11:$AL$154,Spreads!$D$7,FALSE)=0,"",VLOOKUP(A55,Data!$A$11:$AL$154,Spreads!$D$7,FALSE)) -> 
A56: =Data!A152 -> 2025-10-01 | B56: =IF(VLOOKUP(A56,Data!$A$11:$AL$154,Spreads!$B$7,FALSE)=0,"",VLOOKUP(A56,Data!$A$11:$AL$154,Spreads!$B$7,FALSE)) ->  | D56: =IF(VLOOKUP(A56,Data!$A$11:$AL$154,Spreads!$D$7,FALSE)=0,"",VLOOKUP(A56,Data!$A$11:$AL$154,Spreads!$D$7,FALSE)) -> 
A57: =Data!A153 -> 2025-11-01 | B57: =IF(VLOOKUP(A57,Data!$A$11:$AL$154,Spreads!$B$7,FALSE)=0,"",VLOOKUP(A57,Data!$A$11:$AL$154,Spreads!$B$7,FALSE)) ->  | D57: =IF(VLOOKUP(A57,Data!$A$11:$AL$154,Spreads!$D$7,FALSE)=0,"",VLOOKUP(A57,Data!$A$11:$AL$154,Spreads!$D$7,FALSE)) -> 
A58: =Data!A154 -> 2025-12-01 | B58: =IF(VLOOKUP(A58,Data!$A$11:$AL$154,Spreads!$B$7,FALSE)=0,"",VLOOKUP(A58,Data!$A$11:$AL$154,Spreads!$B$7,FALSE)) ->  | D58: =IF(VLOOKUP(A58,Data!$A$11:$AL$154,Spreads!$D$7,FALSE)=0,"",VLOOKUP(A58,Data!$A$11:$AL$154,Spreads!$D$7,FALSE)) -> 
A60: Max | B60: =ROUNDUP(MAX(B11:D58),-1)+10 -> 1260 | D60: =ROUNDUP(MAX(D11:D58),-1)+10 -> 1180 | F60: =ROUNDUP(MAX(F11:F58),-1)+10 -> 150
A61: Min | B61: =ROUNDDOWN(MIN(B11:D58),-1)-10 -> 490 | D61: =ROUNDDOWN(MIN(D11:D58),-1)-10 -> 490 | F61: =ROUNDDOWN(MIN(F11:F58),-1)-10 -> -60
A62: Scale | B62: =ROUNDUP(((B60-B61)/10),-1) -> 80 | D62: =ROUNDUP(((D60-D61)/10),-1) -> 70 | F62: =ROUNDUP(((F60-F61)/10),-1) -> 30

Sheet Prices
H1: Use the Drop-Down Menus in Cells L3 and L7 to select items.
C2: Use the Drop-Down Menu in Cell F4 to select item.
H3: Price 1 | I3: Minneapolis Hard Red Spring Wheat Futures
H5: minus
B7: =VLOOKUP(I3,Codes!A2:B38,2,FALSE) -> 2 | D7: =VLOOKUP(I7,Codes!A2:B38,2,FALSE) -> 3 | H7: Price 2 | I7: KCBT Hard Red Winter Wheat Futures
B8: =I3 -> Minneapolis Hard Red Spring Wheat Futures | D8: =I7 -> KCBT Hard Red Winter Wheat Futures
A10: Month | H10: =I3 -> Minneapolis Hard Red Spring Wheat Futures
A11: =Data!A107 -> 2022-01-01 | B11: =IF(VLOOKUP(A11,Data!$A$11:$AL$154,Prices!$B$7,FALSE)=0,"",VLOOKUP(A11,Data!$A$11:$AL$154,Prices!$B$7,FALSE)) -> 906.5 | D11: =IF(VLOOKUP(A11,Data!$A$11:$AL$154,Prices!$D$7,FALSE)=0,"",VLOOKUP(A11,Data!$A$11:$AL$154,Prices!$D$7,FALSE)) -> 781.25 | N11: 2022-24
A12: =Data!A108 -> 2022-02-01 | B12: =IF(VLOOKUP(A12,Data!$A$11:$AL$154,Prices!$B$7,FALSE)=0,"",VLOOKUP(A12,Data!$A$11:$AL$154,Prices!$B$7,FALSE)) -> 989 | D12: =IF(VLOOKUP(A12,Data!$A$11:$AL$154,Prices!$D$7,FALSE)=0,"",VLOOKUP(A12,Data!$A$11:$AL$154,Prices!$D$7,FALSE)) -> 954.25 | H12: Month | I12: 2022 | J12: 2023 | K12: 2024 | L12: 2025 | N12: Average
A13: =Data!A109 -> 2022-03-01 | B13: =IF(VLOOKUP(A13,Data!$A$11:$AL$154,Prices!$B$7,FALSE)=0,"",VLOOKUP(A13,Data!$A$11:$AL$154,Prices!$B$7,FALSE)) -> 1079.5 | D13: =IF(VLOOKUP(A13,Data!$A$11:$AL$154,Prices!$D$7,FALSE)=0,"",VLOOKUP(A13,Data!$A$11:$AL$154,Prices!$D$7,FALSE)) -> 1130.5 | H13: Jan. | I13: =IF(B11="",NA(),B11) -> 906.5 | J13: =IF(B23="",NA(),B23) -> 922.25 | K13: =IF(B35="",NA(),B35) -> 692.25 | L13: =IF(B47="",NA(),B47) -> 615.5 | N13: =AVERAGE(I13:K13) -> 840.3333333
A14: =Data!A110 -> 2022-04-01 | B14: =IF(VLOOKUP(A14,Data!$A$11:$AL$154,Prices!$B$7,FALSE)=0,"",VLOOKUP(A14,Data!$A$11:$AL$154,Prices!$B$7,FALSE)) -> 1161.25 | D14: =IF(VLOOKUP(A14,Data!$A$11:$AL$154,Prices!$D$7,FALSE)=0,"",VLOOKUP(A14,Data!$A$11:$AL$154,Prices!$D$7,FALSE)) -> 1094.25 | H14: Feb. | I14: 989 | J14: 870.75 | K14: 664.5 | L14: 582.25 | N14: =AVERAGE(I14:K14) -> 841.4166667
A15: =Data!A111 -> 2022-05-01 | B15: =IF(VLOOKUP(A15,Data!$A$11:$AL$154,Prices!$B$7,FALSE)=0,"",VLOOKUP(A15,Data!$A$11:$AL$154,Prices!$B$7,FALSE)) -> 1247.5 | D15: =IF(VLOOKUP(A15,Data!$A$11:$AL$154,Prices!$D$7,FALSE)=0,"",VLOOKUP(A15,Data!$A$11:$AL$154,Prices!$D$7,FALSE)) -> 1165.5 | H15: Mar. | I15: 1079.5 | J15: 895.75 | K15: 645 | L15: 592 | N15: 873.4166667
A16: =Data!A112 -> 2022-06-01 | B16: =IF(VLOOKUP(A16,Data!$A$11:$AL$154,Prices!$B$7,FALSE)=0,"",VLOOKUP(A16,Data!$A$11:$AL$154,Prices!$B$7,FALSE)) -> 987.75 | D16: =IF(VLOOKUP(A16,Data!$A$11:$AL$154,Prices!$D$7,FALSE)=0,"",VLOOKUP(A16,Data!$A$11:$AL$154,Prices!$D$7,FALSE)) -> 948.75 | H16: Apr. | I16: 1161.25 | J16: 788 | K16: 710.25 | L16: 614 | N16: 886.5
A17: =Data!A113 -> 2022-07-01 | B17: =IF(VLOOKUP(A17,Data!$A$11:$AL$154,Prices!$B$7,FALSE)=0,"",VLOOKUP(A17,Data!$A$11:$AL$154,Prices!$B$7,FALSE)) -> 906 | D17: =IF(VLOOKUP(A17,Data!$A$11:$AL$154,Prices!$D$7,FALSE)=0,"",VLOOKUP(A17,Data!$A$11:$AL$154,Prices!$D$7,FALSE)) -> 874.5 | H17: May | I17: 1247.5 | J17: 780 | K17: 739.75 | L17: 625.5 | N17: 922.4166667
A18: =Data!A114 -> 2022-08-01 | B18: =IF(VLOOKUP(A18,Data!$A$11:$AL$154,Prices!$B$7,FALSE)=0,"",VLOOKUP(A18,Data!$A$11:$AL$154,Prices!$B$7,FALSE)) -> 915.5 | D18: =IF(VLOOKUP(A18,Data!$A$11:$AL$154,Prices!$D$7,FALSE)=0,"",VLOOKUP(A18,Data!$A$11:$AL$154,Prices!$D$7,FALSE)) -> 924.25 | H18: Jne. | I18: 987.75 | J18: 802 | K18: 613 | L18: 603 | N18: 800.9166667
A19: =Data!A115 -> 2022-09-01 | B19: =IF(VLOOKUP(A19,Data!$A$11:$AL$154,Prices!$B$7,FALSE)=0,"",VLOOKUP(A19,Data!$A$11:$AL$154,Prices!$B$7,FALSE)) -> 982 | D19: =IF(VLOOKUP(A19,Data!$A$11:$AL$154,Prices!$D$7,FALSE)=0,"",VLOOKUP(A19,Data!$A$11:$AL$154,Prices!$D$7,FALSE)) -> 991.5 | H19: Jly. | I19: 906 | J19: 855.75 | K19: 581.5 | N19: 781.0833333
A20: =Data!A116 -> 2022-10-01 | B20: =IF(VLOOKUP(A20,Data!$A$11:$AL$154,Prices!$B$7,FALSE)=0,"",VLOOKUP(A20,Data!$A$11:$AL$154,Prices!$B$7,FALSE)) -> 981.25 | D20: =IF(VLOOKUP(A20,Data!$A$11:$AL$154,Prices!$D$7,FALSE)=0,"",VLOOKUP(A20,Data!$A$11:$AL$154,Prices!$D$7,FALSE)) -> 924 | H20: Aug. | I20: 915.5 | J20: 735 | K20: 573.75 | N20: 741.4166667
A21: =Data!A117 -> 2022-11-01 | B21: =IF(VLOOKUP(A21,Data!$A$11:$AL$154,Prices!$B$7,FALSE)=0,"",VLOOKUP(A21,Data!$A$11:$AL$154,Prices!$B$7,FALSE)) -> 956.75 | D21: =IF(VLOOKUP(A21,Data!$A$11:$AL$154,Prices!$D$7,FALSE)=0,"",VLOOKUP(A21,Data!$A$11:$AL$154,Prices!$D$7,FALSE)) -> 913.25 | H21: Sep. | I21: 982 | J21: 709.25 | K21: 621.75 | N21: 771
A22: =Data!A118 -> 2022-12-01 | B22: =IF(VLOOKUP(A22,Data!$A$11:$AL$154,Prices!$B$7,FALSE)=0,"",VLOOKUP(A22,Data!$A$11:$AL$154,Prices!$B$7,FALSE)) -> 938.75 | D22: =IF(VLOOKUP(A22,Data!$A$11:$AL$154,Prices!$D$7,FALSE)=0,"",VLOOKUP(A22,Data!$A$11:$AL$154,Prices!$D$7,FALSE)) -> 888 | H22: Oct. | I22: 981.25 | J22: 709.25 | K22: 604.25 | N22: =AVERAGE(I22:K22) -> 764.9166667
A23: =Data!A119 -> 2023-01-01 | B23: =IF(VLOOKUP(A23,Data!$A$11:$AL$154,Prices!$B$7,FALSE)=0,"",VLOOKUP(A23,Data!$A$11:$AL$154,Prices!$B$7,FALSE)) -> 922.25 | D23: =IF(VLOOKUP(A23,Data!$A$11:$AL$154,Prices!$D$7,FALSE)=0,"",VLOOKUP(A23,Data!$A$11:$AL$154,Prices!$D$7,FALSE)) -> 878.75 | H23: Nov. | I23: 956.75 | J23: 702.5 | K23: 564.5 | N23: 741.25
A24: =Data!A120 -> 2023-02-01 | B24: =IF(VLOOKUP(A24,Data!$A$11:$AL$154,Prices!$B$7,FALSE)=0,"",VLOOKUP(A24,Data!$A$11:$AL$154,Prices!$B$7,FALSE)) -> 870.75 | D24: =IF(VLOOKUP(A24,Data!$A$11:$AL$154,Prices!$D$7,FALSE)=0,"",VLOOKUP(A24,Data!$A$11:$AL$154,Prices!$D$7,FALSE)) -> 815.75 | H24: Dec. | I24: 938.75 | J24: 723.5 | K24: 595.75 | N24: 752.6666667
A25: =Data!A121 -> 2023-03-01 | B25: =IF(VLOOKUP(A25,Data!$A$11:$AL$154,Prices!$B$7,FALSE)=0,"",VLOOKUP(A25,Data!$A$11:$AL$154,Prices!$B$7,FALSE)) -> 895.75 | D25: =IF(VLOOKUP(A25,Data!$A$11:$AL$154,Prices!$D$7,FALSE)=0,"",VLOOKUP(A25,Data!$A$11:$AL$154,Prices!$D$7,FALSE)) -> 877.75 | H25: Average | I25: =AVERAGE(I13:I24) -> 1004.3125 | J25: =AVERAGE(J13:J24) -> 791.1666667 | K25: 633.8541667 | N25: =AVERAGE(N13:N24) -> 809.7777778
A26: =Data!A122 -> 2023-04-01 | B26: =IF(VLOOKUP(A26,Data!$A$11:$AL$154,Prices!$B$7,FALSE)=0,"",VLOOKUP(A26,Data!$A$11:$AL$154,Prices!$B$7,FALSE)) -> 788 | D26: =IF(VLOOKUP(A26,Data!$A$11:$AL$154,Prices!$D$7,FALSE)=0,"",VLOOKUP(A26,Data!$A$11:$AL$154,Prices!$D$7,FALSE)) -> 807.25
A27: =Data!A123 -> 2023-05-01 | B27: =IF(VLOOKUP(A27,Data!$A$11:$AL$154,Prices!$B$7,FALSE)=0,"",VLOOKUP(A27,Data!$A$11:$AL$154,Prices!$B$7,FALSE)) -> 780 | D27: =IF(VLOOKUP(A27,Data!$A$11:$AL$154,Prices!$D$7,FALSE)=0,"",VLOOKUP(A27,Data!$A$11:$AL$154,Prices!$D$7,FALSE)) -> 649.5
A28: =Data!A124 -> 2023-06-01 | B28: =IF(VLOOKUP(A28,Data!$A$11:$AL$154,Prices!$B$7,FALSE)=0,"",VLOOKUP(A28,Data!$A$11:$AL$154,Prices!$B$7,FALSE)) -> 802 | D28: =IF(VLOOKUP(A28,Data!$A$11:$AL$154,Prices!$D$7,FALSE)=0,"",VLOOKUP(A28,Data!$A$11:$AL$154,Prices!$D$7,FALSE)) -> 801.25
A29: =Data!A125 -> 2023-07-01 | B29: =IF(VLOOKUP(A29,Data!$A$11:$AL$154,Prices!$B$7,FALSE)=0,"",VLOOKUP(A29,Data!$A$11:$AL$154,Prices!$B$7,FALSE)) -> 855.75 | D29: =IF(VLOOKUP(A29,Data!$A$11:$AL$154,Prices!$D$7,FALSE)=0,"",VLOOKUP(A29,Data!$A$11:$AL$154,Prices!$D$7,FALSE)) -> 812.75 | H29: =I7 -> KCBT Hard Red Winter Wheat Futures
A30: =Data!A126 -> 2023-08-01 | B30: =IF(VLOOKUP(A30,Data!$A$11:$AL$154,Prices!$B$7,FALSE)=0,"",VLOOKUP(A30,Data!$A$11:$AL$154,Prices!$B$7,FALSE)) -> 735 | D30: =IF(VLOOKUP(A30,Data!$A$11:$AL$154,Prices!$D$7,FALSE)=0,"",VLOOKUP(A30,Data!$A$11:$AL$154,Prices!$D$7,FALSE)) -> 726.5 | N30: 2022-24
A31: =Data!A127 -> 2023-09-01 | B31: =IF(VLOOKUP(A31,Data!$A$11:$AL$154,Prices!$B$7,FALSE)=0,"",VLOOKUP(A31,Data!$A$11:$AL$154,Prices!$B$7,FALSE)) -> 709.25 | D31: =IF(VLOOKUP(A31,Data!$A$11:$AL$154,Prices!$D$7,FALSE)=0,"",VLOOKUP(A31,Data!$A$11:$AL$154,Prices!$D$7,FALSE)) -> 663.75 | H31: Month | I31: 2022 | J31: 2023 | K31: 2024 | L31: 2025 | N31: Average
A32: =Data!A128 -> 2023-10-01 | B32: =IF(VLOOKUP(A32,Data!$A$11:$AL$154,Prices!$B$7,FALSE)=0,"",VLOOKUP(A32,Data!$A$11:$AL$154,Prices!$B$7,FALSE)) -> 709.25 | D32: =IF(VLOOKUP(A32,Data!$A$11:$AL$154,Prices!$D$7,FALSE)=0,"",VLOOKUP(A32,Data!$A$11:$AL$154,Prices!$D$7,FALSE)) -> 629.25 | H32: Jan. | I32: =IF(D11="",NA(),D11) -> 781.25 | J32: =IF(D23="",NA(),D23) -> 878.75 | K32: =IF(D35="",NA(),D35) -> 610.5 | L32: =IF(D47="",NA(),D47) -> 579.25 | N32: =AVERAGE(I32:K32) -> 756.8333333
A33: =Data!A129 -> 2023-11-01 | B33: =IF(VLOOKUP(A33,Data!$A$11:$AL$154,Prices!$B$7,FALSE)=0,"",VLOOKUP(A33,Data!$A$11:$AL$154,Prices!$B$7,FALSE)) -> 702.5 | D33: =IF(VLOOKUP(A33,Data!$A$11:$AL$154,Prices!$D$7,FALSE)=0,"",VLOOKUP(A33,Data!$A$11:$AL$154,Prices!$D$7,FALSE)) -> 643.25 | H33: Feb. | I33: 954.25 | J33: 815.75 | K33: 602.75 | L33: 558.25 | N33: =AVERAGE(I33:K33) -> 790.9166667
A34: =Data!A130 -> 2023-12-01 | B34: =IF(VLOOKUP(A34,Data!$A$11:$AL$154,Prices!$B$7,FALSE)=0,"",VLOOKUP(A34,Data!$A$11:$AL$154,Prices!$B$7,FALSE)) -> 723.5 | D34: =IF(VLOOKUP(A34,Data!$A$11:$AL$154,Prices!$D$7,FALSE)=0,"",VLOOKUP(A34,Data!$A$11:$AL$154,Prices!$D$7,FALSE)) -> 642 | H34: Mar. | I34: 1130.5 | J34: 877.75 | K34: 626.5 | L34: 557 | N34: 878.25
A35: =Data!A131 -> 2024-01-01 | B35: =IF(VLOOKUP(A35,Data!$A$11:$AL$154,Prices!$B$7,FALSE)=0,"",VLOOKUP(A35,Data!$A$11:$AL$154,Prices!$B$7,FALSE)) -> 692.25 | D35: =IF(VLOOKUP(A35,Data!$A$11:$AL$154,Prices!$D$7,FALSE)=0,"",VLOOKUP(A35,Data!$A$11:$AL$154,Prices!$D$7,FALSE)) -> 610.5 | H35: Apr. | I35: 1094.25 | J35: 807.25 | K35: 622.75 | L35: 514.25 | N35: 841.4166667
A36: =Data!A132 -> 2024-02-01 | B36: =IF(VLOOKUP(A36,Data!$A$11:$AL$154,Prices!$B$7,FALSE)=0,"",VLOOKUP(A36,Data!$A$11:$AL$154,Prices!$B$7,FALSE)) -> 664.5 | D36: =IF(VLOOKUP(A36,Data!$A$11:$AL$154,Prices!$D$7,FALSE)=0,"",VLOOKUP(A36,Data!$A$11:$AL$154,Prices!$D$7,FALSE)) -> 602.75 | H36: May | I36: 1165.5 | J36: 649.5 | K36: 708.75 | L36: 533.25 | N36: 841.25
A37: =Data!A133 -> 2024-03-01 | B37: =IF(VLOOKUP(A37,Data!$A$11:$AL$154,Prices!$B$7,FALSE)=0,"",VLOOKUP(A37,Data!$A$11:$AL$154,Prices!$B$7,FALSE)) -> 645 | D37: =IF(VLOOKUP(A37,Data!$A$11:$AL$154,Prices!$D$7,FALSE)=0,"",VLOOKUP(A37,Data!$A$11:$AL$154,Prices!$D$7,FALSE)) -> 626.5 | H37: Jne. | I37: 948.75 | J37: 801.25 | K37: 587.5 | L37: 506 | N37: 779.1666667
A38: =Data!A134 -> 2024-04-01 | B38: =IF(VLOOKUP(A38,Data!$A$11:$AL$154,Prices!$B$7,FALSE)=0,"",VLOOKUP(A38,Data!$A$11:$AL$154,Prices!$B$7,FALSE)) -> 710.25 | D38: =IF(VLOOKUP(A38,Data!$A$11:$AL$154,Prices!$D$7,FALSE)=0,"",VLOOKUP(A38,Data!$A$11:$AL$154,Prices!$D$7,FALSE)) -> 622.75 | H38: Jly. | I38: 874.5 | J38: 812.75 | K38: 549 | N38: 745.4166667
A39: =Data!A135 -> 2024-05-01 | B39: =IF(VLOOKUP(A39,Data!$A$11:$AL$154,Prices!$B$7,FALSE)=0,"",VLOOKUP(A39,Data!$A$11:$AL$154,Prices!$B$7,FALSE)) -> 739.75 | D39: =IF(VLOOKUP(A39,Data!$A$11:$AL$154,Prices!$D$7,FALSE)=0,"",VLOOKUP(A39,Data!$A$11:$AL$154,Prices!$D$7,FALSE)) -> 708.75 | H39: Aug. | I39: 924.25 | J39: 726.5 | K39: 552.5 | N39: 734.4166667
A40: =Data!A136 -> 2024-06-01 | B40: =IF(VLOOKUP(A40,Data!$A$11:$AL$154,Prices!$B$7,FALSE)=0,"",VLOOKUP(A40,Data!$A$11:$AL$154,Prices!$B$7,FALSE)) -> 613 | D40: =IF(VLOOKUP(A40,Data!$A$11:$AL$154,Prices!$D$7,FALSE)=0,"",VLOOKUP(A40,Data!$A$11:$AL$154,Prices!$D$7,FALSE)) -> 587.5 | H40: Sep. | I40: 991.5 | J40: 663.75 | K40: 583.75 | N40: 746.3333333
A41: =Data!A137 -> 2024-07-01 | B41: =IF(VLOOKUP(A41,Data!$A$11:$AL$154,Prices!$B$7,FALSE)=0,"",VLOOKUP(A41,Data!$A$11:$AL$154,Prices!$B$7,FALSE)) -> 581.5 | D41: =IF(VLOOKUP(A41,Data!$A$11:$AL$154,Prices!$D$7,FALSE)=0,"",VLOOKUP(A41,Data!$A$11:$AL$154,Prices!$D$7,FALSE)) -> 549 | H41: Oct. | I41: 924 | J41: 629.25 | K41: 569.25 | N41: 707.5
A42: =Data!A138 -> 2024-08-01 | B42: =IF(VLOOKUP(A42,Data!$A$11:$AL$154,Prices!$B$7,FALSE)=0,"",VLOOKUP(A42,Data!$A$11:$AL$154,Prices!$B$7,FALSE)) -> 573.75 | D42: =IF(VLOOKUP(A42,Data!$A$11:$AL$154,Prices!$D$7,FALSE)=0,"",VLOOKUP(A42,Data!$A$11:$AL$154,Prices!$D$7,FALSE)) -> 552.5 | H42: Nov. | I42: 913.25 | J42: 643.25 | K42: 526.25 | N42: 694.25
A43: =Data!A139 -> 2024-09-01 | B43: =IF(VLOOKUP(A43,Data!$A$11:$AL$154,Prices!$B$7,FALSE)=0,"",VLOOKUP(A43,Data!$A$11:$AL$154,Prices!$B$7,FALSE)) -> 621.75 | D43: =IF(VLOOKUP(A43,Data!$A$11:$AL$154,Prices!$D$7,FALSE)=0,"",VLOOKUP(A43,Data!$A$11:$AL$154,Prices!$D$7,FALSE)) -> 583.75 | H43: Dec. | I43: 888 | J43: 642 | K43: 559.25 | N43: 696.4166667
A44: =Data!A140 -> 2024-10-01 | B44: =IF(VLOOKUP(A44,Data!$A$11:$AL$154,Prices!$B$7,FALSE)=0,"",VLOOKUP(A44,Data!$A$11:$AL$154,Prices!$B$7,FALSE)) -> 604.25 | D44: =IF(VLOOKUP(A44,Data!$A$11:$AL$154,Prices!$D$7,FALSE)=0,"",VLOOKUP(A44,Data!$A$11:$AL$154,Prices!$D$7,FALSE)) -> 569.25 | H44: Average | I44: =AVERAGE(I32:I43) -> 965.8333333 | J44: =AVERAGE(J32:J43) -> 745.6458333 | K44: =AVERAGE(K32:K43) -> 591.5625 | L44: =AVERAGE(L32:L43) ->  | N44: =AVERAGE(N32:N43) -> 767.6805556
A45: =Data!A141 -> 2024-11-01 | B45: =IF(VLOOKUP(A45,Data!$A$11:$AL$154,Prices!$B$7,FALSE)=0,"",VLOOKUP(A45,Data!$A$11:$AL$154,Prices!$B$7,FALSE)) -> 564.5 | D45: =IF(VLOOKUP(A45,Data!$A$11:$AL$154,Prices!$D$7,FALSE)=0,"",VLOOKUP(A45,Data!$A$11:$AL$154,Prices!$D$7,FALSE)) -> 526.25
A46: =Data!A142 -> 2024-12-01 | B46: =IF(VLOOKUP(A46,Data!$A$11:$AL$154,Prices!$B$7,FALSE)=0,"",VLOOKUP(A46,Data!$A$11:$AL$154,Prices!$B$7,FALSE)) -> 595.75 | D46: =IF(VLOOKUP(A46,Data!$A$11:$AL$154,Prices!$D$7,FALSE)=0,"",VLOOKUP(A46,Data!$A$11:$AL$154,Prices!$D$7,FALSE)) -> 559.25
A47: =Data!A143 -> 2025-01-01 | B47: =IF(VLOOKUP(A47,Data!$A$11:$AL$154,Prices!$B$7,FALSE)=0,"",VLOOKUP(A47,Data!$A$11:$AL$154,Prices!$B$7,FALSE)) -> 615.5 | D47: =IF(VLOOKUP(A47,Data!$A$11:$AL$154,Prices!$D$7,FALSE)=0,"",VLOOKUP(A47,Data!$A$11:$AL$154,Prices!$D$7,FALSE)) -> 579.25
A48: =Data!A144 -> 2025-02-01 | B48: =IF(VLOOKUP(A48,Data!$A$11:$AL$154,Prices!$B$7,FALSE)=0,"",VLOOKUP(A48,Data!$A$11:$AL$154,Prices!$B$7,FALSE)) -> 582.25 | D48: =IF(VLOOKUP(A48,Data!$A$11:$AL$154,Prices!$D$7,FALSE)=0,"",VLOOKUP(A48,Data!$A$11:$AL$154,Prices!$D$7,FALSE)) -> 558.25
A49: =Data!A145 -> 2025-03-01 | B49: =IF(VLOOKUP(A49,Data!$A$11:$AL$154,Prices!$B$7,FALSE)=0,"",VLOOKUP(A49,Data!$A$11:$AL$154,Prices!$B$7,FALSE)) -> 592 | D49: =IF(VLOOKUP(A49,Data!$A$11:$AL$154,Prices!$D$7,FALSE)=0,"",VLOOKUP(A49,Data!$A$11:$AL$154,Prices!$D$7,FALSE)) -> 557
A50: =Data!A146 -> 2025-04-01 | B50: =IF(VLOOKUP(A50,Data!$A$11:$AL$154,Prices!$B$7,FALSE)=0,"",VLOOKUP(A50,Data!$A$11:$AL$154,Prices!$B$7,FALSE)) -> 614 | D50: =IF(VLOOKUP(A50,Data!$A$11:$AL$154,Prices!$D$7,FALSE)=0,"",VLOOKUP(A50,Data!$A$11:$AL$154,Prices!$D$7,FALSE)) -> 514.25
A51: =Data!A147 -> 2025-05-01 | B51: =IF(VLOOKUP(A51,Data!$A$11:$AL$154,Prices!$B$7,FALSE)=0,"",VLOOKUP(A51,Data!$A$11:$AL$154,Prices!$B$7,FALSE)) -> 625.5 | D51: =IF(VLOOKUP(A51,Data!$A$11:$AL$154,Prices!$D$7,FALSE)=0,"",VLOOKUP(A51,Data!$A$11:$AL$154,Prices!$D$7,FALSE)) -> 533.25
A52: =Data!A148 -> 2025-06-01 | B52: =IF(VLOOKUP(A52,Data!$A$11:$AL$154,Prices!$B$7,FALSE)=0,"",VLOOKUP(A52,Data!$A$11:$AL$154,Prices!$B$7,FALSE)) -> 603 | D52: =IF(VLOOKUP(A52,Data!$A$11:$AL$154,Prices!$D$7,FALSE)=0,"",VLOOKUP(A52,Data!$A$11:$AL$154,Prices!$D$7,FALSE)) -> 506
A53: =Data!A149 -> 2025-07-01 | B53: =IF(VLOOKUP(A53,Data!$A$11:$AL$154,Prices!$B$7,FALSE)=0,"",VLOOKUP(A53,Data!$A$11:$AL$154,Prices!$B$7,FALSE)) ->  | D53: =IF(VLOOKUP(A53,Data!$A$11:$AL$154,Prices!$D$7,FALSE)=0,"",VLOOKUP(A53,Data!$A$11:$AL$154,Prices!$D$7,FALSE)) -> 
A54: =Data!A150 -> 2025-08-01 | B54: =IF(VLOOKUP(A54,Data!$A$11:$AL$154,Prices!$B$7,FALSE)=0,"",VLOOKUP(A54,Data!$A$11:$AL$154,Prices!$B$7,FALSE)) ->  | D54: =IF(VLOOKUP(A54,Data!$A$11:$AL$154,Prices!$D$7,FALSE)=0,"",VLOOKUP(A54,Data!$A$11:$AL$154,Prices!$D$7,FALSE)) -> 
A55: =Data!A151 -> 2025-09-01 | B55: =IF(VLOOKUP(A55,Data!$A$11:$AL$154,Prices!$B$7,FALSE)=0,"",VLOOKUP(A55,Data!$A$11:$AL$154,Prices!$B$7,FALSE)) ->  | D55: =IF(VLOOKUP(A55,Data!$A$11:$AL$154,Prices!$D$7,FALSE)=0,"",VLOOKUP(A55,Data!$A$11:$AL$154,Prices!$D$7,FALSE)) -> 
A56: =Data!A152 -> 2025-10-01 | B56: =IF(VLOOKUP(A56,Data!$A$11:$AL$154,Prices!$B$7,FALSE)=0,"",VLOOKUP(A56,Data!$A$11:$AL$154,Prices!$B$7,FALSE)) ->  | D56: =IF(VLOOKUP(A56,Data!$A$11:$AL$154,Prices!$D$7,FALSE)=0,"",VLOOKUP(A56,Data!$A$11:$AL$154,Prices!$D$7,FALSE)) -> 
A57: =Data!A153 -> 2025-11-01 | B57: =IF(VLOOKUP(A57,Data!$A$11:$AL$154,Prices!$B$7,FALSE)=0,"",VLOOKUP(A57,Data!$A$11:$AL$154,Prices!$B$7,FALSE)) ->  | D57: =IF(VLOOKUP(A57,Data!$A$11:$AL$154,Prices!$D$7,FALSE)=0,"",VLOOKUP(A57,Data!$A$11:$AL$154,Prices!$D$7,FALSE)) -> 
A58: =Data!A154 -> 2025-12-01 | B58: =IF(VLOOKUP(A58,Data!$A$11:$AL$154,Prices!$B$7,FALSE)=0,"",VLOOKUP(A58,Data!$A$11:$AL$154,Prices!$B$7,FALSE)) ->  | D58: =IF(VLOOKUP(A58,Data!$A$11:$AL$154,Prices!$D$7,FALSE)=0,"",VLOOKUP(A58,Data!$A$11:$AL$154,Prices!$D$7,FALSE)) -> 
A60: Max | B60: =ROUNDUP(MAX(B11:D58),-1)+10 -> 1260 | D60: =ROUNDUP(MAX(D11:D58),-1)+10 -> 1180
A61: Min | B61: =ROUNDDOWN(MIN(B11:D58),-1)-10 -> 490 | D61: =ROUNDDOWN(MIN(D11:D58),-1)-10 -> 490
A62: Scale | B62: =ROUNDUP(((B60-B61)/10),-1) -> 80 | D62: =ROUNDUP(((D60-D61)/10),-1) -> 70
